Workbook

Sheet MENU
A2: Sistema para el reporte de información por parte de
A3: los Jefes de Control Interno al Alcalde Mayor
A5: MENU PRINCIPAL
S9: =IF('ACTUALIZACION DATOS'!K12>0,'ACTUALIZACION DATOS'!K12,"Datos NO Actualizados") -> Transmilenio S.A.
S10: =IF(S9="Datos NO Actualizados","",(IF(AND('ACTUALIZACION DATOS'!K16>0,'ACTUALIZACION DATOS'!Q19>0,'ACTUALIZACION DATOS'!K23>0,'ACTUALIZACION DATOS'!K25>0,'ACTUALIZACION DATOS'!Q25>0),"","Faltan datos por ACTUALIZAR"))) -> Faltan datos por ACTUALIZAR
A11: P R E S E N T A C I Ó N D E I N F O R M E S
A24: SECRETARÍA GENERAL DE LA ALCALDÍA MAYOR DE BOGOTÁ D.C. - OFICINA DE CONTROL INTERNO 2016

Sheet ACTUALIZACION DATOS
A2: Sistema para el reporte de información por parte de
A3: los Jefes de Control Interno al Alcalde Mayor
D10: Sector Administrativo | K10: Movilidad
D12: Entidad | K12: Transmilenio S.A.
D14: Nivel | K14: =IF(ISERROR(INDEX('BD1'!S3:AF50,MATCH(K12,INDIRECT(K10),0),MATCH(K10,'BD1'!S2:AF2,0))),"",INDEX('BD1'!S3:AF50,MATCH(K12,INDIRECT(K10),0),MATCH(K10,'BD1'!S2:AF2,0))) -> Descentralizada / Vinculada
D16: Nombre del Jefe Oficina de Control Interno (o quien haga sus veces ) | K16: Oscar Ivan Chiquillo Martínez
D19: Fecha de posesión | K19: 2017-06-30 | P19: Vacante
P21: En Encargo | Q21: SI
D23: Correo electrónico | K23: oscar.chiquillo@transmilenio.gov.co
D25: Teléfono oficina | K25: 2203000 | P25: Extensión | Q25: 1200
D27: Telefono móvil | I27: Telefono movil
A32: SECRETARÍA GENERAL DE LA ALCALDÍA MAYOR DE BOGOTÁ D.C. - OFICINA DE CONTROL INTERNO 2016

Sheet F1
C3: ENTIDAD | E3: =MENU!S9 -> Transmilenio S.A. | K3: VIGENCIA | N3: 2017 | P3: PERIODO REPORTADO | T3: 30 DE JUNIO
C7: PILAR_2 | E7: =IF(ISERROR(INDEX('BD1'!$B$56:$H$56,1,MATCH(C7,'BD1'!$B$55:$H$55,0))),"",(INDEX('BD1'!$B$56:$H$56,1,MATCH(C7,'BD1'!$B$55:$H$55,0)))) -> Democracia Urbana
C9: PROGRAMA | D9: Meta Plan de Desarrollo | E9: Meta del proyecto de Inversión (Entidad) | F9: Presupuesto meta proyecto de Inversión (Entidad) | H9: GESTIÓN CONTRACTUAL | M9: GESTIÓN PRESUPUESTAL (CIFRAS MILLONES DE PESOS) | R9: GESTIÓN FÍSICA
H10: AVANCE | J10: EJEC / PROG | M10: AVANCE | O10: EJEC / PROG | R10: AVANCE | T10: EJEC / PROG
C11: Mejor_movilidad_para_todos | D11: Avanzar en el 30% de la obra civil del proyecto de la primera línea del metro en su Etapa I | E11: Meta N° 1: Ejecutar 100 Porcentaje De Los Recursos Destinados Anualmente A Las Actividades De Gestión Y Desarrollo De La Primera Línea Del Metro | H11: P | J11: =IF(ISERROR(IF(I12="","",IF((I12/I11)>1,1,I12/I11))),"",IF(I12="","",IF((I12/I11)>1,1,I12/I11))) ->  | K11: =IF(J11="","",(IF(J11<'BD1'!$E$76,'BD1'!$G$75,IF(J11<'BD1'!$E$77,'BD1'!$G$76,'BD1'!$G$77)))) ->  | M11: P | O11: =IF(ISERROR(IF(N12="","",IF((N12/N11)>1,1,N12/N11))),"",IF(N12="","",IF((N12/N11)>1,1,N12/N11))) ->  | P11: =IF(O11="","",(IF(O11<'BD1'!$E$76,'BD1'!$G$75,IF(O11<'BD1'!$E$77,'BD1'!$G$76,'BD1'!$G$77)))) ->  | R11: P | T11: =IF(ISERROR(IF(S12="","",IF((S12/S11)>1,1,S12/S11))),"",IF(S12="","",IF((S12/S11)>1,1,S12/S11))) ->  | U11: =IF(T11="","",(IF(T11<'BD1'!$E$76,'BD1'!$G$75,IF(T11<'BD1'!$E$77,'BD1'!$G$76,'BD1'!$G$77)))) -> 
H12: E | M12: E | R12: E
C13: Mejor_movilidad_para_todos | D13: Disminuir a 80% la percepción de inseguridad en el Sistema de Transporte Masivo | E13: Meta N° 2: Implementar 1 Plan De Seguridad Que Permita Gestionar Y Realizar Iniciativas Para Reducir Los Eventos De Afectación A La Seguridad En El Sistema | F13: 27230 | H13: P | I13: 7 | J13: =IF(ISERROR(IF(I14="","",IF((I14/I13)>1,1,I14/I13))),"",IF(I14="","",IF((I14/I13)>1,1,I14/I13))) -> 0.8571428571 | K13: =IF(J13="","",(IF(J13<'BD1'!$E$76,'BD1'!$G$75,IF(J13<'BD1'!$E$77,'BD1'!$G$76,'BD1'!$G$77)))) -> ACEPTABLE | M13: P | N13: 27230 | O13: =IF(ISERROR(IF(N14="","",IF((N14/N13)>1,1,N14/N13))),"",IF(N14="","",IF((N14/N13)>1,1,N14/N13))) -> 0.1510099155 | P13: =IF(O13="","",(IF(O13<'BD1'!$E$76,'BD1'!$G$75,IF(O13<'BD1'!$E$77,'BD1'!$G$76,'BD1'!$G$77)))) -> ALERTA | R13: P | S13: 0.2 | T13: =IF(ISERROR(IF(S14="","",IF((S14/S13)>1,1,S14/S13))),"",IF(S14="","",IF((S14/S13)>1,1,S14/S13))) -> 0.5 | U13: =IF(T13="","",(IF(T13<'BD1'!$E$76,'BD1'!$G$75,IF(T13<'BD1'!$E$77,'BD1'!$G$76,'BD1'!$G$77)))) -> ALERTA
H14: E | I14: 6 | M14: E | N14: 4112 | R14: E | S14: 0.1
C15: Mejor_movilidad_para_todos | D15: Disminuir a 80% la percepción de inseguridad en el Sistema de Transporte Masivo | E15: Meta N° 3: Disminuir 15 Por Ciento El Número De Víctimas Fatales En El Sistema De Transporte Público Gestionado Por Transmilenio S.A. | F15: 3021 | H15: P | I15: 7 | J15: =IF(ISERROR(IF(I16="","",IF((I16/I15)>1,1,I16/I15))),"",IF(I16="","",IF((I16/I15)>1,1,I16/I15))) -> 0.5714285714 | K15: =IF(J15="","",(IF(J15<'BD1'!$E$76,'BD1'!$G$75,IF(J15<'BD1'!$E$77,'BD1'!$G$76,'BD1'!$G$77)))) -> ALERTA | M15: P | N15: 3021 | O15: =IF(ISERROR(IF(N16="","",IF((N16/N15)>1,1,N16/N15))),"",IF(N16="","",IF((N16/N15)>1,1,N16/N15))) -> 0.04104601125 | P15: =IF(O15="","",(IF(O15<'BD1'!$E$76,'BD1'!$G$75,IF(O15<'BD1'!$E$77,'BD1'!$G$76,'BD1'!$G$77)))) -> ALERTA | R15: P | S15: 10 | T15: =IF(ISERROR(IF(S16="","",IF((S16/S15)>1,1,S16/S15))),"",IF(S16="","",IF((S16/S15)>1,1,S16/S15))) -> 1 | U15: =IF(T15="","",(IF(T15<'BD1'!$E$76,'BD1'!$G$75,IF(T15<'BD1'!$E$77,'BD1'!$G$76,'BD1'!$G$77)))) -> SATISFACTORIO
H16: E | I16: 4 | M16: E | N16: 124 | R16: E | S16: 10
C17: Mejor_movilidad_para_todos | D17: Diseño y puesta en marcha del 100% del Plan Anti evasión en el Sistema de Transporte Público | E17: Meta N° 4: Diseñar E Implementar 1 Plan Para Reducir La Problemática De La Evasión En El Sistema, Incluyendo Medidas De Corto, Mediano Y Largo Plazo. | F17: 16714 | H17: P | I17: 7 | J17: =IF(ISERROR(IF(I18="","",IF((I18/I17)>1,1,I18/I17))),"",IF(I18="","",IF((I18/I17)>1,1,I18/I17))) -> 0.2857142857 | K17: =IF(J17="","",(IF(J17<'BD1'!$E$76,'BD1'!$G$75,IF(J17<'BD1'!$E$77,'BD1'!$G$76,'BD1'!$G$77)))) -> ALERTA | M17: P | N17: 16714 | O17: =IF(ISERROR(IF(N18="","",IF((N18/N17)>1,1,N18/N17))),"",IF(N18="","",IF((N18/N17)>1,1,N18/N17))) -> 0.01639344262 | P17: =IF(O17="","",(IF(O17<'BD1'!$E$76,'BD1'!$G$75,IF(O17<'BD1'!$E$77,'BD1'!$G$76,'BD1'!$G$77)))) -> ALERTA | R17: P | S17: 0.2 | T17: =IF(ISERROR(IF(S18="","",IF((S18/S17)>1,1,S18/S17))),"",IF(S18="","",IF((S18/S17)>1,1,S18/S17))) -> 0.5 | U17: =IF(T17="","",(IF(T17<'BD1'!$E$76,'BD1'!$G$75,IF(T17<'BD1'!$E$77,'BD1'!$G$76,'BD1'!$G$77)))) -> ALERTA
H18: E | I18: 2 | M18: E | N18: 274 | R18: E | S18: 0.1
C19: Mejor_movilidad_para_todos | D19: Diseño e implementación de una (1) estrategia integral de cultura ciudadana para el Sistema de Transporte Masivo de Bogotá | E19: Meta N° 5: Realizar 1 Estudio Anual Que Permita Identificar Grupos Poblacionales Que Impactan La Percepción De La Cultura Ciudadana, Normas Sociales, Actitudes Y Comportamientos De Los Usuarios Del Sistema | F19: 150 | H19: P | I19: 1 | J19: =IF(ISERROR(IF(I20="","",IF((I20/I19)>1,1,I20/I19))),"",IF(I20="","",IF((I20/I19)>1,1,I20/I19))) -> 0 | K19: =IF(J19="","",(IF(J19<'BD1'!$E$76,'BD1'!$G$75,IF(J19<'BD1'!$E$77,'BD1'!$G$76,'BD1'!$G$77)))) -> ALERTA | M19: P | N19: 150 | O19: =IF(ISERROR(IF(N20="","",IF((N20/N19)>1,1,N20/N19))),"",IF(N20="","",IF((N20/N19)>1,1,N20/N19))) -> 0 | P19: =IF(O19="","",(IF(O19<'BD1'!$E$76,'BD1'!$G$75,IF(O19<'BD1'!$E$77,'BD1'!$G$76,'BD1'!$G$77)))) -> ALERTA | R19: P | S19: 1 | T19: =IF(ISERROR(IF(S20="","",IF((S20/S19)>1,1,S20/S19))),"",IF(S20="","",IF((S20/S19)>1,1,S20/S19))) -> 1 | U19: =IF(T19="","",(IF(T19<'BD1'!$E$76,'BD1'!$G$75,IF(T19<'BD1'!$E$77,'BD1'!$G$76,'BD1'!$G$77)))) -> SATISFACTORIO
H20: E | I20: 0 | M20: E | N20: 0 | R20: E | S20: 1
C21: Mejor_movilidad_para_todos | D21: Diseño e implementación de una (1) estrategia integral de cultura ciudadana para el Sistema de Transporte Masivo de Bogotá | E21: Meta N° 6: Diseñar E Implementar 1 Estrategia De Comunicación Enfocada Al Proyecto Cultura Ciudadana En Transmilenio, Que Incluya Control Y Evaluación A La Estrategia Del Proyecto Cultura Ciudadana En Transmilenio | F21: 9661 | H21: P | I21: 3 | J21: =IF(ISERROR(IF(I22="","",IF((I22/I21)>1,1,I22/I21))),"",IF(I22="","",IF((I22/I21)>1,1,I22/I21))) -> 0.6666666667 | K21: =IF(J21="","",(IF(J21<'BD1'!$E$76,'BD1'!$G$75,IF(J21<'BD1'!$E$77,'BD1'!$G$76,'BD1'!$G$77)))) -> ACEPTABLE | M21: P | N21: 9661 | O21: =IF(ISERROR(IF(N22="","",IF((N22/N21)>1,1,N22/N21))),"",IF(N22="","",IF((N22/N21)>1,1,N22/N21))) -> 0.0160438878 | P21: =IF(O21="","",(IF(O21<'BD1'!$E$76,'BD1'!$G$75,IF(O21<'BD1'!$E$77,'BD1'!$G$76,'BD1'!$G$77)))) -> ALERTA | R21: P | S21: 0.2 | T21: =IF(ISERROR(IF(S22="","",IF((S22/S21)>1,1,S22/S21))),"",IF(S22="","",IF((S22/S21)>1,1,S22/S21))) -> 0.4 | U21: =IF(T21="","",(IF(T21<'BD1'!$E$76,'BD1'!$G$75,IF(T21<'BD1'!$E$77,'BD1'!$G$76,'BD1'!$G$77)))) -> ALERTA
H22: E | I22: 2 | M22: E | N22: 155 | R22: E | S22: 0.08
C23: Mejor_movilidad_para_todos | D23: Diseño e implementación de una (1) estrategia integral de cultura ciudadana para el Sistema de Transporte Masivo de Bogotá | E23: Meta N° 7: Alcanzar El 60 Por Ciento En El Atributo -Cuidado Del Sistema- De La Encuesta De Satisfacción Al Usuario | F23: 4078 | H23: P | I23: 8 | J23: =IF(ISERROR(IF(I24="","",IF((I24/I23)>1,1,I24/I23))),"",IF(I24="","",IF((I24/I23)>1,1,I24/I23))) -> 0.25 | K23: =IF(J23="","",(IF(J23<'BD1'!$E$76,'BD1'!$G$75,IF(J23<'BD1'!$E$77,'BD1'!$G$76,'BD1'!$G$77)))) -> ALERTA | M23: P | N23: 4078 | O23: =IF(ISERROR(IF(N24="","",IF((N24/N23)>1,1,N24/N23))),"",IF(N24="","",IF((N24/N23)>1,1,N24/N23))) -> 0.01692005885 | P23: =IF(O23="","",(IF(O23<'BD1'!$E$76,'BD1'!$G$75,IF(O23<'BD1'!$E$77,'BD1'!$G$76,'BD1'!$G$77)))) -> ALERTA | R23: P | S23: 24 | T23: =IF(ISERROR(IF(S24="","",IF((S24/S23)>1,1,S24/S23))),"",IF(S24="","",IF((S24/S23)>1,1,S24/S23))) -> 0 | U23: =IF(T23="","",(IF(T23<'BD1'!$E$76,'BD1'!$G$75,IF(T23<'BD1'!$E$77,'BD1'!$G$76,'BD1'!$G$77)))) -> ALERTA
H24: E | I24: 2 | M24: E | N24: 69 | R24: E | S24: 0
C25: Mejor_movilidad_para_todos | D25: Aumentar en 5% el número total de viajes en Transporte Público (LB= 43%) | E25: Meta N° 8: Remunerar El 100 Por Ciento De La Prestación Del Servicio De Transporte Y Recaudo Del SITP, Durante Las 52 Semanas Del Año | F25: 645227 | H25: P | I25: 0 | J25: =IF(ISERROR(IF(I26="","",IF((I26/I25)>1,1,I26/I25))),"",IF(I26="","",IF((I26/I25)>1,1,I26/I25))) ->  | K25: =IF(J25="","",(IF(J25<'BD1'!$E$76,'BD1'!$G$75,IF(J25<'BD1'!$E$77,'BD1'!$G$76,'BD1'!$G$77)))) ->  | M25: P | N25: 645227 | O25: =IF(ISERROR(IF(N26="","",IF((N26/N25)>1,1,N26/N25))),"",IF(N26="","",IF((N26/N25)>1,1,N26/N25))) -> 0.4567710279 | P25: =IF(O25="","",(IF(O25<'BD1'!$E$76,'BD1'!$G$75,IF(O25<'BD1'!$E$77,'BD1'!$G$76,'BD1'!$G$77)))) -> ALERTA | R25: P | S25: 100 | T25: =IF(ISERROR(IF(S26="","",IF((S26/S25)>1,1,S26/S25))),"",IF(S26="","",IF((S26/S25)>1,1,S26/S25))) -> 0.5 | U25: =IF(T25="","",(IF(T25<'BD1'!$E$76,'BD1'!$G$75,IF(T25<'BD1'!$E$77,'BD1'!$G$76,'BD1'!$G$77)))) -> ALERTA
H26: E | I26: 0 | M26: E | N26: 294721 | R26: E | S26: 50
C27: Mejor_movilidad_para_todos | D27: Aumentar en 5% el número total de viajes en Transporte Público (LB= 43%) | E27: Meta N° 9: Aumentar 5 Por Ciento Los Viajes En El Sistema De Transporte Público Gestionado Por Transmilenio S.A. | F27: 46567 | H27: P | I27: 25 | J27: =IF(ISERROR(IF(I28="","",IF((I28/I27)>1,1,I28/I27))),"",IF(I28="","",IF((I28/I27)>1,1,I28/I27))) -> 0.52 | K27: =IF(J27="","",(IF(J27<'BD1'!$E$76,'BD1'!$G$75,IF(J27<'BD1'!$E$77,'BD1'!$G$76,'BD1'!$G$77)))) -> ALERTA | M27: P | N27: 46567 | O27: =IF(ISERROR(IF(N28="","",IF((N28/N27)>1,1,N28/N27))),"",IF(N28="","",IF((N28/N27)>1,1,N28/N27))) -> 0.2422745721 | P27: =IF(O27="","",(IF(O27<'BD1'!$E$76,'BD1'!$G$75,IF(O27<'BD1'!$E$77,'BD1'!$G$76,'BD1'!$G$77)))) -> ALERTA | R27: P | S27: 2 | T27: =IF(ISERROR(IF(S28="","",IF((S28/S27)>1,1,S28/S27))),"",IF(S28="","",IF((S28/S27)>1,1,S28/S27))) -> 0.6 | U27: =IF(T27="","",(IF(T27<'BD1'!$E$76,'BD1'!$G$75,IF(T27<'BD1'!$E$77,'BD1'!$G$76,'BD1'!$G$77)))) -> ALERTA
H28: E | I28: 13 | M28: E | N28: 11282 | R28: E | S28: 1.2
C29: Mejor_movilidad_para_todos | D29: Revisión e implementación del 100% de los servicios troncales y rutas zonales | E29: Meta N° 10: Revisar E Implementar El 100 Por Ciento De Las Rutas Del Sistema | F29: 26584 | H29: P | I29: 56 | J29: =IF(ISERROR(IF(I30="","",IF((I30/I29)>1,1,I30/I29))),"",IF(I30="","",IF((I30/I29)>1,1,I30/I29))) -> 0.75 | K29: =IF(J29="","",(IF(J29<'BD1'!$E$76,'BD1'!$G$75,IF(J29<'BD1'!$E$77,'BD1'!$G$76,'BD1'!$G$77)))) -> ACEPTABLE | M29: P | N29: 26584 | O29: =IF(ISERROR(IF(N30="","",IF((N30/N29)>1,1,N30/N29))),"",IF(N30="","",IF((N30/N29)>1,1,N30/N29))) -> 0.7080198616 | P29: =IF(O29="","",(IF(O29<'BD1'!$E$76,'BD1'!$G$75,IF(O29<'BD1'!$E$77,'BD1'!$G$76,'BD1'!$G$77)))) -> ACEPTABLE | R29: P | S29: 35 | T29: =IF(ISERROR(IF(S30="","",IF((S30/S29)>1,1,S30/S29))),"",IF(S30="","",IF((S30/S29)>1,1,S30/S29))) -> 0.8 | U29: =IF(T29="","",(IF(T29<'BD1'!$E$76,'BD1'!$G$75,IF(T29<'BD1'!$E$77,'BD1'!$G$76,'BD1'!$G$77)))) -> ACEPTABLE
H30: E | I30: 42 | M30: E | N30: 18822 | R30: E | S30: 28
C31: Mejor_movilidad_para_todos | D31: Aumentar en 5% el número total de viajes en Transporte Público (LB= 43%) | E31: Meta N° 11: Implementar 9 Soluciones De Software En Una Plataforma Computacional Eficiente Que Automaticen Los Procesos De Recaudo Y Remuneración, El Modelo De Programación Y Regulación De Flota, Y El Subsistema De Inteligencia De Negocios | F31: 9527 | H31: P | I31: 14 | J31: =IF(ISERROR(IF(I32="","",IF((I32/I31)>1,1,I32/I31))),"",IF(I32="","",IF((I32/I31)>1,1,I32/I31))) -> 0.2857142857 | K31: =IF(J31="","",(IF(J31<'BD1'!$E$76,'BD1'!$G$75,IF(J31<'BD1'!$E$77,'BD1'!$G$76,'BD1'!$G$77)))) -> ALERTA | M31: P | N31: 9527 | O31: =IF(ISERROR(IF(N32="","",IF((N32/N31)>1,1,N32/N31))),"",IF(N32="","",IF((N32/N31)>1,1,N32/N31))) -> 0.3945628215 | P31: =IF(O31="","",(IF(O31<'BD1'!$E$76,'BD1'!$G$75,IF(O31<'BD1'!$E$77,'BD1'!$G$76,'BD1'!$G$77)))) -> ALERTA | R31: P | S31: 4 | T31: =IF(ISERROR(IF(S32="","",IF((S32/S31)>1,1,S32/S31))),"",IF(S32="","",IF((S32/S31)>1,1,S32/S31))) -> 0.14 | U31: =IF(T31="","",(IF(T31<'BD1'!$E$76,'BD1'!$G$75,IF(T31<'BD1'!$E$77,'BD1'!$G$76,'BD1'!$G$77)))) -> ALERTA
H32: E | I32: 4 | M32: E | N32: 3759 | R32: E | S32: 0.56
C33: Mejor_movilidad_para_todos | D33: Aumentar en 5% el número total de viajes en Transporte Público (LB= 43%) | E33: Meta N° 12: Reducir 400.000 Toneladas De Gases De Efecto Invernadero (Co2eq) Por La Operación Del Sistema De Transporte Masivo | F33: 70 | H33: P | I33: 3 | J33: =IF(ISERROR(IF(I34="","",IF((I34/I33)>1,1,I34/I33))),"",IF(I34="","",IF((I34/I33)>1,1,I34/I33))) -> 0.3333333333 | K33: =IF(J33="","",(IF(J33<'BD1'!$E$76,'BD1'!$G$75,IF(J33<'BD1'!$E$77,'BD1'!$G$76,'BD1'!$G$77)))) -> ALERTA | M33: P | N33: 70 | O33: =IF(ISERROR(IF(N34="","",IF((N34/N33)>1,1,N34/N33))),"",IF(N34="","",IF((N34/N33)>1,1,N34/N33))) -> 0.7 | P33: =IF(O33="","",(IF(O33<'BD1'!$E$76,'BD1'!$G$75,IF(O33<'BD1'!$E$77,'BD1'!$G$76,'BD1'!$G$77)))) -> ACEPTABLE | R33: P | S33: 88112 | T33: =IF(ISERROR(IF(S34="","",IF((S34/S33)>1,1,S34/S33))),"",IF(S34="","",IF((S34/S33)>1,1,S34/S33))) -> 0 | U33: =IF(T33="","",(IF(T33<'BD1'!$E$76,'BD1'!$G$75,IF(T33<'BD1'!$E$77,'BD1'!$G$76,'BD1'!$G$77)))) -> ALERTA
H34: E | I34: 1 | M34: E | N34: 49 | R34: E | S34: 0
C35: Mejor_movilidad_para_todos | D35: Aumentar en 5% el número total de viajes en Transporte Público (LB= 43%) | E35: Meta N° 13: Garantizar El 99 Por Ciento La Operación De La Línea De Cable En Relación A Las Horas De Operación Programadas | F35: 255 | H35: P | I35: 2 | J35: =IF(ISERROR(IF(I36="","",IF((I36/I35)>1,1,I36/I35))),"",IF(I36="","",IF((I36/I35)>1,1,I36/I35))) -> 0.5 | K35: =IF(J35="","",(IF(J35<'BD1'!$E$76,'BD1'!$G$75,IF(J35<'BD1'!$E$77,'BD1'!$G$76,'BD1'!$G$77)))) -> ALERTA | M35: P | N35: 255 | O35: =IF(ISERROR(IF(N36="","",IF((N36/N35)>1,1,N36/N35))),"",IF(N36="","",IF((N36/N35)>1,1,N36/N35))) -> 0.7368862745 | P35: =IF(O35="","",(IF(O35<'BD1'!$E$76,'BD1'!$G$75,IF(O35<'BD1'!$E$77,'BD1'!$G$76,'BD1'!$G$77)))) -> ACEPTABLE | R35: P | S35: 96 | T35: =IF(ISERROR(IF(S36="","",IF((S36/S35)>1,1,S36/S35))),"",IF(S36="","",IF((S36/S35)>1,1,S36/S35))) -> 0.05208333333 | U35: =IF(T35="","",(IF(T35<'BD1'!$E$76,'BD1'!$G$75,IF(T35<'BD1'!$E$77,'BD1'!$G$76,'BD1'!$G$77)))) -> ALERTA
H36: E | I36: 1 | M36: E | N36: 187.906 | R36: E | S36: 5
C37: Mejor_movilidad_para_todos | D37: Aumentar en 5% el número total de viajes en Transporte Público (LB= 43%) | E37: Meta N° 14: Gestionar 100 Por Ciento De Los Servicios Del Componente Brt En Operación, Incluyendo Troncales, Duales Y Alimentadores | F37: 18860 | H37: P | I37: 22 | J37: =IF(ISERROR(IF(I38="","",IF((I38/I37)>1,1,I38/I37))),"",IF(I38="","",IF((I38/I37)>1,1,I38/I37))) -> 0.5909090909 | K37: =IF(J37="","",(IF(J37<'BD1'!$E$76,'BD1'!$G$75,IF(J37<'BD1'!$E$77,'BD1'!$G$76,'BD1'!$G$77)))) -> ALERTA | M37: P | N37: 18860 | O37: =IF(ISERROR(IF(N38="","",IF((N38/N37)>1,1,N38/N37))),"",IF(N38="","",IF((N38/N37)>1,1,N38/N37))) -> 0.2892895016 | P37: =IF(O37="","",(IF(O37<'BD1'!$E$76,'BD1'!$G$75,IF(O37<'BD1'!$E$77,'BD1'!$G$76,'BD1'!$G$77)))) -> ALERTA | R37: P | S37: 100 | T37: =IF(ISERROR(IF(S38="","",IF((S38/S37)>1,1,S38/S37))),"",IF(S38="","",IF((S38/S37)>1,1,S38/S37))) -> 0.5 | U37: =IF(T37="","",(IF(T37<'BD1'!$E$76,'BD1'!$G$75,IF(T37<'BD1'!$E$77,'BD1'!$G$76,'BD1'!$G$77)))) -> ALERTA
H38: E | I38: 13 | M38: E | N38: 5456 | R38: E | S38: 50
C39: Mejor_movilidad_para_todos | D39: Aumentar en 5% el número total de viajes en Transporte Público (LB= 43%) | E39: Meta N° 15: Supervisar 100 Por Ciento De La Operación De Las Rutas Zonales En Servicio | F39: 3050 | H39: P | I39: 86 | J39: =IF(ISERROR(IF(I40="","",IF((I40/I39)>1,1,I40/I39))),"",IF(I40="","",IF((I40/I39)>1,1,I40/I39))) -> 0.523255814 | K39: =IF(J39="","",(IF(J39<'BD1'!$E$76,'BD1'!$G$75,IF(J39<'BD1'!$E$77,'BD1'!$G$76,'BD1'!$G$77)))) -> ALERTA | M39: P | N39: 3050 | O39: =IF(ISERROR(IF(N40="","",IF((N40/N39)>1,1,N40/N39))),"",IF(N40="","",IF((N40/N39)>1,1,N40/N39))) -> 0.4996721311 | P39: =IF(O39="","",(IF(O39<'BD1'!$E$76,'BD1'!$G$75,IF(O39<'BD1'!$E$77,'BD1'!$G$76,'BD1'!$G$77)))) -> ALERTA | R39: P | S39: 100 | T39: =IF(ISERROR(IF(S40="","",IF((S40/S39)>1,1,S40/S39))),"",IF(S40="","",IF((S40/S39)>1,1,S40/S39))) -> 0.5 | U39: =IF(T39="","",(IF(T39<'BD1'!$E$76,'BD1'!$G$75,IF(T39<'BD1'!$E$77,'BD1'!$G$76,'BD1'!$G$77)))) -> ALERTA
H40: E | I40: 45 | M40: E | N40: 1524 | R40: E | S40: 50
C41: Mejor_movilidad_para_todos | D41: Aumentar en 5% el número total de viajes en Transporte Público (LB= 43%) | E41: Meta N° 16: Garantizar El 100 Por Ciento De Las Estaciones En Condiciones Óptimas Para El Servicio Incluyendo Aseo, Servicios Públicos Y Equipamiento Adicional | F41: 13590 | H41: P | I41: 8 | J41: =IF(ISERROR(IF(I42="","",IF((I42/I41)>1,1,I42/I41))),"",IF(I42="","",IF((I42/I41)>1,1,I42/I41))) -> 0.625 | K41: =IF(J41="","",(IF(J41<'BD1'!$E$76,'BD1'!$G$75,IF(J41<'BD1'!$E$77,'BD1'!$G$76,'BD1'!$G$77)))) -> ALERTA | M41: P | N41: 13590 | O41: =IF(ISERROR(IF(N42="","",IF((N42/N41)>1,1,N42/N41))),"",IF(N42="","",IF((N42/N41)>1,1,N42/N41))) -> 0.3235467255 | P41: =IF(O41="","",(IF(O41<'BD1'!$E$76,'BD1'!$G$75,IF(O41<'BD1'!$E$77,'BD1'!$G$76,'BD1'!$G$77)))) -> ALERTA | R41: P | S41: 100 | T41: =IF(ISERROR(IF(S42="","",IF((S42/S41)>1,1,S42/S41))),"",IF(S42="","",IF((S42/S41)>1,1,S42/S41))) -> 1 | U41: =IF(T41="","",(IF(T41<'BD1'!$E$76,'BD1'!$G$75,IF(T41<'BD1'!$E$77,'BD1'!$G$76,'BD1'!$G$77)))) -> SATISFACTORIO
H42: E | I42: 5 | M42: E | N42: 4397 | R42: E | S42: 100
C43: Mejor_movilidad_para_todos | D43: Aumentar en 5% el número total de viajes en Transporte Público (LB= 43%) | E43: Meta N° 17: Planificar Y Gestionar Los Recursos Para 73 Estaciones Para Adelantar Acciones De Intervención Física En Mejoramiento Y Reconfiguración De Infraestructura Troncal En Operación | F43: 264709 | H43: P | I43: 1 | J43: =IF(ISERROR(IF(I44="","",IF((I44/I43)>1,1,I44/I43))),"",IF(I44="","",IF((I44/I43)>1,1,I44/I43))) -> 0 | K43: =IF(J43="","",(IF(J43<'BD1'!$E$76,'BD1'!$G$75,IF(J43<'BD1'!$E$77,'BD1'!$G$76,'BD1'!$G$77)))) -> ALERTA | M43: P | N43: 264709 | O43: =IF(ISERROR(IF(N44="","",IF((N44/N43)>1,1,N44/N43))),"",IF(N44="","",IF((N44/N43)>1,1,N44/N43))) -> 0 | P43: =IF(O43="","",(IF(O43<'BD1'!$E$76,'BD1'!$G$75,IF(O43<'BD1'!$E$77,'BD1'!$G$76,'BD1'!$G$77)))) -> ALERTA | R43: P | S43: 16 | T43: =IF(ISERROR(IF(S44="","",IF((S44/S43)>1,1,S44/S43))),"",IF(S44="","",IF((S44/S43)>1,1,S44/S43))) -> 0 | U43: =IF(T43="","",(IF(T43<'BD1'!$E$76,'BD1'!$G$75,IF(T43<'BD1'!$E$77,'BD1'!$G$76,'BD1'!$G$77)))) -> ALERTA
H44: E | I44: 0 | M44: E | N44: 0 | R44: E | S44: 0
C45: Mejor_movilidad_para_todos | D45: Alcanzar 170 km de troncales (construir 57 km nuevos de troncal) | E45: Meta N° 18: Planificar Y Gestionar Los Recursos Para 57 Kilómetros Nuevos De Troncal Con Actividades Que Incluyen Expansión Y Mejoramiento De La Infraestructura Troncal Necesaria Para La Operación Del Sistema Transmilenio | F45: 1468597 | H45: P | I45: 0 | J45: =IF(ISERROR(IF(I46="","",IF((I46/I45)>1,1,I46/I45))),"",IF(I46="","",IF((I46/I45)>1,1,I46/I45))) ->  | K45: =IF(J45="","",(IF(J45<'BD1'!$E$76,'BD1'!$G$75,IF(J45<'BD1'!$E$77,'BD1'!$G$76,'BD1'!$G$77)))) ->  | M45: P | N45: 1468597 | O45: =IF(ISERROR(IF(N46="","",IF((N46/N45)>1,1,N46/N45))),"",IF(N46="","",IF((N46/N45)>1,1,N46/N45))) -> 0.0424548055 | P45: =IF(O45="","",(IF(O45<'BD1'!$E$76,'BD1'!$G$75,IF(O45<'BD1'!$E$77,'BD1'!$G$76,'BD1'!$G$77)))) -> ALERTA | R45: P | S45: 5 | T45: =IF(ISERROR(IF(S46="","",IF((S46/S45)>1,1,S46/S45))),"",IF(S46="","",IF((S46/S45)>1,1,S46/S45))) -> 0.254 | U45: =IF(T45="","",(IF(T45<'BD1'!$E$76,'BD1'!$G$75,IF(T45<'BD1'!$E$77,'BD1'!$G$76,'BD1'!$G$77)))) -> ALERTA
H46: E | I46: 0 | M46: E | N46: 62349 | R46: E | S46: 1.27
C47: Mejor_movilidad_para_todos | D47: Aumentar en 5% el número total de viajes en Transporte Público (LB= 43%) | E47: Meta N° 19: Planificar Y Gestionar Los Recursos Para 9 Patios Zonales Para La Expansión Y Mejoramiento De La Infraestructura Zonal, Con Inversión Pública O Privada | F47: 83179 | H47: P | I47: 15 | J47: =IF(ISERROR(IF(I48="","",IF((I48/I47)>1,1,I48/I47))),"",IF(I48="","",IF((I48/I47)>1,1,I48/I47))) -> 0.5333333333 | K47: =IF(J47="","",(IF(J47<'BD1'!$E$76,'BD1'!$G$75,IF(J47<'BD1'!$E$77,'BD1'!$G$76,'BD1'!$G$77)))) -> ALERTA | M47: P | N47: 83179 | O47: =IF(ISERROR(IF(N48="","",IF((N48/N47)>1,1,N48/N47))),"",IF(N48="","",IF((N48/N47)>1,1,N48/N47))) -> 0.01062768247 | P47: =IF(O47="","",(IF(O47<'BD1'!$E$76,'BD1'!$G$75,IF(O47<'BD1'!$E$77,'BD1'!$G$76,'BD1'!$G$77)))) -> ALERTA | R47: P | S47: 2 | T47: =IF(ISERROR(IF(S48="","",IF((S48/S47)>1,1,S48/S47))),"",IF(S48="","",IF((S48/S47)>1,1,S48/S47))) -> 0 | U47: =IF(T47="","",(IF(T47<'BD1'!$E$76,'BD1'!$G$75,IF(T47<'BD1'!$E$77,'BD1'!$G$76,'BD1'!$G$77)))) -> ALERTA
H48: E | I48: 8 | M48: E | N48: 884 | R48: E | S48: 0
C49: Mejor_movilidad_para_todos | D49: Implementar 1500 ciclo parqueaderos en la ciudad asociados al Transmilenio | E49: Meta N° 20: Aumentar 1500 Cupos De Parqueo Para Bicicletas | F49: 4506 | H49: P | I49: 3 | J49: =IF(ISERROR(IF(I50="","",IF((I50/I49)>1,1,I50/I49))),"",IF(I50="","",IF((I50/I49)>1,1,I50/I49))) -> 0 | K49: =IF(J49="","",(IF(J49<'BD1'!$E$76,'BD1'!$G$75,IF(J49<'BD1'!$E$77,'BD1'!$G$76,'BD1'!$G$77)))) -> ALERTA | M49: P | N49: 4506 | O49: =IF(ISERROR(IF(N50="","",IF((N50/N49)>1,1,N50/N49))),"",IF(N50="","",IF((N50/N49)>1,1,N50/N49))) -> 0 | P49: =IF(O49="","",(IF(O49<'BD1'!$E$76,'BD1'!$G$75,IF(O49<'BD1'!$E$77,'BD1'!$G$76,'BD1'!$G$77)))) -> ALERTA | R49: P | S49: 500 | T49: =IF(ISERROR(IF(S50="","",IF((S50/S49)>1,1,S50/S49))),"",IF(S50="","",IF((S50/S49)>1,1,S50/S49))) -> 1 | U49: =IF(T49="","",(IF(T49<'BD1'!$E$76,'BD1'!$G$75,IF(T49<'BD1'!$E$77,'BD1'!$G$76,'BD1'!$G$77)))) -> SATISFACTORIO
H50: E | I50: 0 | M50: E | N50: 0 | R50: E | S50: 553
C51: Mejor_movilidad_para_todos | D51: Aumentar en 5% el número total de viajes en Transporte Público (LB= 43%) | E51: Meta N° 21: Mejorar Y/O Mantener 147 Estaciones Del Sistema Transmilenio Con Acciones De Mantenimiento Preventivo, Correctivo Y De Mejoramiento De Las Condiciones Físicas | F51: 19300 | H51: P | I51: 3 | J51: =IF(ISERROR(IF(I52="","",IF((I52/I51)>1,1,I52/I51))),"",IF(I52="","",IF((I52/I51)>1,1,I52/I51))) -> 0.6666666667 | K51: =IF(J51="","",(IF(J51<'BD1'!$E$76,'BD1'!$G$75,IF(J51<'BD1'!$E$77,'BD1'!$G$76,'BD1'!$G$77)))) -> ACEPTABLE | M51: P | N51: 19300 | O51: =IF(ISERROR(IF(N52="","",IF((N52/N51)>1,1,N52/N51))),"",IF(N52="","",IF((N52/N51)>1,1,N52/N51))) -> 0.01082901554 | P51: =IF(O51="","",(IF(O51<'BD1'!$E$76,'BD1'!$G$75,IF(O51<'BD1'!$E$77,'BD1'!$G$76,'BD1'!$G$77)))) -> ALERTA | R51: P | S51: 147 | T51: =IF(ISERROR(IF(S52="","",IF((S52/S51)>1,1,S52/S51))),"",IF(S52="","",IF((S52/S51)>1,1,S52/S51))) -> 1 | U51: =IF(T51="","",(IF(T51<'BD1'!$E$76,'BD1'!$G$75,IF(T51<'BD1'!$E$77,'BD1'!$G$76,'BD1'!$G$77)))) -> SATISFACTORIO
H52: E | I52: 2 | M52: E | N52: 209 | R52: E | S52: 147
C53: Mejor_movilidad_para_todos | D53: Aumentar en 5% el número total de viajes en Transporte Público (LB= 43%) | E53: Meta N° 22: Mejorar Y/O Mantener 7500 Paraderos Del Componente Zonal Con Acciones De Mantenimiento Preventivo, Correctivo Y De Mejoramiento De Las Condiciones Físicas | F53: 7000 | H53: P | I53: 5 | J53: =IF(ISERROR(IF(I54="","",IF((I54/I53)>1,1,I54/I53))),"",IF(I54="","",IF((I54/I53)>1,1,I54/I53))) -> 0 | K53: =IF(J53="","",(IF(J53<'BD1'!$E$76,'BD1'!$G$75,IF(J53<'BD1'!$E$77,'BD1'!$G$76,'BD1'!$G$77)))) -> ALERTA | M53: P | N53: 7000 | O53: =IF(ISERROR(IF(N54="","",IF((N54/N53)>1,1,N54/N53))),"",IF(N54="","",IF((N54/N53)>1,1,N54/N53))) -> 0 | P53: =IF(O53="","",(IF(O53<'BD1'!$E$76,'BD1'!$G$75,IF(O53<'BD1'!$E$77,'BD1'!$G$76,'BD1'!$G$77)))) -> ALERTA | R53: P | S53: 1800 | T53: =IF(ISERROR(IF(S54="","",IF((S54/S53)>1,1,S54/S53))),"",IF(S54="","",IF((S54/S53)>1,1,S54/S53))) -> 0.2205555556 | U53: =IF(T53="","",(IF(T53<'BD1'!$E$76,'BD1'!$G$75,IF(T53<'BD1'!$E$77,'BD1'!$G$76,'BD1'!$G$77)))) -> ALERTA
H54: E | I54: 0 | M54: E | N54: 0 | R54: E | S54: 397
H55: P | J55: =IF(ISERROR(IF(I56="","",IF((I56/I55)>1,1,I56/I55))),"",IF(I56="","",IF((I56/I55)>1,1,I56/I55))) ->  | K55: =IF(J55="","",(IF(J55<'BD1'!$E$76,'BD1'!$G$75,IF(J55<'BD1'!$E$77,'BD1'!$G$76,'BD1'!$G$77)))) ->  | M55: P | O55: =IF(ISERROR(IF(N56="","",IF((N56/N55)>1,1,N56/N55))),"",IF(N56="","",IF((N56/N55)>1,1,N56/N55))) ->  | P55: =IF(O55="","",(IF(O55<'BD1'!$E$76,'BD1'!$G$75,IF(O55<'BD1'!$E$77,'BD1'!$G$76,'BD1'!$G$77)))) ->  | R55: P | T55: =IF(ISERROR(IF(S56="","",IF((S56/S55)>1,1,S56/S55))),"",IF(S56="","",IF((S56/S55)>1,1,S56/S55))) ->  | U55: =IF(T55="","",(IF(T55<'BD1'!$E$76,'BD1'!$G$75,IF(T55<'BD1'!$E$77,'BD1'!$G$76,'BD1'!$G$77)))) -> 
H56: E | M56: E | R56: E
H57: P | J57: =IF(ISERROR(IF(I58="","",IF((I58/I57)>1,1,I58/I57))),"",IF(I58="","",IF((I58/I57)>1,1,I58/I57))) ->  | K57: =IF(J57="","",(IF(J57<'BD1'!$E$76,'BD1'!$G$75,IF(J57<'BD1'!$E$77,'BD1'!$G$76,'BD1'!$G$77)))) ->  | M57: P | O57: =IF(ISERROR(IF(N58="","",IF((N58/N57)>1,1,N58/N57))),"",IF(N58="","",IF((N58/N57)>1,1,N58/N57))) ->  | P57: =IF(O57="","",(IF(O57<'BD1'!$E$76,'BD1'!$G$75,IF(O57<'BD1'!$E$77,'BD1'!$G$76,'BD1'!$G$77)))) ->  | R57: P | T57: =IF(ISERROR(IF(S58="","",IF((S58/S57)>1,1,S58/S57))),"",IF(S58="","",IF((S58/S57)>1,1,S58/S57))) ->  | U57: =IF(T57="","",(IF(T57<'BD1'!$E$76,'BD1'!$G$75,IF(T57<'BD1'!$E$77,'BD1'!$G$76,'BD1'!$G$77)))) -> 
H58: E | M58: E | R58: E
H59: P | J59: =IF(ISERROR(IF(I60="","",IF((I60/I59)>1,1,I60/I59))),"",IF(I60="","",IF((I60/I59)>1,1,I60/I59))) ->  | K59: =IF(J59="","",(IF(J59<'BD1'!$E$76,'BD1'!$G$75,IF(J59<'BD1'!$E$77,'BD1'!$G$76,'BD1'!$G$77)))) ->  | M59: P | O59: =IF(ISERROR(IF(N60="","",IF((N60/N59)>1,1,N60/N59))),"",IF(N60="","",IF((N60/N59)>1,1,N60/N59))) ->  | P59: =IF(O59="","",(IF(O59<'BD1'!$E$76,'BD1'!$G$75,IF(O59<'BD1'!$E$77,'BD1'!$G$76,'BD1'!$G$77)))) ->  | R59: P | T59: =IF(ISERROR(IF(S60="","",IF((S60/S59)>1,1,S60/S59))),"",IF(S60="","",IF((S60/S59)>1,1,S60/S59))) ->  | U59: =IF(T59="","",(IF(T59<'BD1'!$E$76,'BD1'!$G$75,IF(T59<'BD1'!$E$77,'BD1'!$G$76,'BD1'!$G$77)))) -> 
H60: E | M60: E | R60: E
H61: P | J61: =IF(ISERROR(IF(I62="","",IF((I62/I61)>1,1,I62/I61))),"",IF(I62="","",IF((I62/I61)>1,1,I62/I61))) ->  | K61: =IF(J61="","",(IF(J61<'BD1'!$E$76,'BD1'!$G$75,IF(J61<'BD1'!$E$77,'BD1'!$G$76,'BD1'!$G$77)))) ->  | M61: P | O61: =IF(ISERROR(IF(N62="","",IF((N62/N61)>1,1,N62/N61))),"",IF(N62="","",IF((N62/N61)>1,1,N62/N61))) ->  | P61: =IF(O61="","",(IF(O61<'BD1'!$E$76,'BD1'!$G$75,IF(O61<'BD1'!$E$77,'BD1'!$G$76,'BD1'!$G$77)))) ->  | R61: P | T61: =IF(ISERROR(IF(S62="","",IF((S62/S61)>1,1,S62/S61))),"",IF(S62="","",IF((S62/S61)>1,1,S62/S61))) ->  | U61: =IF(T61="","",(IF(T61<'BD1'!$E$76,'BD1'!$G$75,IF(T61<'BD1'!$E$77,'BD1'!$G$76,'BD1'!$G$77)))) -> 
H62: E | M62: E | R62: E
H63: P | J63: =IF(ISERROR(IF(I64="","",IF((I64/I63)>1,1,I64/I63))),"",IF(I64="","",IF((I64/I63)>1,1,I64/I63))) ->  | K63: =IF(J63="","",(IF(J63<'BD1'!$E$76,'BD1'!$G$75,IF(J63<'BD1'!$E$77,'BD1'!$G$76,'BD1'!$G$77)))) ->  | M63: P | O63: =IF(ISERROR(IF(N64="","",IF((N64/N63)>1,1,N64/N63))),"",IF(N64="","",IF((N64/N63)>1,1,N64/N63))) ->  | P63: =IF(O63="","",(IF(O63<'BD1'!$E$76,'BD1'!$G$75,IF(O63<'BD1'!$E$77,'BD1'!$G$76,'BD1'!$G$77)))) ->  | R63: P | T63: =IF(ISERROR(IF(S64="","",IF((S64/S63)>1,1,S64/S63))),"",IF(S64="","",IF((S64/S63)>1,1,S64/S63))) ->  | U63: =IF(T63="","",(IF(T63<'BD1'!$E$76,'BD1'!$G$75,IF(T63<'BD1'!$E$77,'BD1'!$G$76,'BD1'!$G$77)))) -> 
H64: E | M64: E | R64: E
H65: P | J65: =IF(ISERROR(IF(I66="","",IF((I66/I65)>1,1,I66/I65))),"",IF(I66="","",IF((I66/I65)>1,1,I66/I65))) ->  | K65: =IF(J65="","",(IF(J65<'BD1'!$E$76,'BD1'!$G$75,IF(J65<'BD1'!$E$77,'BD1'!$G$76,'BD1'!$G$77)))) ->  | M65: P | O65: =IF(ISERROR(IF(N66="","",IF((N66/N65)>1,1,N66/N65))),"",IF(N66="","",IF((N66/N65)>1,1,N66/N65))) ->  | P65: =IF(O65="","",(IF(O65<'BD1'!$E$76,'BD1'!$G$75,IF(O65<'BD1'!$E$77,'BD1'!$G$76,'BD1'!$G$77)))) ->  | R65: P | T65: =IF(ISERROR(IF(S66="","",IF((S66/S65)>1,1,S66/S65))),"",IF(S66="","",IF((S66/S65)>1,1,S66/S65))) ->  | U65: =IF(T65="","",(IF(T65<'BD1'!$E$76,'BD1'!$G$75,IF(T65<'BD1'!$E$77,'BD1'!$G$76,'BD1'!$G$77)))) -> 
H66: E | M66: E | R66: E
H67: P | J67: =IF(ISERROR(IF(I68="","",IF((I68/I67)>1,1,I68/I67))),"",IF(I68="","",IF((I68/I67)>1,1,I68/I67))) ->  | K67: =IF(J67="","",(IF(J67<'BD1'!$E$76,'BD1'!$G$75,IF(J67<'BD1'!$E$77,'BD1'!$G$76,'BD1'!$G$77)))) ->  | M67: P | O67: =IF(ISERROR(IF(N68="","",IF((N68/N67)>1,1,N68/N67))),"",IF(N68="","",IF((N68/N67)>1,1,N68/N67))) ->  | P67: =IF(O67="","",(IF(O67<'BD1'!$E$76,'BD1'!$G$75,IF(O67<'BD1'!$E$77,'BD1'!$G$76,'BD1'!$G$77)))) ->  | R67: P | T67: =IF(ISERROR(IF(S68="","",IF((S68/S67)>1,1,S68/S67))),"",IF(S68="","",IF((S68/S67)>1,1,S68/S67))) ->  | U67: =IF(T67="","",(IF(T67<'BD1'!$E$76,'BD1'!$G$75,IF(T67<'BD1'!$E$77,'BD1'!$G$76,'BD1'!$G$77)))) -> 
H68: E | M68: E | R68: E
H69: P | J69: =IF(ISERROR(IF(I70="","",IF((I70/I69)>1,1,I70/I69))),"",IF(I70="","",IF((I70/I69)>1,1,I70/I69))) ->  | K69: =IF(J69="","",(IF(J69<'BD1'!$E$76,'BD1'!$G$75,IF(J69<'BD1'!$E$77,'BD1'!$G$76,'BD1'!$G$77)))) ->  | M69: P | O69: =IF(ISERROR(IF(N70="","",IF((N70/N69)>1,1,N70/N69))),"",IF(N70="","",IF((N70/N69)>1,1,N70/N69))) ->  | P69: =IF(O69="","",(IF(O69<'BD1'!$E$76,'BD1'!$G$75,IF(O69<'BD1'!$E$77,'BD1'!$G$76,'BD1'!$G$77)))) ->  | R69: P | T69: =IF(ISERROR(IF(S70="","",IF((S70/S69)>1,1,S70/S69))),"",IF(S70="","",IF((S70/S69)>1,1,S70/S69))) ->  | U69: =IF(T69="","",(IF(T69<'BD1'!$E$76,'BD1'!$G$75,IF(T69<'BD1'!$E$77,'BD1'!$G$76,'BD1'!$G$77)))) -> 
H70: E | M70: E | R70: E
H71: P | J71: =IF(ISERROR(IF(I72="","",IF((I72/I71)>1,1,I72/I71))),"",IF(I72="","",IF((I72/I71)>1,1,I72/I71))) ->  | K71: =IF(J71="","",(IF(J71<'BD1'!$E$76,'BD1'!$G$75,IF(J71<'BD1'!$E$77,'BD1'!$G$76,'BD1'!$G$77)))) ->  | M71: P | O71: =IF(ISERROR(IF(N72="","",IF((N72/N71)>1,1,N72/N71))),"",IF(N72="","",IF((N72/N71)>1,1,N72/N71))) ->  | P71: =IF(O71="","",(IF(O71<'BD1'!$E$76,'BD1'!$G$75,IF(O71<'BD1'!$E$77,'BD1'!$G$76,'BD1'!$G$77)))) ->  | R71: P | T71: =IF(ISERROR(IF(S72="","",IF((S72/S71)>1,1,S72/S71))),"",IF(S72="","",IF((S72/S71)>1,1,S72/S71))) ->  | U71: =IF(T71="","",(IF(T71<'BD1'!$E$76,'BD1'!$G$75,IF(T71<'BD1'!$E$77,'BD1'!$G$76,'BD1'!$G$77)))) -> 
H72: E | M72: E | R72: E
C75: CAUSAS
C76: Causa | D76: 1 | E76: CAUSA RELACIONADA CON: | F76: Gestión_Contractual | I76: CAUSA: | J76: OTRA | R76: AFECTA EN EL CICLO PHVA
H77: SELECCIONE AQUÍ ↑ | Q77: SELECCIONE AQUÍ ↑
E78: DESCRIPCIÓN | L78: ACCIONES PROPUESTAS
E79: Las metas 5, 17, 20 y 22, presentaron un estado de alerta, debido a que el avance en la Gestión Contractual al corte 30 de junio de 2017 fue del 0%. Dicha situación se presenta ya que los procesos de contratación aprobados se encuentran en proceso de ejecución o se ejecutaran en el transcurso de la vigencia 2017. Meta 5: Se esta construyendo el estudio técnico y económico del contrato MEDIACOM Meta 17: En curso proceso de licitación de TMSA que incluye la actividad de adecuación de puertas a biarticulado. Se entregaron los parámetros para diseño de proyectos en los tiempos pactados. El IDU informó que va a licitar el diseño y construcción de 15 estaciones y diseño de 23 estaciones. El IDU debe adjudicar en Agosto 17. El IDU está licitando un contrato de estudios y diseños de patio y portal del Sur y construcción del patio y estudios y diseños de Patio Américas (debe adjudicar ago./17). Meta 20: Se están elaborando pliegos para un contrato de menor cuantía desde TransMilenio para adecuar los cicloparqueaderos existentes y paralelamente se viene trabajando con la Dirección Técnica de Proyectos del IDU para realizar un contrato de diseño y construcción de nuevos y/o ampliaciones de cicloparqueaderos del Sistema y su respectiva interventoría. Meta 22: Los recursos no se encontraban asignados en el Plan de Contratación. La ejecución de un contrato y su interventoría depende del IDU y se ha venido efectuando gestión con esta entidad para agilizar el proceso.. | L79: Teniendo en cuenta los argumentos expuestos en la descripción, no aplica la formulación de acciones correctivas.
C82: Causa | D82: 2 | E82: CAUSA RELACIONADA CON: | F82: Gestión_Contractual | I82: CAUSA: | J82: OTRA | R82: AFECTA EN EL CICLO PHVA
H83: SELECCIONE AQUÍ ↑ | Q83: SELECCIONE AQUÍ ↑
E84: DESCRIPCIÓN | L84: ACCIONES PROPUESTAS
E85: Las metas 4 y 11 presentan una ejecución del 28,6% respectivamente, la meta 7 un 25% y la meta 12 un 33% de avance en el periodo evaluado . Las áreas reportan las siguientes situaciones al respecto: Meta 4: . Se encuentra en proceso de elaboración del pliego de condiciones para la realización de un convenio interadministrativo con la Policía Metropolitana de Bogotá por el valor de $5.000.000.000 Se tiene proyectado eliminar el requerimiento "Suscribir convenio de cooperación con la Policía Nacional y/o Secretaria Distrital de Seguridad, Convivencia y Justicia, para fortalecer la seguridad y minimizar la evasión de los usuarios del Sistema TransMilenio." por el valor de $2.000.000.000. Los recursos se destinaran para la contratación de un Convenio en el cual se realizaran unas pruebas piloto de BCAs y puertas de estaciones para mitigar la evasión del sistema. Meta 7: Se reportaron 8 contrataciones de las cuales ya se firmaron 2 Apoyo a la subgerencia, 1 se encuentra en firma de Gerencia General de TM, 1 se realizara anulación y los 4 restantes se encuentran en proceso Meta 11: De acuerdo con el plan de adquisiciones, se encuentran en ejecución dos (2) contratos a saber: Interventoría al SIRCI y Adición al Contrato 288-2016 (Coordinador SIRCI). Así mismo, siete (7) procesos contractuales se encuentran en etapa de planeación para apertura de proceso en SECOP. Meta 12: De acuerdo con lo establecido en el Plan anual de adquisiciones, los dos (2) compromisos a cargo de la OAP relacionados con las contrataciones asociadas a la meta proyecto de inversión, están programados para iniciar en julio y septiembre de 2017. Se reporta un compromiso ejecutado, a cargo de la Dirección de Modos Alternativos, que gestionó un contrato de prestación de servicios con cargo a esta meta de inversión. | L85: Teniendo en cuenta los argumentos expuestos en la descripción, no aplica la formulación de acciones correctivas.
C88: Causa | D88: 3 | E88: CAUSA RELACIONADA CON: | F88: Gestión_Contractual | I88: CAUSA: | J88: OTRA | R88: AFECTA EN EL CICLO PHVA | T88: =IF(ISERROR(INDEX('BD1'!$N$56:$P$70,MATCH(J88,INDIRECT(F88),0),MATCH(F88,'BD1'!$N$55:$P$55,0))),"",(INDEX('BD1'!$N$56:$P$70,MATCH(J88,INDIRECT(F88),0),MATCH(F88,'BD1'!$N$55:$P$55,0)))) -> -
H89: SELECCIONE AQUÍ ↑ | Q89: SELECCIONE AQUÍ ↑
E90: DESCRIPCIÓN | L90: ACCIONES PROPUESTAS
E91: La metas 3, 9,13,14,15, 16 y 19 presentaron un avance de ejecución entre el 50% y el 62,5% al cierre del periodo evaluado. Meta 3: 1). El requerimiento "contratar la estructuración de un nuevo programa de capacitación de ingreso y actualización de los operadores del Sistema gestionado" por el valor de $400.000.000 se dará inicio aproximadamente en el mes de agosto; debido que este proceso depende del resultado del CTO345-16. 2) Se tiene proyectado eliminar el requerimiento "Adquisición y/o mantenimiento y/o reparación de equipos de medición (radar, alcoholímetro, alineadores de luces) para la Dirección Técnica de Seguridad" por el valor de $52.000.000. Debido que esta necesidad se incluyó en la estructuración del pliego de condiciones de la interventoría y empresa de análisis de accidentes. Por lo tanto los recursos serán trasladados para la meta de "Diseñar e implementar 1 plan para reducir la problemática de la evasión en el sistema" Meta 9: El proceso de contratación de 5 ingenieros más para apoyar las actividades asociadas a esta meta, pese a que se encontraba programado para iniciar en el mes de junio sufrió retrasos y se contrataron en el mes de julio de 2017. Meta 13: La meta se estableció de conformidad con la Cláusula décima del contrato IDU 1630 de 2015 con acta de inicio del 04 de Septiembre de 2015 cuyo objeto es "Desarrollar los estudios, diseños y construcción de obra civil, suministro, montaje y puesta en funcionamiento y mantenimiento del componente electromecánico de un sistema de transporte de pasajeros por cable aéreo tipo monocable desenganchable, en la localidad de Ciudad Bolívar en Bogotá D.C.", el plazo contractual para el desarrollo del objeto era de 35 MESES en los que se incluían los 12 últimos meses de mantenimiento, lo que implicaba una entrada en operación del Sistema de Cable Aéreo en Agosto de 2017. Sin embargo, debido a que el IDU no pudo cumplir con el cronograma de entrega de predios, el contratista solicitó una prórroga en la etapa de construcción de 6 meses y 21 días, lo cual como consecuencia generó una modificación en la entrada en operación del Sistema de transporte por Cable para junio de 2018. Debido a lo expuesto anteriormente, la dirección de modos alternativos realizó el ajuste respectivo al cronograma de actividades requeridas durante la vigencia 2017, estableciendo como prioridad la contratación de dos profesionales que lideren la estructuración TMSA-381-2016 “REALIZAR LA ESTRUCTURACIÓN TÉCNICA, LEGAL Y FINANCIERA PARA LA OPERACIÓN DEL SISTEMA TRANSMICABLE DE CIUDAD BOLÍVAR, EVALUANDO LA FACTIBILIDAD DE SU INTEGRACIÓN CON EL SISTEMA TRANSMILENIO”, a la fecha se ha realizado la contratación de una de las personas y se encuentra en proceso de selección y contratación el segundo profesional. | L91: Teniendo en cuenta los argumentos expuestos en la descripción, no aplica la formulación de acciones correctivas.
C94: Causa | D94: 4 | E94: CAUSA RELACIONADA CON: | F94: Gestión_Contractual | I94: CAUSA: | J94: OTRA | R94: AFECTA EN EL CICLO PHVA | T94: =IF(ISERROR(INDEX('BD1'!$N$56:$P$70,MATCH(J94,INDIRECT(F94),0),MATCH(F94,'BD1'!$N$55:$P$55,0))),"",(INDEX('BD1'!$N$56:$P$70,MATCH(J94,INDIRECT(F94),0),MATCH(F94,'BD1'!$N$55:$P$55,0)))) -> -
H95: SELECCIONE AQUÍ ↑ | Q95: SELECCIONE AQUÍ ↑
E96: DESCRIPCIÓN | L96: ACCIONES PROPUESTAS
E97: Continuación de la anterior: Meta 14: En este momento se adelanta el proceso de licitación pública TMSA LP-03-2017 con el objeto de contratar el apoyo técnico y logístico al control de la operación en los 9 portales del Sistema, que derivará en la suscripción de 9 contratos para prestar ese servicio a la entidad. de acuerdo con el cronograma de la licitación, la audiencia de adjudicación se llevará a cabo el 19 de julio. La razón de la no suscripción de los contratos a la fecha, obedece a que el proceso de licitación se adelantó a partir de la fecha de aprobación de recursos por comité de contratación del 28 de abril de 2017 y posterior aprobación del proyecto en comité de convenio 1292-2016 con la Secretaría de Movilidad, del día 2 de junio. Adicionalmente, se adelantan los trámites pre contractuales para suscribir 1 contrato de prestación de servicios profesionales especializados para el área de programación. La razón de la no suscripción del contrato a la fecha, obedece a que se ha requerido la búsqueda de perfiles técnicos especializados, de acuerdo con las especificaciones determinadas en los estudios técnicos. Meta 15: En el segundo trimestre de 2017 se aprobaron adiciones de presupuesto que representaron 28 nuevos procesos de contratación, opera un total de 86, los cuales se encuentran en el siguiente estado: Finalizados (firmado) 45. Proceso de contratación: 31 Elaboración de estudio técnico: 4 Búsqueda de posibles contratistas: 6 El mayor inconveniente presentado es la demora del proceso interno de contratación, llegando a tener un promedio de 56 días hábiles de duración. Meta 16: Admón.: Para efectos del pago de servicios públicos, no se realiza la suscripción de ningún contrato por su dinámica. A la fecha no sea realizado afectación presupuestal en los recursos asignados al tema de Reversión. En el periodo se suscribió el Contrato No. 294 de 2017 previsto para dar cumplimiento al Acuerdo 334 de 2008. Modos Se realiza adición al contrato de la vigencia 2016, el nuevo proceso de contratación se encuentra en curso Meta 19: Se adjudicó el diseño modular de patios, en ejecución. En la vigencia 2017 se hará la adquisición predial de dos lotes para construcción de patios zonales. Se contrató por medio de convenio con la CAF el proyecto: Estructuración del plan de implementación de patios y terminales de la operación zonal de TransMilenio –componente infraestructura y transporte – En ejecución. Se solicitó la compra del predio El Gaco | L97: Teniendo en cuenta los argumentos expuestos en la descripción, no aplica la formulación de acciones correctivas.
C100: Causa | D100: 5 | E100: CAUSA RELACIONADA CON: | F100: Gestión_Contractual | I100: CAUSA: | J100: OTRA | R100: AFECTA EN EL CICLO PHVA | T100: =IF(ISERROR(INDEX('BD1'!$N$56:$P$70,MATCH(J100,INDIRECT(F100),0),MATCH(F100,'BD1'!$N$55:$P$55,0))),"",(INDEX('BD1'!$N$56:$P$70,MATCH(J100,INDIRECT(F100),0),MATCH(F100,'BD1'!$N$55:$P$55,0)))) -> -
H101: SELECCIONE AQUÍ ↑ | Q101: SELECCIONE AQUÍ ↑
E102: DESCRIPCIÓN | L102: ACCIONES PROPUESTAS
E103: Las metas 2,6,10y 21 presentan a la fecha del periodo evaluado un porcentaje de ejecución Aceptable | L103: Teniendo en cuenta los argumentos expuestos en la descripción, no aplica la formulación de acciones correctivas.
C106: Causa | D106: 6 | E106: CAUSA RELACIONADA CON: | F106: Gestión_Contractual | I106: CAUSA: | J106: OTRA | R106: AFECTA EN EL CICLO PHVA | T106: =IF(ISERROR(INDEX('BD1'!$N$56:$P$70,MATCH(J106,INDIRECT(F106),0),MATCH(F106,'BD1'!$N$55:$P$55,0))),"",(INDEX('BD1'!$N$56:$P$70,MATCH(J106,INDIRECT(F106),0),MATCH(F106,'BD1'!$N$55:$P$55,0)))) -> -
H107: SELECCIONE AQUÍ ↑ | Q107: SELECCIONE AQUÍ ↑
E108: DESCRIPCIÓN | L108: ACCIONES PROPUESTAS
E109: La meta 1 8 no tiene Gestión Contractual asociada debido a que las actividades se realizan por intermedio del IDU, entidad encargada de la contratación de los estudios, diseños y construcción. | L109: Teniendo en cuenta los argumentos expuestos en la descripción, no aplica la formulación de acciones correctivas.
C112: Causa | D112: 7 | E112: CAUSA RELACIONADA CON: | F112: Gestión_Presupuestal | I112: CAUSA: | J112: OTRA | R112: AFECTA EN EL CICLO PHVA | T112: =IF(ISERROR(INDEX('BD1'!$N$56:$P$70,MATCH(J112,INDIRECT(F112),0),MATCH(F112,'BD1'!$N$55:$P$55,0))),"",(INDEX('BD1'!$N$56:$P$70,MATCH(J112,INDIRECT(F112),0),MATCH(F112,'BD1'!$N$55:$P$55,0)))) -> -
H113: SELECCIONE AQUÍ ↑ | Q113: SELECCIONE AQUÍ ↑
E114: DESCRIPCIÓN | L114: ACCIONES PROPUESTAS
E115: Las metas 5, 17, 20, 22 presentaron una ejecución del 0% de la Gestión Presupuestal lo cual es congruente con el avance reportado en la Gestión Contractual. Dicha situación se presentó ya que los procesos de contratación aprobados se encuentran en proceso de ejecución o se ejecutaran en el transcurso de la vigencia 2017. | L115: Teniendo en cuenta los argumentos expuestos en la descripción, no aplica la formulación de acciones correctivas.
C118: Causa | D118: 8 | E118: CAUSA RELACIONADA CON: | F118: Gestión_Presupuestal | I118: CAUSA: | J118: OTRA | R118: AFECTA EN EL CICLO PHVA | T118: =IF(ISERROR(INDEX('BD1'!$N$56:$P$70,MATCH(J118,INDIRECT(F118),0),MATCH(F118,'BD1'!$N$55:$P$55,0))),"",(INDEX('BD1'!$N$56:$P$70,MATCH(J118,INDIRECT(F118),0),MATCH(F118,'BD1'!$N$55:$P$55,0)))) -> -
H119: SELECCIONE AQUÍ ↑ | Q119: SELECCIONE AQUÍ ↑
E120: DESCRIPCIÓN | L120: ACCIONES PROPUESTAS
E121: Las metas 2,3, 4, 6, 7, 8, 9, 11, 14, 15, 16, 18, 19, 21 presentaron un avance superior a 0% e inferior a 51% ya que los procesos de contratación aprobados se encuentran en ejecución o se ejecutaran en el transcurso de la vigencia 2017 , para la meta 8 a la fecha se ha realizado la remuneración del 100% de los agentes del Sistema, realizando la ejecución de recursos conforme al número de semanas transcurridas en el año 2017. | L121: Teniendo en cuenta los argumentos expuestos en la descripción, no aplica la formulación de acciones correctivas.
C124: Causa | D124: 9 | E124: CAUSA RELACIONADA CON: | F124: Gestión_Presupuestal | I124: CAUSA: | J124: OTRA | R124: AFECTA EN EL CICLO PHVA | T124: =IF(ISERROR(INDEX('BD1'!$N$56:$P$70,MATCH(J124,INDIRECT(F124),0),MATCH(F124,'BD1'!$N$55:$P$55,0))),"",(INDEX('BD1'!$N$56:$P$70,MATCH(J124,INDIRECT(F124),0),MATCH(F124,'BD1'!$N$55:$P$55,0)))) -> -
H125: SELECCIONE AQUÍ ↑ | Q125: SELECCIONE AQUÍ ↑
E126: DESCRIPCIÓN | L126: ACCIONES PROPUESTAS
E127: Las metas 10, 12 y 13 presentan a la fecha del periodo evaluado un porcentaje de ejecución Aceptable | L127: Teniendo en cuenta los argumentos expuestos en la descripción, no aplica la formulación de acciones correctivas.
C130: Causa | D130: 10 | E130: CAUSA RELACIONADA CON: | F130: Gestión_Fisica | I130: CAUSA: | J130: OTRA | R130: AFECTA EN EL CICLO PHVA | T130: =IF(ISERROR(INDEX('BD1'!$N$56:$P$70,MATCH(J130,INDIRECT(F130),0),MATCH(F130,'BD1'!$N$55:$P$55,0))),"",(INDEX('BD1'!$N$56:$P$70,MATCH(J130,INDIRECT(F130),0),MATCH(F130,'BD1'!$N$55:$P$55,0)))) -> -
H131: SELECCIONE AQUÍ ↑ | Q131: SELECCIONE AQUÍ ↑
E132: DESCRIPCIÓN | L132: ACCIONES PROPUESTAS
E133: Las metas 7, 12, 17 y 19 presentaron un estado de alerta, debido a que el avance en la Gestión Física al corte 30 de junio de 2017 fue del 0%, según lo indicado por las áreas responsables. Los motivos expuestos son los siguientes: Meta 7: A corte del 30 de junio, no se aplicó ninguna medición. Se realizo la contratación de 2 apoyos los cuales ya se encuentran en ejecución y el contrato interactivo se encuentra para firma de Gerente General y posterior puesta en marcha del contrato Meta 12: La verificación del cumplimiento de la meta es anual (durante 2017 se realizará la verificación de la reducción de emisiones correspondiente a 2016). Meta 17: En curso proceso de licitación de TMSA que incluye la actividad de adecuación de puertas a biarticulado. Se entregaron los parámetros para diseño de proyectos en los tiempos pactados. El IDU informó que va a licitar el diseño y construcción de 15 estaciones y diseño de 23 estaciones. El IDU debe adjudicar en Ago 17. El IDU está licitando un contrato de estudios y diseños de patio y portal del Sur y construcción del patio y estudios y diseños de Patio Américas (debe adjudicar ago./17). Meta 19: Se adjudicó el diseño modular de patios, en ejecución. En la vigencia 2017 se hará la adquisición predial de dos lotes para construcción de patios zonales. Se contrató por medio de convenio con la CAF el proyecto: Estructuración del plan de implementación de patios y terminales de la operación zonal de TransMilenio –componente infraestructura y transporte – En ejecución. Se solicitó la compra del predio El Gaco. | L133: Teniendo en cuenta los argumentos expuestos en la descripción, no aplica la formulación de acciones correctivas.
C136: Causa | D136: 11 | E136: CAUSA RELACIONADA CON: | F136: Gestión_Fisica | I136: CAUSA: | J136: OTRA | R136: AFECTA EN EL CICLO PHVA | T136: =IF(ISERROR(INDEX('BD1'!$N$56:$P$70,MATCH(J136,INDIRECT(F136),0),MATCH(F136,'BD1'!$N$55:$P$55,0))),"",(INDEX('BD1'!$N$56:$P$70,MATCH(J136,INDIRECT(F136),0),MATCH(F136,'BD1'!$N$55:$P$55,0)))) -> -
H137: SELECCIONE AQUÍ ↑ | Q137: SELECCIONE AQUÍ ↑
E138: DESCRIPCIÓN | L138: ACCIONES PROPUESTAS
E139: Las metas 6, 11, 13, 18 y 22 presentan un avance de ejecución mayor a 0% e inferior al 50%, esto se debe según lo informado por los responsables de las metas a: Meta 6: Se esta llevando a cabo la primera fase, de la campaña de Cultura Ciudadana de Antievasión - ¨El Pato ¨, con la realización de acciones integrales de comunicación ATL y BTL, así mismo se viene adelantado la segunda fase de sostenimiento de la campaña anitevasión y dos 2 enfoques estratégicos dentro de los que están: Protección del sistema y corresponsabilidad . Por otro lado se esta llevando a cabo un estudio que permitan evidenciar los diferentes actitudes y percepciones referentes a cultura ciudanía. Meta 11: Corresponde al avance asociado a las metas 2017, en el cual se avanzo en lo relacionado la plataforma eficiente para la automatización de los procesos así como la ejecución de la interventoría del Sirci, y la gerencia del mismo lo cual corresponde a un 56% de avance. Meta 13: Actualmente se encuentra en proceso de desarrollo la consultoría TMSA-381-2016 “REALIZAR LA ESTRUCTURACIÓN TÉCNICA, LEGAL Y FINANCIERA PARA LA OPERACIÓN DEL SISTEMA TRANSMICABLE DE CIUDAD BOLÍVAR, EVALUANDO LA FACTIBILIDAD DE SU INTEGRACIÓN CON EL SISTEMA TRANSMILENIO”, la cual define las condiciones técnicas, legales y financieras que garantizarán la operación eficiente de las horas programadas para la etapa comercial del sistema TransMiCable y el nivel de servicio definido para las mismas. | L139: Teniendo en cuenta los argumentos expuestos en la descripción, no aplica la formulación de acciones correctivas.
C142: Causa | D142: 12 | E142: CAUSA RELACIONADA CON: | F142: Gestión_Fisica | I142: CAUSA: | J142: OTRA | R142: AFECTA EN EL CICLO PHVA | T142: =IF(ISERROR(INDEX('BD1'!$N$56:$P$70,MATCH(J142,INDIRECT(F142),0),MATCH(F142,'BD1'!$N$55:$P$55,0))),"",(INDEX('BD1'!$N$56:$P$70,MATCH(J142,INDIRECT(F142),0),MATCH(F142,'BD1'!$N$55:$P$55,0)))) -> -
H143: SELECCIONE AQUÍ ↑ | Q143: SELECCIONE AQUÍ ↑
E144: DESCRIPCIÓN | L144: ACCIONES PROPUESTAS
E145: Continua de la anterior: Meta 18: El IDU contrató durante el segundo semestre del año 2016 cuatro consultorías de estudios y diseños en una extensión de 32,93 Km. Se encuentran en licitación para estudios y diseños dos proyectos con una extensión de 40,7 Km Las consultorías contratadas por el IDU para los siguientes proyectos se encuentran en ejecución los Estudios y Diseños desde el mes de enero de 2017: 1. Troncal carrera séptima, en una extensión de 19,96 Km. 2. Extensión troncal Américas desde Puente Aranda hasta la troncal NQS, en una extensión de 2,85 Km. 3. Troncal Av. Villavicencio, en una extensión de 4,62 Km. 4. Extensión de la troncal Caracas desde Molinos hasta Yomasa, en una extensión de 5,5 Km. La etapa de Estudios y Diseños corresponde aproximadamente al 10% de la ejecución total de cada uno de los proyectos, por lo cual la meta programada para el 2017 de estos proyectos es de 3,3 Km para la construcción de nuevas troncales. Actualmente los estudios y diseños de estos proyectos presentan un avance del 25%, lo que genera un avance a la fecha de 1,27 km. Meta 22: La ejecución se ha efectuado con recursos de la vigencia anterior. El contrato actual se encontraba suspendido. | L145: Teniendo en cuenta los argumentos expuestos en la descripción, no aplica la formulación de acciones correctivas.
C148: Causa | D148: 13 | E148: CAUSA RELACIONADA CON: | F148: Gestión_Fisica | I148: CAUSA: | J148: OTRA | R148: AFECTA EN EL CICLO PHVA | T148: =IF(ISERROR(INDEX('BD1'!$N$56:$P$70,MATCH(J148,INDIRECT(F148),0),MATCH(F148,'BD1'!$N$55:$P$55,0))),"",(INDEX('BD1'!$N$56:$P$70,MATCH(J148,INDIRECT(F148),0),MATCH(F148,'BD1'!$N$55:$P$55,0)))) -> -
H149: SELECCIONE AQUÍ ↑ | Q149: SELECCIONE AQUÍ ↑
E150: DESCRIPCIÓN | L150: ACCIONES PROPUESTAS
E151: Las metas 2, 4, 8, 9, 14 y 15, presentan un estado de alerta sin embargo se han desarrollado de acuerdo a lo planeado según lo informado por los responsables de las mismas. | L151: Teniendo en cuenta los argumentos expuestos en la descripción, no aplica la formulación de acciones correctivas.
C154: Causa | D154: 14 | E154: CAUSA RELACIONADA CON: | F154: Gestión_Fisica | I154: CAUSA: | J154: OTRA | R154: AFECTA EN EL CICLO PHVA | T154: =IF(ISERROR(INDEX('BD1'!$N$56:$P$70,MATCH(J154,INDIRECT(F154),0),MATCH(F154,'BD1'!$N$55:$P$55,0))),"",(INDEX('BD1'!$N$56:$P$70,MATCH(J154,INDIRECT(F154),0),MATCH(F154,'BD1'!$N$55:$P$55,0)))) -> -
H155: SELECCIONE AQUÍ ↑ | Q155: SELECCIONE AQUÍ ↑
E156: DESCRIPCIÓN | L156: ACCIONES PROPUESTAS
E157: Las metas 3, 5, 10, 16, 20 y 21 presentan a la fecha del periodo evaluado un porcentaje de ejecución Aceptable | L157: Teniendo en cuenta los argumentos expuestos en la descripción, no aplica la formulación de acciones correctivas.
C160: Causa | D160: 15 | E160: CAUSA RELACIONADA CON: | I160: CAUSA: | R160: AFECTA EN EL CICLO PHVA | T160: =IF(ISERROR(INDEX('BD1'!$N$56:$P$70,MATCH(J160,INDIRECT(F160),0),MATCH(F160,'BD1'!$N$55:$P$55,0))),"",(INDEX('BD1'!$N$56:$P$70,MATCH(J160,INDIRECT(F160),0),MATCH(F160,'BD1'!$N$55:$P$55,0)))) -> 
H161: SELECCIONE AQUÍ ↑ | Q161: SELECCIONE AQUÍ ↑
E162: DESCRIPCIÓN | L162: ACCIONES PROPUESTAS
C166: Causa | D166: 16 | E166: CAUSA RELACIONADA CON: | I166: CAUSA: | R166: AFECTA EN EL CICLO PHVA | T166: =IF(ISERROR(INDEX('BD1'!$N$56:$P$70,MATCH(J166,INDIRECT(F166),0),MATCH(F166,'BD1'!$N$55:$P$55,0))),"",(INDEX('BD1'!$N$56:$P$70,MATCH(J166,INDIRECT(F166),0),MATCH(F166,'BD1'!$N$55:$P$55,0)))) -> 
H167: SELECCIONE AQUÍ ↑ | Q167: SELECCIONE AQUÍ ↑
E168: DESCRIPCIÓN | L168: ACCIONES PROPUESTAS
C172: Causa | D172: 17 | E172: CAUSA RELACIONADA CON: | I172: CAUSA: | R172: AFECTA EN EL CICLO PHVA | T172: =IF(ISERROR(INDEX('BD1'!$N$56:$P$70,MATCH(J172,INDIRECT(F172),0),MATCH(F172,'BD1'!$N$55:$P$55,0))),"",(INDEX('BD1'!$N$56:$P$70,MATCH(J172,INDIRECT(F172),0),MATCH(F172,'BD1'!$N$55:$P$55,0)))) -> 
H173: SELECCIONE AQUÍ ↑ | Q173: SELECCIONE AQUÍ ↑
E174: DESCRIPCIÓN | L174: ACCIONES PROPUESTAS
C178: Causa | D178: 18 | E178: CAUSA RELACIONADA CON: | I178: CAUSA: | R178: AFECTA EN EL CICLO PHVA | T178: =IF(ISERROR(INDEX('BD1'!$N$56:$P$70,MATCH(J178,INDIRECT(F178),0),MATCH(F178,'BD1'!$N$55:$P$55,0))),"",(INDEX('BD1'!$N$56:$P$70,MATCH(J178,INDIRECT(F178),0),MATCH(F178,'BD1'!$N$55:$P$55,0)))) -> 
H179: SELECCIONE AQUÍ ↑ | Q179: SELECCIONE AQUÍ ↑
E180: DESCRIPCIÓN | L180: ACCIONES PROPUESTAS
C186: PILAR_2 | E186: =IF(ISERROR(INDEX('BD1'!$B$56:$H$56,1,MATCH(C186,'BD1'!$B$55:$H$55,0))),"",(INDEX('BD1'!$B$56:$H$56,1,MATCH(C186,'BD1'!$B$55:$H$55,0)))) -> Democracia Urbana
C188: PROGRAMA | D188: Meta Plan de Desarrollo | E188: Meta del proyecto de Inversión (Entidad) | F188: Presupuesto meta proyecto de Inversión (Entidad) | H188: GESTIÓN CONTRACTUAL | M188: GESTIÓN PRESUPUESTAL (CIFRAS MILLONES DE PESOS) | R188: GESTIÓN FÍSICA
H189: AVANCE | J189: EJEC / PROG | M189: AVANCE | O189: EJEC / PROG | R189: AVANCE | T189: EJEC / PROG
C190: Transparencia_gestion_publica_y_servicio_al_ciudadano | D190: Mantener 80% de satisfacción en los servicios prestados por las entidades del sector movilidad | E190: Meta N° 1: Diseñar E Implementar El 100 Por Ciento De Un Esquema Operativo De Atención Al Usuario En El Sistema Zonal Y Troncal Que Informe Y Oriente Al Usuario En El Sistema, Haciendo Énfasis En Las Franjas Horarias De Mayor Afluencia | F190: 3281 | H190: P | I190: 16 | J190: =IF(ISERROR(IF(I191="","",IF((I191/I190)>1,1,I191/I190))),"",IF(I191="","",IF((I191/I190)>1,1,I191/I190))) -> 0.875 | K190: =IF(J190="","",(IF(J190<'BD1'!$E$76,'BD1'!$G$75,IF(J190<'BD1'!$E$77,'BD1'!$G$76,'BD1'!$G$77)))) -> ACEPTABLE | M190: P | N190: 3281 | O190: =IF(ISERROR(IF(N191="","",IF((N191/N190)>1,1,N191/N190))),"",IF(N191="","",IF((N191/N190)>1,1,N191/N190))) -> 0.3611703749 | P190: =IF(O190="","",(IF(O190<'BD1'!$E$76,'BD1'!$G$75,IF(O190<'BD1'!$E$77,'BD1'!$G$76,'BD1'!$G$77)))) -> ALERTA | R190: P | S190: 24 | T190: =IF(ISERROR(IF(S191="","",IF((S191/S190)>1,1,S191/S190))),"",IF(S191="","",IF((S191/S190)>1,1,S191/S190))) -> 0.625 | U190: =IF(T190="","",(IF(T190<'BD1'!$E$76,'BD1'!$G$75,IF(T190<'BD1'!$E$77,'BD1'!$G$76,'BD1'!$G$77)))) -> ALERTA
H191: E | I191: 14 | M191: E | N191: 1185 | R191: E | S191: 15
C192: Transparencia_gestion_publica_y_servicio_al_ciudadano | D192: Mantener 80% de satisfacción en los servicios prestados por las entidades del sector movilidad | E192: Meta N° 2: Diseñar E Implementar El 100 Por Ciento De Un Esquema Operativo De Atención A Las Comunidades Y Grupos De Interés En Los Componentes Zonal Y Troncal, Que Permita Atender Las Necesidades De Información, Capacitación U Orientación Que Cubra El 100% De Los Espacios Del Servicio Y Zonas De Impacto Operativo | F192: 135 | H192: P | I192: 2 | J192: =IF(ISERROR(IF(I193="","",IF((I193/I192)>1,1,I193/I192))),"",IF(I193="","",IF((I193/I192)>1,1,I193/I192))) -> 0.5 | K192: =IF(J192="","",(IF(J192<'BD1'!$E$76,'BD1'!$G$75,IF(J192<'BD1'!$E$77,'BD1'!$G$76,'BD1'!$G$77)))) -> ALERTA | M192: P | N192: 135 | O192: =IF(ISERROR(IF(N193="","",IF((N193/N192)>1,1,N193/N192))),"",IF(N193="","",IF((N193/N192)>1,1,N193/N192))) -> 0.3185185185 | P192: =IF(O192="","",(IF(O192<'BD1'!$E$76,'BD1'!$G$75,IF(O192<'BD1'!$E$77,'BD1'!$G$76,'BD1'!$G$77)))) -> ALERTA | R192: P | S192: 24 | T192: =IF(ISERROR(IF(S193="","",IF((S193/S192)>1,1,S193/S192))),"",IF(S193="","",IF((S193/S192)>1,1,S193/S192))) -> 0.25 | U192: =IF(T192="","",(IF(T192<'BD1'!$E$76,'BD1'!$G$75,IF(T192<'BD1'!$E$77,'BD1'!$G$76,'BD1'!$G$77)))) -> ALERTA
H193: E | I193: 1 | M193: E | N193: 43 | R193: E | S193: 6
C194: Transparencia_gestion_publica_y_servicio_al_ciudadano | D194: Mantener 80% de satisfacción en los servicios prestados por las entidades del sector movilidad | E194: Meta N° 3: Aumentar Al 80 Por Ciento El Nivel De Satisfacción Del Usuario, Respecto De La Encuesta De Satisfacción Usuarios Transmilenio - Troncal Y Zonal En Lo Correspondiente A La Medición De Comunicaciones | F194: 8727 | H194: P | I194: 31 | J194: =IF(ISERROR(IF(I195="","",IF((I195/I194)>1,1,I195/I194))),"",IF(I195="","",IF((I195/I194)>1,1,I195/I194))) -> 0.6774193548 | K194: =IF(J194="","",(IF(J194<'BD1'!$E$76,'BD1'!$G$75,IF(J194<'BD1'!$E$77,'BD1'!$G$76,'BD1'!$G$77)))) -> ACEPTABLE | M194: P | N194: 8727 | O194: =IF(ISERROR(IF(N195="","",IF((N195/N194)>1,1,N195/N194))),"",IF(N195="","",IF((N195/N194)>1,1,N195/N194))) -> 0.2212673313 | P194: =IF(O194="","",(IF(O194<'BD1'!$E$76,'BD1'!$G$75,IF(O194<'BD1'!$E$77,'BD1'!$G$76,'BD1'!$G$77)))) -> ALERTA | R194: P | S194: 65 | T194: =IF(ISERROR(IF(S195="","",IF((S195/S194)>1,1,S195/S194))),"",IF(S195="","",IF((S195/S194)>1,1,S195/S194))) -> 0 | U194: =IF(T194="","",(IF(T194<'BD1'!$E$76,'BD1'!$G$75,IF(T194<'BD1'!$E$77,'BD1'!$G$76,'BD1'!$G$77)))) -> ALERTA
H195: E | I195: 21 | M195: E | N195: 1931 | R195: E | S195: 0
C196: Transparencia_gestion_publica_y_servicio_al_ciudadano | D196: Mantener 80% de satisfacción en los servicios prestados por las entidades del sector movilidad | E196: Meta N° 4: Reducir 4 Días El Tiempo De Respuesta Promedio A Las Pqrs Presentadas Por Los Usuarios | F196: 386 | H196: P | I196: 7 | J196: =IF(ISERROR(IF(I197="","",IF((I197/I196)>1,1,I197/I196))),"",IF(I197="","",IF((I197/I196)>1,1,I197/I196))) -> 1 | K196: =IF(J196="","",(IF(J196<'BD1'!$E$76,'BD1'!$G$75,IF(J196<'BD1'!$E$77,'BD1'!$G$76,'BD1'!$G$77)))) -> SATISFACTORIO | M196: P | N196: 386 | O196: =IF(ISERROR(IF(N197="","",IF((N197/N196)>1,1,N197/N196))),"",IF(N197="","",IF((N197/N196)>1,1,N197/N196))) -> 0.4766839378 | P196: =IF(O196="","",(IF(O196<'BD1'!$E$76,'BD1'!$G$75,IF(O196<'BD1'!$E$77,'BD1'!$G$76,'BD1'!$G$77)))) -> ALERTA | R196: P | S196: 1 | T196: =IF(ISERROR(IF(S197="","",IF((S197/S196)>1,1,S197/S196))),"",IF(S197="","",IF((S197/S196)>1,1,S197/S196))) -> 0.25 | U196: =IF(T196="","",(IF(T196<'BD1'!$E$76,'BD1'!$G$75,IF(T196<'BD1'!$E$77,'BD1'!$G$76,'BD1'!$G$77)))) -> ALERTA
H197: E | I197: 7 | M197: E | N197: 184 | R197: E | S197: 0.25
C198: Modernizacion_institucional | D198: Lograr un índice nivel medio de desarrollo institucional en el sector movilidad | E198: Meta N° 5: Adecuar Y Mantener 1 Sede Administrativa En Condiciones Apropiadas De Uso | F198: 214 | H198: P | I198: 3 | J198: =IF(ISERROR(IF(I199="","",IF((I199/I198)>1,1,I199/I198))),"",IF(I199="","",IF((I199/I198)>1,1,I199/I198))) -> 0 | K198: =IF(J198="","",(IF(J198<'BD1'!$E$76,'BD1'!$G$75,IF(J198<'BD1'!$E$77,'BD1'!$G$76,'BD1'!$G$77)))) -> ALERTA | M198: P | N198: 214 | O198: =IF(ISERROR(IF(N199="","",IF((N199/N198)>1,1,N199/N198))),"",IF(N199="","",IF((N199/N198)>1,1,N199/N198))) -> 0 | P198: =IF(O198="","",(IF(O198<'BD1'!$E$76,'BD1'!$G$75,IF(O198<'BD1'!$E$77,'BD1'!$G$76,'BD1'!$G$77)))) -> ALERTA | R198: P | S198: 1 | T198: =IF(ISERROR(IF(S199="","",IF((S199/S198)>1,1,S199/S198))),"",IF(S199="","",IF((S199/S198)>1,1,S199/S198))) -> 1 | U198: =IF(T198="","",(IF(T198<'BD1'!$E$76,'BD1'!$G$75,IF(T198<'BD1'!$E$77,'BD1'!$G$76,'BD1'!$G$77)))) -> SATISFACTORIO
H199: E | I199: 0 | M199: E | N199: 0 | R199: E | S199: 1
C200: Modernizacion_institucional | D200: Lograr un índice nivel medio de desarrollo institucional en el sector movilidad | E200: Meta N° 6: Capacitar Y Fortalecer Al 100 Por Ciento De Funcionarios En Temáticas Requeridas Para El Desarrollo De Sus Competencias | F200: 150 | H200: P | I200: 1 | J200: =IF(ISERROR(IF(I201="","",IF((I201/I200)>1,1,I201/I200))),"",IF(I201="","",IF((I201/I200)>1,1,I201/I200))) -> 0 | K200: =IF(J200="","",(IF(J200<'BD1'!$E$76,'BD1'!$G$75,IF(J200<'BD1'!$E$77,'BD1'!$G$76,'BD1'!$G$77)))) -> ALERTA | M200: P | N200: 150 | O200: =IF(ISERROR(IF(N201="","",IF((N201/N200)>1,1,N201/N200))),"",IF(N201="","",IF((N201/N200)>1,1,N201/N200))) -> 0 | P200: =IF(O200="","",(IF(O200<'BD1'!$E$76,'BD1'!$G$75,IF(O200<'BD1'!$E$77,'BD1'!$G$76,'BD1'!$G$77)))) -> ALERTA | R200: P | S200: 30 | T200: =IF(ISERROR(IF(S201="","",IF((S201/S200)>1,1,S201/S200))),"",IF(S201="","",IF((S201/S200)>1,1,S201/S200))) -> 0.5 | U200: =IF(T200="","",(IF(T200<'BD1'!$E$76,'BD1'!$G$75,IF(T200<'BD1'!$E$77,'BD1'!$G$76,'BD1'!$G$77)))) -> ALERTA
H201: E | I201: 0 | M201: E | N201: 0 | R201: E | S201: 15
C202: Modernizacion_institucional | D202: Lograr un índice nivel medio de desarrollo institucional en el sector movilidad | E202: Meta N° 7: Implementar 1 Modelo De Desarrollo Organizacional Basado En Estudios Técnicos Tendiente Al Cumplimiento De Los Objetivos De La Entidad | F202: 4166 | H202: P | I202: 4 | J202: =IF(ISERROR(IF(I203="","",IF((I203/I202)>1,1,I203/I202))),"",IF(I203="","",IF((I203/I202)>1,1,I203/I202))) -> 0.75 | K202: =IF(J202="","",(IF(J202<'BD1'!$E$76,'BD1'!$G$75,IF(J202<'BD1'!$E$77,'BD1'!$G$76,'BD1'!$G$77)))) -> ACEPTABLE | M202: P | N202: 4166 | O202: =IF(ISERROR(IF(N203="","",IF((N203/N202)>1,1,N203/N202))),"",IF(N203="","",IF((N203/N202)>1,1,N203/N202))) -> 0.01680268843 | P202: =IF(O202="","",(IF(O202<'BD1'!$E$76,'BD1'!$G$75,IF(O202<'BD1'!$E$77,'BD1'!$G$76,'BD1'!$G$77)))) -> ALERTA | R202: P | S202: 0.35 | T202: =IF(ISERROR(IF(S203="","",IF((S203/S202)>1,1,S203/S202))),"",IF(S203="","",IF((S203/S202)>1,1,S203/S202))) -> 0.5142857143 | U202: =IF(T202="","",(IF(T202<'BD1'!$E$76,'BD1'!$G$75,IF(T202<'BD1'!$E$77,'BD1'!$G$76,'BD1'!$G$77)))) -> ALERTA
H203: E | I203: 3 | M203: E | N203: 70 | R203: E | S203: 0.18
C204: Modernizacion_institucional | D204: Lograr un índice nivel medio de desarrollo institucional en el sector movilidad | E204: Meta N° 8: Implantar 6 Soluciones De Software Que Automaticen Los Procesos Administrativos De La Institución Y Migren La Información Existente | F204: 1473 | H204: P | I204: 2 | J204: =IF(ISERROR(IF(I205="","",IF((I205/I204)>1,1,I205/I204))),"",IF(I205="","",IF((I205/I204)>1,1,I205/I204))) -> 0.5 | K204: =IF(J204="","",(IF(J204<'BD1'!$E$76,'BD1'!$G$75,IF(J204<'BD1'!$E$77,'BD1'!$G$76,'BD1'!$G$77)))) -> ALERTA | M204: P | N204: 1473 | O204: =IF(ISERROR(IF(N205="","",IF((N205/N204)>1,1,N205/N204))),"",IF(N205="","",IF((N205/N204)>1,1,N205/N204))) -> 0 | P204: =IF(O204="","",(IF(O204<'BD1'!$E$76,'BD1'!$G$75,IF(O204<'BD1'!$E$77,'BD1'!$G$76,'BD1'!$G$77)))) -> ALERTA | R204: P | S204: 2 | T204: =IF(ISERROR(IF(S205="","",IF((S205/S204)>1,1,S205/S204))),"",IF(S205="","",IF((S205/S204)>1,1,S205/S204))) -> 0.29 | U204: =IF(T204="","",(IF(T204<'BD1'!$E$76,'BD1'!$G$75,IF(T204<'BD1'!$E$77,'BD1'!$G$76,'BD1'!$G$77)))) -> ALERTA
H205: E | I205: 1 | M205: E | N205: 0 | R205: E | S205: 0.58
C206: Modernizacion_institucional | D206: Lograr un índice nivel medio de desarrollo institucional en el sector movilidad | E206: Meta N° 9: Obtener 3 Certificaciones En Estándares Iso, Para Tres Subsistemas Del Sistema Integrado De Gestión | F206: 1071 | H206: P | I206: 2 | J206: =IF(ISERROR(IF(I207="","",IF((I207/I206)>1,1,I207/I206))),"",IF(I207="","",IF((I207/I206)>1,1,I207/I206))) -> 0.5 | K206: =IF(J206="","",(IF(J206<'BD1'!$E$76,'BD1'!$G$75,IF(J206<'BD1'!$E$77,'BD1'!$G$76,'BD1'!$G$77)))) -> ALERTA | M206: P | N206: 1071 | O206: =IF(ISERROR(IF(N207="","",IF((N207/N206)>1,1,N207/N206))),"",IF(N207="","",IF((N207/N206)>1,1,N207/N206))) -> 0.2322315593 | P206: =IF(O206="","",(IF(O206<'BD1'!$E$76,'BD1'!$G$75,IF(O206<'BD1'!$E$77,'BD1'!$G$76,'BD1'!$G$77)))) -> ALERTA | R206: P | S206: 1 | T206: =IF(ISERROR(IF(S207="","",IF((S207/S206)>1,1,S207/S206))),"",IF(S207="","",IF((S207/S206)>1,1,S207/S206))) -> 0.48 | U206: =IF(T206="","",(IF(T206<'BD1'!$E$76,'BD1'!$G$75,IF(T206<'BD1'!$E$77,'BD1'!$G$76,'BD1'!$G$77)))) -> ALERTA
H207: E | I207: 1 | M207: E | N207: 248.72 | R207: E | S207: 0.48
C208: Modernizacion_institucional | D208: Lograr un índice nivel medio de desarrollo institucional en el sector movilidad | E208: Meta N° 10: Diseñar E Implementar El 100 Por Ciento De Los 4 Componentes De La Gestión De La Información Pública Reglamentada Por La Ley 1712 De 2014 (Manual De Gestión Documental, Programa De Gestión Documental, Sistema Integrado De Conservación Y Plan Institucional De Archivo | F208: 294 | H208: P | I208: 4 | J208: =IF(ISERROR(IF(I209="","",IF((I209/I208)>1,1,I209/I208))),"",IF(I209="","",IF((I209/I208)>1,1,I209/I208))) -> 1 | K208: =IF(J208="","",(IF(J208<'BD1'!$E$76,'BD1'!$G$75,IF(J208<'BD1'!$E$77,'BD1'!$G$76,'BD1'!$G$77)))) -> SATISFACTORIO | M208: P | N208: 294 | O208: =IF(ISERROR(IF(N209="","",IF((N209/N208)>1,1,N209/N208))),"",IF(N209="","",IF((N209/N208)>1,1,N209/N208))) -> 0.9965986395 | P208: =IF(O208="","",(IF(O208<'BD1'!$E$76,'BD1'!$G$75,IF(O208<'BD1'!$E$77,'BD1'!$G$76,'BD1'!$G$77)))) -> SATISFACTORIO | R208: P | S208: 40 | T208: =IF(ISERROR(IF(S209="","",IF((S209/S208)>1,1,S209/S208))),"",IF(S209="","",IF((S209/S208)>1,1,S209/S208))) -> 0.75 | U208: =IF(T208="","",(IF(T208<'BD1'!$E$76,'BD1'!$G$75,IF(T208<'BD1'!$E$77,'BD1'!$G$76,'BD1'!$G$77)))) -> ACEPTABLE
H209: E | I209: 4 | M209: E | N209: 293 | R209: E | S209: 30
H210: P | J210: =IF(ISERROR(IF(I211="","",IF((I211/I210)>1,1,I211/I210))),"",IF(I211="","",IF((I211/I210)>1,1,I211/I210))) ->  | K210: =IF(J210="","",(IF(J210<'BD1'!$E$76,'BD1'!$G$75,IF(J210<'BD1'!$E$77,'BD1'!$G$76,'BD1'!$G$77)))) ->  | M210: P | O210: =IF(ISERROR(IF(N211="","",IF((N211/N210)>1,1,N211/N210))),"",IF(N211="","",IF((N211/N210)>1,1,N211/N210))) ->  | P210: =IF(O210="","",(IF(O210<'BD1'!$E$76,'BD1'!$G$75,IF(O210<'BD1'!$E$77,'BD1'!$G$76,'BD1'!$G$77)))) ->  | R210: P | T210: =IF(ISERROR(IF(S211="","",IF((S211/S210)>1,1,S211/S210))),"",IF(S211="","",IF((S211/S210)>1,1,S211/S210))) ->  | U210: =IF(T210="","",(IF(T210<'BD1'!$E$76,'BD1'!$G$75,IF(T210<'BD1'!$E$77,'BD1'!$G$76,'BD1'!$G$77)))) -> 
H211: E | M211: E | R211: E
H212: P | J212: =IF(ISERROR(IF(I213="","",IF((I213/I212)>1,1,I213/I212))),"",IF(I213="","",IF((I213/I212)>1,1,I213/I212))) ->  | K212: =IF(J212="","",(IF(J212<'BD1'!$E$76,'BD1'!$G$75,IF(J212<'BD1'!$E$77,'BD1'!$G$76,'BD1'!$G$77)))) ->  | M212: P | O212: =IF(ISERROR(IF(N213="","",IF((N213/N212)>1,1,N213/N212))),"",IF(N213="","",IF((N213/N212)>1,1,N213/N212))) ->  | P212: =IF(O212="","",(IF(O212<'BD1'!$E$76,'BD1'!$G$75,IF(O212<'BD1'!$E$77,'BD1'!$G$76,'BD1'!$G$77)))) ->  | R212: P | T212: =IF(ISERROR(IF(S213="","",IF((S213/S212)>1,1,S213/S212))),"",IF(S213="","",IF((S213/S212)>1,1,S213/S212))) ->  | U212: =IF(T212="","",(IF(T212<'BD1'!$E$76,'BD1'!$G$75,IF(T212<'BD1'!$E$77,'BD1'!$G$76,'BD1'!$G$77)))) -> 
H213: E | M213: E | R213: E
H214: P | J214: =IF(ISERROR(IF(I215="","",IF((I215/I214)>1,1,I215/I214))),"",IF(I215="","",IF((I215/I214)>1,1,I215/I214))) ->  | K214: =IF(J214="","",(IF(J214<'BD1'!$E$76,'BD1'!$G$75,IF(J214<'BD1'!$E$77,'BD1'!$G$76,'BD1'!$G$77)))) ->  | M214: P | O214: =IF(ISERROR(IF(N215="","",IF((N215/N214)>1,1,N215/N214))),"",IF(N215="","",IF((N215/N214)>1,1,N215/N214))) ->  | P214: =IF(O214="","",(IF(O214<'BD1'!$E$76,'BD1'!$G$75,IF(O214<'BD1'!$E$77,'BD1'!$G$76,'BD1'!$G$77)))) ->  | R214: P | T214: =IF(ISERROR(IF(S215="","",IF((S215/S214)>1,1,S215/S214))),"",IF(S215="","",IF((S215/S214)>1,1,S215/S214))) ->  | U214: =IF(T214="","",(IF(T214<'BD1'!$E$76,'BD1'!$G$75,IF(T214<'BD1'!$E$77,'BD1'!$G$76,'BD1'!$G$77)))) -> 
H215: E | M215: E | R215: E
H216: P | J216: =IF(ISERROR(IF(I217="","",IF((I217/I216)>1,1,I217/I216))),"",IF(I217="","",IF((I217/I216)>1,1,I217/I216))) ->  | K216: =IF(J216="","",(IF(J216<'BD1'!$E$76,'BD1'!$G$75,IF(J216<'BD1'!$E$77,'BD1'!$G$76,'BD1'!$G$77)))) ->  | M216: P | O216: =IF(ISERROR(IF(N217="","",IF((N217/N216)>1,1,N217/N216))),"",IF(N217="","",IF((N217/N216)>1,1,N217/N216))) ->  | P216: =IF(O216="","",(IF(O216<'BD1'!$E$76,'BD1'!$G$75,IF(O216<'BD1'!$E$77,'BD1'!$G$76,'BD1'!$G$77)))) ->  | R216: P | T216: =IF(ISERROR(IF(S217="","",IF((S217/S216)>1,1,S217/S216))),"",IF(S217="","",IF((S217/S216)>1,1,S217/S216))) ->  | U216: =IF(T216="","",(IF(T216<'BD1'!$E$76,'BD1'!$G$75,IF(T216<'BD1'!$E$77,'BD1'!$G$76,'BD1'!$G$77)))) -> 
H217: E | M217: E | R217: E
H218: P | J218: =IF(ISERROR(IF(I219="","",IF((I219/I218)>1,1,I219/I218))),"",IF(I219="","",IF((I219/I218)>1,1,I219/I218))) ->  | K218: =IF(J218="","",(IF(J218<'BD1'!$E$76,'BD1'!$G$75,IF(J218<'BD1'!$E$77,'BD1'!$G$76,'BD1'!$G$77)))) ->  | M218: P | O218: =IF(ISERROR(IF(N219="","",IF((N219/N218)>1,1,N219/N218))),"",IF(N219="","",IF((N219/N218)>1,1,N219/N218))) ->  | P218: =IF(O218="","",(IF(O218<'BD1'!$E$76,'BD1'!$G$75,IF(O218<'BD1'!$E$77,'BD1'!$G$76,'BD1'!$G$77)))) ->  | R218: P | T218: =IF(ISERROR(IF(S219="","",IF((S219/S218)>1,1,S219/S218))),"",IF(S219="","",IF((S219/S218)>1,1,S219/S218))) ->  | U218: =IF(T218="","",(IF(T218<'BD1'!$E$76,'BD1'!$G$75,IF(T218<'BD1'!$E$77,'BD1'!$G$76,'BD1'!$G$77)))) -> 
H219: E | M219: E | R219: E
H220: P | J220: =IF(ISERROR(IF(I221="","",IF((I221/I220)>1,1,I221/I220))),"",IF(I221="","",IF((I221/I220)>1,1,I221/I220))) ->  | K220: =IF(J220="","",(IF(J220<'BD1'!$E$76,'BD1'!$G$75,IF(J220<'BD1'!$E$77,'BD1'!$G$76,'BD1'!$G$77)))) ->  | M220: P | O220: =IF(ISERROR(IF(N221="","",IF((N221/N220)>1,1,N221/N220))),"",IF(N221="","",IF((N221/N220)>1,1,N221/N220))) ->  | P220: =IF(O220="","",(IF(O220<'BD1'!$E$76,'BD1'!$G$75,IF(O220<'BD1'!$E$77,'BD1'!$G$76,'BD1'!$G$77)))) ->  | R220: P | T220: =IF(ISERROR(IF(S221="","",IF((S221/S220)>1,1,S221/S220))),"",IF(S221="","",IF((S221/S220)>1,1,S221/S220))) ->  | U220: =IF(T220="","",(IF(T220<'BD1'!$E$76,'BD1'!$G$75,IF(T220<'BD1'!$E$77,'BD1'!$G$76,'BD1'!$G$77)))) -> 
H221: E | M221: E | R221: E
H222: P | J222: =IF(ISERROR(IF(I223="","",IF((I223/I222)>1,1,I223/I222))),"",IF(I223="","",IF((I223/I222)>1,1,I223/I222))) ->  | K222: =IF(J222="","",(IF(J222<'BD1'!$E$76,'BD1'!$G$75,IF(J222<'BD1'!$E$77,'BD1'!$G$76,'BD1'!$G$77)))) ->  | M222: P | O222: =IF(ISERROR(IF(N223="","",IF((N223/N222)>1,1,N223/N222))),"",IF(N223="","",IF((N223/N222)>1,1,N223/N222))) ->  | P222: =IF(O222="","",(IF(O222<'BD1'!$E$76,'BD1'!$G$75,IF(O222<'BD1'!$E$77,'BD1'!$G$76,'BD1'!$G$77)))) ->  | R222: P | T222: =IF(ISERROR(IF(S223="","",IF((S223/S222)>1,1,S223/S222))),"",IF(S223="","",IF((S223/S222)>1,1,S223/S222))) ->  | U222: =IF(T222="","",(IF(T222<'BD1'!$E$76,'BD1'!$G$75,IF(T222<'BD1'!$E$77,'BD1'!$G$76,'BD1'!$G$77)))) -> 
H223: E | M223: E | R223: E
H224: P | J224: =IF(ISERROR(IF(I225="","",IF((I225/I224)>1,1,I225/I224))),"",IF(I225="","",IF((I225/I224)>1,1,I225/I224))) ->  | K224: =IF(J224="","",(IF(J224<'BD1'!$E$76,'BD1'!$G$75,IF(J224<'BD1'!$E$77,'BD1'!$G$76,'BD1'!$G$77)))) ->  | M224: P | O224: =IF(ISERROR(IF(N225="","",IF((N225/N224)>1,1,N225/N224))),"",IF(N225="","",IF((N225/N224)>1,1,N225/N224))) ->  | P224: =IF(O224="","",(IF(O224<'BD1'!$E$76,'BD1'!$G$75,IF(O224<'BD1'!$E$77,'BD1'!$G$76,'BD1'!$G$77)))) ->  | R224: P | T224: =IF(ISERROR(IF(S225="","",IF((S225/S224)>1,1,S225/S224))),"",IF(S225="","",IF((S225/S224)>1,1,S225/S224))) ->  | U224: =IF(T224="","",(IF(T224<'BD1'!$E$76,'BD1'!$G$75,IF(T224<'BD1'!$E$77,'BD1'!$G$76,'BD1'!$G$77)))) -> 
H225: E | M225: E | R225: E
H226: P | J226: =IF(ISERROR(IF(I227="","",IF((I227/I226)>1,1,I227/I226))),"",IF(I227="","",IF((I227/I226)>1,1,I227/I226))) ->  | K226: =IF(J226="","",(IF(J226<'BD1'!$E$76,'BD1'!$G$75,IF(J226<'BD1'!$E$77,'BD1'!$G$76,'BD1'!$G$77)))) ->  | M226: P | O226: =IF(ISERROR(IF(N227="","",IF((N227/N226)>1,1,N227/N226))),"",IF(N227="","",IF((N227/N226)>1,1,N227/N226))) ->  | P226: =IF(O226="","",(IF(O226<'BD1'!$E$76,'BD1'!$G$75,IF(O226<'BD1'!$E$77,'BD1'!$G$76,'BD1'!$G$77)))) ->  | R226: P | T226: =IF(ISERROR(IF(S227="","",IF((S227/S226)>1,1,S227/S226))),"",IF(S227="","",IF((S227/S226)>1,1,S227/S226))) ->  | U226: =IF(T226="","",(IF(T226<'BD1'!$E$76,'BD1'!$G$75,IF(T226<'BD1'!$E$77,'BD1'!$G$76,'BD1'!$G$77)))) -> 
H227: E | M227: E | R227: E
H228: P | J228: =IF(ISERROR(IF(I229="","",IF((I229/I228)>1,1,I229/I228))),"",IF(I229="","",IF((I229/I228)>1,1,I229/I228))) ->  | K228: =IF(J228="","",(IF(J228<'BD1'!$E$76,'BD1'!$G$75,IF(J228<'BD1'!$E$77,'BD1'!$G$76,'BD1'!$G$77)))) ->  | M228: P | O228: =IF(ISERROR(IF(N229="","",IF((N229/N228)>1,1,N229/N228))),"",IF(N229="","",IF((N229/N228)>1,1,N229/N228))) ->  | P228: =IF(O228="","",(IF(O228<'BD1'!$E$76,'BD1'!$G$75,IF(O228<'BD1'!$E$77,'BD1'!$G$76,'BD1'!$G$77)))) ->  | R228: P | T228: =IF(ISERROR(IF(S229="","",IF((S229/S228)>1,1,S229/S228))),"",IF(S229="","",IF((S229/S228)>1,1,S229/S228))) ->  | U228: =IF(T228="","",(IF(T228<'BD1'!$E$76,'BD1'!$G$75,IF(T228<'BD1'!$E$77,'BD1'!$G$76,'BD1'!$G$77)))) -> 
H229: E | M229: E | R229: E
H230: P | J230: =IF(ISERROR(IF(I231="","",IF((I231/I230)>1,1,I231/I230))),"",IF(I231="","",IF((I231/I230)>1,1,I231/I230))) ->  | K230: =IF(J230="","",(IF(J230<'BD1'!$E$76,'BD1'!$G$75,IF(J230<'BD1'!$E$77,'BD1'!$G$76,'BD1'!$G$77)))) ->  | M230: P | O230: =IF(ISERROR(IF(N231="","",IF((N231/N230)>1,1,N231/N230))),"",IF(N231="","",IF((N231/N230)>1,1,N231/N230))) ->  | P230: =IF(O230="","",(IF(O230<'BD1'!$E$76,'BD1'!$G$75,IF(O230<'BD1'!$E$77,'BD1'!$G$76,'BD1'!$G$77)))) ->  | R230: P | T230: =IF(ISERROR(IF(S231="","",IF((S231/S230)>1,1,S231/S230))),"",IF(S231="","",IF((S231/S230)>1,1,S231/S230))) ->  | U230: =IF(T230="","",(IF(T230<'BD1'!$E$76,'BD1'!$G$75,IF(T230<'BD1'!$E$77,'BD1'!$G$76,'BD1'!$G$77)))) -> 
H231: E | M231: E | R231: E
H232: P | J232: =IF(ISERROR(IF(I233="","",IF((I233/I232)>1,1,I233/I232))),"",IF(I233="","",IF((I233/I232)>1,1,I233/I232))) ->  | K232: =IF(J232="","",(IF(J232<'BD1'!$E$76,'BD1'!$G$75,IF(J232<'BD1'!$E$77,'BD1'!$G$76,'BD1'!$G$77)))) ->  | M232: P | O232: =IF(ISERROR(IF(N233="","",IF((N233/N232)>1,1,N233/N232))),"",IF(N233="","",IF((N233/N232)>1,1,N233/N232))) ->  | P232: =IF(O232="","",(IF(O232<'BD1'!$E$76,'BD1'!$G$75,IF(O232<'BD1'!$E$77,'BD1'!$G$76,'BD1'!$G$77)))) ->  | R232: P | T232: =IF(ISERROR(IF(S233="","",IF((S233/S232)>1,1,S233/S232))),"",IF(S233="","",IF((S233/S232)>1,1,S233/S232))) ->  | U232: =IF(T232="","",(IF(T232<'BD1'!$E$76,'BD1'!$G$75,IF(T232<'BD1'!$E$77,'BD1'!$G$76,'BD1'!$G$77)))) -> 
H233: E | M233: E | R233: E
H234: P | J234: =IF(ISERROR(IF(I235="","",IF((I235/I234)>1,1,I235/I234))),"",IF(I235="","",IF((I235/I234)>1,1,I235/I234))) ->  | K234: =IF(J234="","",(IF(J234<'BD1'!$E$76,'BD1'!$G$75,IF(J234<'BD1'!$E$77,'BD1'!$G$76,'BD1'!$G$77)))) ->  | M234: P | O234: =IF(ISERROR(IF(N235="","",IF((N235/N234)>1,1,N235/N234))),"",IF(N235="","",IF((N235/N234)>1,1,N235/N234))) ->  | P234: =IF(O234="","",(IF(O234<'BD1'!$E$76,'BD1'!$G$75,IF(O234<'BD1'!$E$77,'BD1'!$G$76,'BD1'!$G$77)))) ->  | R234: P | T234: =IF(ISERROR(IF(S235="","",IF((S235/S234)>1,1,S235/S234))),"",IF(S235="","",IF((S235/S234)>1,1,S235/S234))) ->  | U234: =IF(T234="","",(IF(T234<'BD1'!$E$76,'BD1'!$G$75,IF(T234<'BD1'!$E$77,'BD1'!$G$76,'BD1'!$G$77)))) -> 
H235: E | M235: E | R235: E
H236: P | J236: =IF(ISERROR(IF(I237="","",IF((I237/I236)>1,1,I237/I236))),"",IF(I237="","",IF((I237/I236)>1,1,I237/I236))) ->  | K236: =IF(J236="","",(IF(J236<'BD1'!$E$76,'BD1'!$G$75,IF(J236<'BD1'!$E$77,'BD1'!$G$76,'BD1'!$G$77)))) ->  | M236: P | O236: =IF(ISERROR(IF(N237="","",IF((N237/N236)>1,1,N237/N236))),"",IF(N237="","",IF((N237/N236)>1,1,N237/N236))) ->  | P236: =IF(O236="","",(IF(O236<'BD1'!$E$76,'BD1'!$G$75,IF(O236<'BD1'!$E$77,'BD1'!$G$76,'BD1'!$G$77)))) ->  | R236: P | T236: =IF(ISERROR(IF(S237="","",IF((S237/S236)>1,1,S237/S236))),"",IF(S237="","",IF((S237/S236)>1,1,S237/S236))) ->  | U236: =IF(T236="","",(IF(T236<'BD1'!$E$76,'BD1'!$G$75,IF(T236<'BD1'!$E$77,'BD1'!$G$76,'BD1'!$G$77)))) -> 
H237: E | M237: E | R237: E
H238: P | J238: =IF(ISERROR(IF(I239="","",IF((I239/I238)>1,1,I239/I238))),"",IF(I239="","",IF((I239/I238)>1,1,I239/I238))) ->  | K238: =IF(J238="","",(IF(J238<'BD1'!$E$76,'BD1'!$G$75,IF(J238<'BD1'!$E$77,'BD1'!$G$76,'BD1'!$G$77)))) ->  | M238: P | O238: =IF(ISERROR(IF(N239="","",IF((N239/N238)>1,1,N239/N238))),"",IF(N239="","",IF((N239/N238)>1,1,N239/N238))) ->  | P238: =IF(O238="","",(IF(O238<'BD1'!$E$76,'BD1'!$G$75,IF(O238<'BD1'!$E$77,'BD1'!$G$76,'BD1'!$G$77)))) ->  | R238: P | T238: =IF(ISERROR(IF(S239="","",IF((S239/S238)>1,1,S239/S238))),"",IF(S239="","",IF((S239/S238)>1,1,S239/S238))) ->  | U238: =IF(T238="","",(IF(T238<'BD1'!$E$76,'BD1'!$G$75,IF(T238<'BD1'!$E$77,'BD1'!$G$76,'BD1'!$G$77)))) -> 
H239: E | M239: E | R239: E
H240: P | J240: =IF(ISERROR(IF(I241="","",IF((I241/I240)>1,1,I241/I240))),"",IF(I241="","",IF((I241/I240)>1,1,I241/I240))) ->  | K240: =IF(J240="","",(IF(J240<'BD1'!$E$76,'BD1'!$G$75,IF(J240<'BD1'!$E$77,'BD1'!$G$76,'BD1'!$G$77)))) ->  | M240: P | O240: =IF(ISERROR(IF(N241="","",IF((N241/N240)>1,1,N241/N240))),"",IF(N241="","",IF((N241/N240)>1,1,N241/N240))) ->  | P240: =IF(O240="","",(IF(O240<'BD1'!$E$76,'BD1'!$G$75,IF(O240<'BD1'!$E$77,'BD1'!$G$76,'BD1'!$G$77)))) ->  | R240: P | T240: =IF(ISERROR(IF(S241="","",IF((S241/S240)>1,1,S241/S240))),"",IF(S241="","",IF((S241/S240)>1,1,S241/S240))) ->  | U240: =IF(T240="","",(IF(T240<'BD1'!$E$76,'BD1'!$G$75,IF(T240<'BD1'!$E$77,'BD1'!$G$76,'BD1'!$G$77)))) -> 
H241: E | M241: E | R241: E
H242: P | J242: =IF(ISERROR(IF(I243="","",IF((I243/I242)>1,1,I243/I242))),"",IF(I243="","",IF((I243/I242)>1,1,I243/I242))) ->  | K242: =IF(J242="","",(IF(J242<'BD1'!$E$76,'BD1'!$G$75,IF(J242<'BD1'!$E$77,'BD1'!$G$76,'BD1'!$G$77)))) ->  | M242: P | O242: =IF(ISERROR(IF(N243="","",IF((N243/N242)>1,1,N243/N242))),"",IF(N243="","",IF((N243/N242)>1,1,N243/N242))) ->  | P242: =IF(O242="","",(IF(O242<'BD1'!$E$76,'BD1'!$G$75,IF(O242<'BD1'!$E$77,'BD1'!$G$76,'BD1'!$G$77)))) ->  | R242: P | T242: =IF(ISERROR(IF(S243="","",IF((S243/S242)>1,1,S243/S242))),"",IF(S243="","",IF((S243/S242)>1,1,S243/S242))) ->  | U242: =IF(T242="","",(IF(T242<'BD1'!$E$76,'BD1'!$G$75,IF(T242<'BD1'!$E$77,'BD1'!$G$76,'BD1'!$G$77)))) -> 
H243: E | M243: E | R243: E
H244: P | J244: =IF(ISERROR(IF(I245="","",IF((I245/I244)>1,1,I245/I244))),"",IF(I245="","",IF((I245/I244)>1,1,I245/I244))) ->  | K244: =IF(J244="","",(IF(J244<'BD1'!$E$76,'BD1'!$G$75,IF(J244<'BD1'!$E$77,'BD1'!$G$76,'BD1'!$G$77)))) ->  | M244: P | O244: =IF(ISERROR(IF(N245="","",IF((N245/N244)>1,1,N245/N244))),"",IF(N245="","",IF((N245/N244)>1,1,N245/N244))) ->  | P244: =IF(O244="","",(IF(O244<'BD1'!$E$76,'BD1'!$G$75,IF(O244<'BD1'!$E$77,'BD1'!$G$76,'BD1'!$G$77)))) ->  | R244: P | T244: =IF(ISERROR(IF(S245="","",IF((S245/S244)>1,1,S245/S244))),"",IF(S245="","",IF((S245/S244)>1,1,S245/S244))) ->  | U244: =IF(T244="","",(IF(T244<'BD1'!$E$76,'BD1'!$G$75,IF(T244<'BD1'!$E$77,'BD1'!$G$76,'BD1'!$G$77)))) -> 
H245: E | M245: E | R245: E
H246: P | J246: =IF(ISERROR(IF(I247="","",IF((I247/I246)>1,1,I247/I246))),"",IF(I247="","",IF((I247/I246)>1,1,I247/I246))) ->  | K246: =IF(J246="","",(IF(J246<'BD1'!$E$76,'BD1'!$G$75,IF(J246<'BD1'!$E$77,'BD1'!$G$76,'BD1'!$G$77)))) ->  | M246: P | O246: =IF(ISERROR(IF(N247="","",IF((N247/N246)>1,1,N247/N246))),"",IF(N247="","",IF((N247/N246)>1,1,N247/N246))) ->  | P246: =IF(O246="","",(IF(O246<'BD1'!$E$76,'BD1'!$G$75,IF(O246<'BD1'!$E$77,'BD1'!$G$76,'BD1'!$G$77)))) ->  | R246: P | T246: =IF(ISERROR(IF(S247="","",IF((S247/S246)>1,1,S247/S246))),"",IF(S247="","",IF((S247/S246)>1,1,S247/S246))) ->  | U246: =IF(T246="","",(IF(T246<'BD1'!$E$76,'BD1'!$G$75,IF(T246<'BD1'!$E$77,'BD1'!$G$76,'BD1'!$G$77)))) -> 
H247: E | M247: E | R247: E
H248: P | J248: =IF(ISERROR(IF(I249="","",IF((I249/I248)>1,1,I249/I248))),"",IF(I249="","",IF((I249/I248)>1,1,I249/I248))) ->  | K248: =IF(J248="","",(IF(J248<'BD1'!$E$76,'BD1'!$G$75,IF(J248<'BD1'!$E$77,'BD1'!$G$76,'BD1'!$G$77)))) ->  | M248: P | O248: =IF(ISERROR(IF(N249="","",IF((N249/N248)>1,1,N249/N248))),"",IF(N249="","",IF((N249/N248)>1,1,N249/N248))) ->  | P248: =IF(O248="","",(IF(O248<'BD1'!$E$76,'BD1'!$G$75,IF(O248<'BD1'!$E$77,'BD1'!$G$76,'BD1'!$G$77)))) ->  | R248: P | T248: =IF(ISERROR(IF(S249="","",IF((S249/S248)>1,1,S249/S248))),"",IF(S249="","",IF((S249/S248)>1,1,S249/S248))) ->  | U248: =IF(T248="","",(IF(T248<'BD1'!$E$76,'BD1'!$G$75,IF(T248<'BD1'!$E$77,'BD1'!$G$76,'BD1'!$G$77)))) -> 
H249: E | M249: E | R249: E
H250: P | J250: =IF(ISERROR(IF(I251="","",IF((I251/I250)>1,1,I251/I250))),"",IF(I251="","",IF((I251/I250)>1,1,I251/I250))) ->  | K250: =IF(J250="","",(IF(J250<'BD1'!$E$76,'BD1'!$G$75,IF(J250<'BD1'!$E$77,'BD1'!$G$76,'BD1'!$G$77)))) ->  | M250: P | O250: =IF(ISERROR(IF(N251="","",IF((N251/N250)>1,1,N251/N250))),"",IF(N251="","",IF((N251/N250)>1,1,N251/N250))) ->  | P250: =IF(O250="","",(IF(O250<'BD1'!$E$76,'BD1'!$G$75,IF(O250<'BD1'!$E$77,'BD1'!$G$76,'BD1'!$G$77)))) ->  | R250: P | T250: =IF(ISERROR(IF(S251="","",IF((S251/S250)>1,1,S251/S250))),"",IF(S251="","",IF((S251/S250)>1,1,S251/S250))) ->  | U250: =IF(T250="","",(IF(T250<'BD1'!$E$76,'BD1'!$G$75,IF(T250<'BD1'!$E$77,'BD1'!$G$76,'BD1'!$G$77)))) -> 
H251: E | M251: E | R251: E
... 668 more rows

Sheet BD1 (hidden)
D1: Sector Administrativo | S1: Nivel
D2: Gestión_Pública | E2: Gobierno_Seguridad_y_Convivencia | F2: Hacienda | G2: Planeación | H2: Desarrollo_Económico_Industria_y_Turismo | I2: Educación | J2: Salud | K2: Integración_Social | L2: Cultura_Recreación_y_Deporte | M2: Ambiente | N2: Movilidad | O2: Hábitat | P2: Mujer | Q2: Gestión_Juridica | S2: Gestión_Pública | T2: Gobierno_Seguridad_y_Convivencia | U2: Hacienda | V2: Planeación | W2: Desarrollo_Económico_Industria_y_Turismo | X2: Educación | Y2: Salud | Z2: Integración_Social | AA2: Cultura_Recreación_y_Deporte | AB2: Ambiente | AC2: Movilidad | AD2: Hábitat | AE2: Mujer | AF2: Gestión_Juridica | AH2: PERIODOS INFORMES | AM2: ORIGEN DEL INFORME | AN2: TIPO DE EVALUACIÓN
AH3: RELACION DE CAUSAS
D4: Secretaría General | E4: Secretaría Distrital de Gobierno | F4: Secretaría Distrital de Hacienda | G4: Secretaría Distrital de Planeación | H4: Secretaría Distrital de Desarrollo Económico | I4: Secretaría Distrital de Educación | J4: Secretaría Distrital de Salud | K4: Secretaría Distrital de Integración Social | L4: Secretaría Distrital de Cultura, Recreación y Deporte | M4: Secretaría Distrital de Ambiente | N4: Secretaría Distrital de Movilidad | O4: Secretaría Distrital de Hábitat | P4: Secretaría Distrital de la Mujer | Q4: Secretaría Distrital de Asuntos Juridicos | S4: Central | T4: Central | U4: Central | V4: Central | W4: Central | X4: Central | Y4: Central | Z4: Central | AA4: Central | AB4: Central | AC4: Central | AD4: Central | AE4: Central | AF4: Central | AH4: 30 DE JUNIO | AM4: LEGAL | AN4: CALIDAD
D5: Departamento Administrativo del Servicio Civil | E5: Depto. Adtivo de la Defensoría del Espacio Público | F5: U.A.E. Unidad Adtiva Especial de Catastro | H5: Instituto para la Economía Social | I5: Inst. para la Invest. y el Desarrollo Pedagógico | J5: Fondo Financiero Distrital de Salud | K5: Instituto para la Protección de la Niñez y la Juventud | L5: Inst. Dist. para la Recreación y el Deporte | M5: Jardín Botánico José Celestino Mutis | N5: Instituto de Desarrollo Urbano | O5: Unidad Adtiva Especial de Servicios Públicos | S5: Central | T5: Central | U5: Descentralizada / Adscrita | W5: Descentralizada / Adscrita | X5: Descentralizada / Adscrita | Y5: Descentralizada / Adscrita | Z5: Descentralizada / Adscrita | AA5: Descentralizada / Adscrita | AB5: Descentralizada / Adscrita | AC5: Descentralizada / Adscrita | AD5: Descentralizada / Adscrita | AH5: 31 DE DICIEMBRE | AM5: PROGRAMA ANUAL DE AUDITORÍAS | AN5: CONTROL INTERNO
E6: UAE Cuerpo Oficial de Bomberos | F6: Fondo de Prestaciones Económ, Cesantías y Pensiones | H6: Instituto Distrital de Turismo | I6: Universidad Distrital Francisco José de Caldas | J6: Capital Salud | L6: Fundación Gilberto Alzate Avendaño | M6: Instituto Distrital de Gestion de Riesgo y Cambio Climatico | N6: Unidad Adtiva, Especial de Rehabilitación y Mantenimiento Vial | O6: Caja de Vivienda Popular | S6: Central | T6: Central | U6: Descentralizada / Adscrita | W6: Descentralizada / Adscrita | X6: Descentralizada / Vinculada | Y6: Descentralizada / Vinculada | AA6: Central | AC6: Descentralizada / Adscrita | AD6: Descentralizada / Adscrita | AH6: 31 DE MARZO | AM6: SOLICITUD ALTA DIRECCIÓN | AN6: CONTROL INTERNO CONTABLE
E7: Instit. Dist. de la Participación y Acción Comunal | F7: Lotería de Bogotá | H7: Corpor. para el Desarrollo y la Productividad - Bogotá Región | J7: Hospital de Fontibón | L7: Inst. Dist. de Patrimonio Cultural | N7: Transmilenio S.A. | O7: Empresa de Renovación y desarrollo Urbano | T7: Descentralizada / Adscrita | U7: Descentralizada / Vinculada | W7: Descentralizada / Vinculada | Y7: Descentralizada / Adscrita | AA7: Descentralizada / Adscrita | AC7: Descentralizada / Vinculada | AD7: Descentralizada / Vinculada | AH7: 30 DE SEPTIEMBRE | AM7: OTRO | AN7: EVALUACIÓN DE GESTIÓN Y RESULTADOS
J8: Hospital Centro Oriente | L8: Orquesta Filarmónica de Bogotá | N8: Terminal de Transportes S.A. | O8: Empresa de Acueducto y Alcantarillado de Bogotá | T8: Descentralizada / Adscrita | Y8: Descentralizada / Adscrita | AA8: Descentralizada / Adscrita | AC8: Descentralizada / Vinculada | AD8: Descentralizada / Vinculada | AN8: AUDITORIA INTERNA CONTABLE
E9: Secretaría Distrital de Seguridad, Convivencia y Justicia | J9: Hospital Rafael Uribe | L9: Instituto Distrital de las Artes | T9: Descentralizada / Adscrita | Y9: Descentralizada / Adscrita | AA9: Descentralizada / Adscrita | AD9: Descentralizada / Vinculada | AN9: AUDITORIA AMBIENTAL
J10: Hospital Occidente Kennedy | L10: Canal Capital | O10: Empresa de Telecomunicaciones de Bogotá | Y10: Descentralizada / Adscrita | AA10: Descentralizada / Vinculada | AD10: Descentralizada / Vinculada
J11: Hospital Chapinero | O11: Empresa de Energía de Bogotá | Y11: Descentralizada / Adscrita | AD11: Descentralizada / Vinculada | AH11: TIPO DE RIESGO | AI11: EVALUACIÓN DEL RIESGO
J12: Hospital San Blas | Y12: Descentralizada / Adscrita | AI12: IMPACTO | AJ12: PROBABILIDAD
J13: Hospital San Cristobal | Y13: Descentralizada / Adscrita | AH13: Riesgo Estratégico | AI13: Insignificante | AJ13: Raro
J14: Hospital Suba II Nivel | Y14: Descentralizada / Adscrita | AH14: Riesgo de Imagen | AI14: Menor | AJ14: Improbable
J15: Hospital Usme | Y15: Descentralizada / Adscrita | AH15: Riesgo Operativo | AI15: Moderado | AJ15: Posible
J16: Hospital Tunal | Y16: Descentralizada / Adscrita | AH16: Riesgo Financiero | AI16: Mayor | AJ16: Probable
J17: Hospital Usaquen | Y17: Descentralizada / Adscrita | AH17: Riesgo de Cumplimiento | AI17: Catastrófico | AJ17: Casi Seguro
J18: Hospital Vista Hermosa | Y18: Descentralizada / Adscrita | AH18: Riesgo de Tecnología
J19: Hospital Sur | Y19: Descentralizada / Adscrita | AH19: Riesgo de Seguridad y Salud en el Trabajo
J20: Hospital Pablo VI Bosa | Y20: Descentralizada / Adscrita | AH20: Riesgo Ambiental
J21: Hospital Tunjuelito | Y21: Descentralizada / Adscrita | AH21: OTRO
J22: Hospital Simón Bolivar | Y22: Descentralizada / Adscrita
J23: Hospital de Nazareth | Y23: Descentralizada / Adscrita
J24: Hospital Engativa | Y24: Descentralizada / Adscrita | AH24: ZONA DE RIESGO
J25: Hospital Santa Clara | Y25: Descentralizada / Adscrita | AI25: Insignificante | AJ25: Menor | AK25: Moderado | AL25: Mayor | AM25: Catastrófico
J26: Hospital Meissen | Y26: Descentralizada / Adscrita | AH26: Raro | AI26: BAJA | AJ26: BAJA | AK26: MODERADA | AL26: ALTA | AM26: ALTA
J27: Hospital La Victoria | Y27: Descentralizada / Adscrita | AH27: Improbable | AI27: BAJA | AJ27: BAJA | AK27: MODERADA | AL27: ALTA | AM27: EXTREMA
J28: Hospital Bosa II Nivel | Y28: Descentralizada / Adscrita | AH28: Posible | AI28: BAJA | AJ28: MODERADA | AK28: ALTA | AL28: EXTREMA | AM28: EXTREMA
AH29: Probable | AI29: MODERADA | AJ29: ALTA | AK29: ALTA | AL29: EXTREMA | AM29: EXTREMA
AH30: Casi Seguro | AI30: ALTA | AJ30: ALTA | AK30: EXTREMA | AL30: EXTREMA | AM30: EXTREMA
AH33: OPCIONES DE MANEJO
AI34: Insignificante | AJ34: Menor | AK34: Moderado | AL34: Mayor | AM34: Catastrófico
AH35: Raro | AI35: Asumir el riesgo | AJ35: Asumir el riesgo | AK35: Asumir o Reducir el riesgo | AL35: Reducir, Evitar, Compartir o Transferir el riesgo | AM35: Reducir, Evitar, Compartir o Transferir el riesgo
AH36: Improbable | AI36: Asumir el riesgo | AJ36: Asumir el riesgo | AK36: Asumir o Reducir el riesgo | AL36: Reducir, Evitar, Compartir o Transferir el riesgo | AM36: Reducir, Evitar, Compartir o Transferir el riesgo
AH37: Posible | AI37: Asumir el riesgo | AJ37: Asumir o Reducir el riesgo | AK37: Reducir, Evitar, Compartir o Transferir el riesgo | AL37: Reducir, Evitar, Compartir o Transferir el riesgo | AM37: Reducir, Evitar, Compartir o Transferir el riesgo
AH38: Probable | AI38: Asumir o Reducir el riesgo | AJ38: Reducir, Evitar, Compartir o Transferir el riesgo | AK38: Reducir, Evitar, Compartir o Transferir el riesgo | AL38: Reducir, Evitar, Compartir o Transferir el riesgo | AM38: Reducir, Evitar, Compartir o Transferir el riesgo
AH39: Casi Seguro | AI39: Reducir, Evitar, Compartir o Transferir el riesgo | AJ39: Reducir, Evitar, Compartir o Transferir el riesgo | AK39: Reducir, Evitar, Compartir o Transferir el riesgo | AL39: Reducir, Evitar, Compartir o Transferir el riesgo | AM39: Reducir, Evitar, Compartir o Transferir el riesgo
AH47: 1 | AI47: =+AH47/400 -> 0.0025
AH48: 2 | AI48: =+AH48/400 -> 0.005
AH49: 3 | AI49: =+AH49/400 -> 0.0075
AH50: 4 | AI50: =+AH50/400 -> 0.01
AH51: 5 | AI51: =+AH51/400 -> 0.0125 | AJ51: 100
B54: PILARES - EJES PLAN DE DESARROLLO | J54: RELACIÓN DE CAUSAS | N54: RELACIÓN DE CAUSAS
B55: PILAR_1 | C55: PILAR_2 | D55: PILAR_3 | E55: EJE_TRANSVERSAL_UNO | F55: EJE_TRANSVERSAL_DOS | G55: EJE_TRANSVERSAL_TRES | H55: EJE_TRANSVERSAL_CUATRO | J55: Gestión_Contractual | K55: Gestión_Presupuestal | L55: Gestión_Fisica | M55: Otra | N55: Gestión_Contractual | O55: Gestión_Presupuestal | P55: Gestión_Fisica
B56: Igualdad de Calidad de Vida | C56: Democracia Urbana | D56: Construcción de Comunidad y Cultura Ciudadana | E56: Nuevo Ordenamiento Territorial | F56: Desarrollo economico basado en el conocimiento | G56: Sostenibilidad ambiental basada en eficiencia energética | H56: Gobierno Legítimo, fortalecimiento local y eficiencia | N56: PLANEAR | O56: PLANEAR | P56: PLANEAR
B57: Prevención_y_atención_de_la_maternidad_y_la_paternidad_tempranas | C57: Infraestructura_para_el_Desarrollo_del_Hábitat | D57: Seguridad_y_convivencia_para_todos | E57: Información_relevante_e_integral_para_la_planeación_territorial | F57: Fundamentar_el_Desarrollo_Económico_en_la_generación_y_uso_del_conocimiento_para_mejorar_la_competitividad_de_la_Ciudad_Región | G57: Recuperación_y_manejo_de_la_estructura_ecológica_principal | H57: Transparencia_gestion_publica_y_servicio_al_ciudadano | J57: Deficiente y/o incompleta formulación del Plan Anual de Adquisiciones y/o Presupuesto Anual. | K57: Falta de instrumentos y/o metodologías para estimar precios, valores y/o presupuesto. | L57: Falta definir y/o incumplimiento de actividades de programación para la realización del producto y/o prestación del servicio. | N57: PLANEAR | O57: PLANEAR | P57: PLANEAR
B58: Desarrollo_integral_desde_la_gestación_hasta_la_adolescencia | C58: Intervenciones_Integrales_del_Hábitat | D58: Fortalecimiento_del_sistema_de_protección_integral_a_mujeres_víctimas_de_la_violencia_SOFÍA | E58: Proyectos_urbanos_integrales_con_visión_de_ciudad | F58: Generar_alternativas_de_ingreso_y_empleo_de_mejor_calidad | G58: Ambiente_sano_para_la_equidad_y_disfrute_del_ciudadano | H58: Modernizacion_institucional | J58: Incumplimiento y/o modificaciones al plan contractual/ plan de compras aprobado. | K58: Incumplimiento a la programación definida en el “PAC”. | L58: Falta de previsión y/o omisión de actividades y/o indisponibilidad de recursos (físicos, tecnológicos, humanos) previos y necesarios para el desarrollo del producto y/o prestación del servicio | N58: PLANEAR | O58: PLANEAR | P58: PLANEAR
B59: Igualdad_y_autonomía_para_una_Bogotá_incluyente | C59: Recuperación_incorporación_vida_urbana_y_control_de_la_ilegalidad | D59: Justicia_para_todos_consolidación_del_sistema_Distrital_de_Justicia | E59: Suelo_para_reducir_el_déficit_habitacional_de_suelo_urbanizable_vivienda_y_soportes_urbanos | F59: Elevar_la_eficiencia_de_los_mercados_de_la_ciudad | G59: Gestión_de_la_Huella_ambiental_urbana | H59: Gobierno_y_ciudadania_digital | J59: Falta de definición y/o incumplimiento de tiempos/términos al interior de la Entidad para desarrollar la contratación. | K59: Falta de definición de tiempos/ términos al interior de la Entidad para adelantar trámites de solicitud del CDP, RP y/o giro/pago. | L59: Obligaciones y objeto contractual, plazo y precio desajustados a la realidad de su ejecución / necesidades de la Entidad. | N59: PLANEAR | O59: PLANEAR | P59: HACER
B60: Familias_protegidas_y_adaptadas_al_cambio_climático | C60: Integración_social_para_una_ciudad_de_oportunidades | D60: Bogotá_vive_los_derechos_humanos | E60: Articulación_regional_y_planeación_integral_del_transporte | F60: Mejorar_y_fortalecer_el_recaudo_tributario_de_la_ciudad_e_impulsar_el_uso_de_mecanismos_de_vinculación_de_capital_privado | G60: Desarrollo_rural_sostenible | J60: Diferencias de criterios para definir la modalidad y requisitos para la contratación al interior de la organización. | K60: Imprecisas y/o indefinidas directrices y lineamientos | L60: Trámites sujetos a la aprobación de entidades externas. | N60: PLANEAR | O60: PLANEAR | P60: HACER
B61: Desarrollo_integral_para_la_felicidad_y_el_ejercicio_de_la_ciudadanía | C61: Espacio_público_derecho_de_todos | D61: Bogotá_mejor_para_las_victimas_la_paz_y_la_reconciliación | E61: Financiación_para_el_Desarrollo_Territorial | F61: Bogotá_ciudad_inteligente | J61: Desconocimiento de políticas, procesos y procedimientos definidos para adelantar procesos de contratación. | K61: Desconocimiento de los procesos y procedimientos (Gestiones relacionadas con la expedición de CDP, RP y solicitudes de giros/pagos). | L61: Inoportuna y/o desatención de los requerimientos del contratista respecto a contingencias en la ejecución contractual. | N61: HACER | O61: HACER | P61: HACER
B62: Calidad_educativa_para_todos | C62: Mejor_movilidad_para_todos | D62: Equipo_por_la_educación_para_el_reencuentro_la_reconciliación_y_la_paz | E62: Propietarios_de_vivienda_en_bogota_a_traves_del_arriendo | F62: Bogotá_una_ciudad_digital | J62: Deficiente y/o imprecisa elaboración de estudios y diseños previos (técnicos, económicos y jurídicos). | K62: Demoras en la expedición de la Certificación por parte del interventor. | L62: Terminación anticipada del contrato. | N62: HACER | O62: HACER | P62: HACER
B63: Inclusión_educativa_para_la_equidad | D63: Cambio_cultural_y_construcción_del_tejido_social_para_la_vida | F63: Consolidar_el_turismo_como_factor_de_desarrollo_confianza_y_felicidad_para_Bogotá_Región | J63: Falta de claridad y/o imprecisión en los criterios de evaluación de propuestas | K63: Demoras en el perfeccionamiento de los contratos. | L63: Desarticulación entre las entidades y/o sectores responsables de la ejecución de la meta. | N63: HACER | O63: HACER | P63: HACER
B64: acceso_con_calidad_a_la_educación_superior | J64: Trámites sujetos a la aprobación de entidades externas. | K64: Demoras en el trámite de Acta de Inicio. | L64: Deficiente/falta de supervisión/interventoría en la ejecución de cronogramas, productos y servicios previstos en las obligaciones y objetos contractuales. | N64: HACER | O64: HACER | P64: VERIFICAR
B65: Atención_Integral_y_eficiente_en_salud | J65: Demoras en la convocatoria y/o celebración de las reuniones de los Comités de Adjudicación - Contratación (o quien haga sus veces). | K65: Inoportunidad en el envío y/o incumplimiento de requisitos presentados para tramitar el pago/giro. | L65: Falta o esporádicos seguimientos al avance físico previsto de las metas. | N65: VERIFICAR | O65: HACER | P65: VERIFICAR
B66: Modernización_de_la_infraestructura_física_y_tecnológica_en_salud | J66: Errores y/o imprecisiones en los resultados de las Evaluaciones técnicas, financieras y jurídicas. | K66: Incorrecta y/o inoportuna liquidación del Contrato. | L66: Falta y/o inoportuna ejecución de acciones contractuales dados las contingencias, reajustes y precisiones que promueven precisar la realización del producto y/o prestación del servicio. | N66: VERIFICAR | O66: HACER | P66: ACTUAR
B67: Mejores_oportunidades_para_el_desarrollo_a_través_de_la_cultura_la_recreación_y_el_deporte | J67: Demoras en la realización de ajustes y/o presentación de modificaciones a los estudios previos y/o documentos relacionados con la etapa precontractual. | K67: Falta comunicación y/o retroalimentación por parte de los gerentes de proyectos, el área financiera de la Entidad y/o representante legal – gerente. | L67: Falta y/o Inoportuna toma de decisiones frente a los resultados de los seguimientos de las metas físicas. | N67: ACTUAR | O67: VERIFICAR | P67: ACTUAR
B68: Mujeres_protagonistas_activas_y_empoderadas_en_el_cierre_de_brechas_de_género | J68: OTRA | K68: Falta o esporádicos seguimientos presupuestales – contractuales en la Entidad. | L68: OTRA | N68: - | O68: VERIFICAR | P68: -
D69: , | K69: Demoras en el trámite de modificaciones presupuestales previstas (adiciones y/o reducciones) | O69: ACTUAR
D70: , | K70: OTRA | O70: -
E74: RANGOS DE INTERPRETACIÓN
E75: 0 | F75: 0.65 | G75: ALERTA
E76: =+F75+0.1% -> 0.651 | F76: 0.9 | G76: ACEPTABLE
E77: =+F76+0.1% -> 0.901 | F77: 1 | G77: SATISFACTORIO
B79: METAS
B81: =B55 -> PILAR_1
B82: =B56 -> Igualdad de Calidad de Vida
B83: =B57 -> Prevención_y_atención_de_la_maternidad_y_la_paternidad_tempranas | C83: =B58 -> Desarrollo_integral_desde_la_gestación_hasta_la_adolescencia | D83: =B59 -> Igualdad_y_autonomía_para_una_Bogotá_incluyente | E83: =B60 -> Familias_protegidas_y_adaptadas_al_cambio_climático | F83: =B61 -> Desarrollo_integral_para_la_felicidad_y_el_ejercicio_de_la_ciudadanía | G83: =B62 -> Calidad_educativa_para_todos | H83: =B63 -> Inclusión_educativa_para_la_equidad | I83: =B64 -> acceso_con_calidad_a_la_educación_superior | J83: =B65 -> Atención_Integral_y_eficiente_en_salud | K83: =B66 -> Modernización_de_la_infraestructura_física_y_tecnológica_en_salud | L83: =B67 -> Mejores_oportunidades_para_el_desarrollo_a_través_de_la_cultura_la_recreación_y_el_deporte | M83: =B68 -> Mujeres_protagonistas_activas_y_empoderadas_en_el_cierre_de_brechas_de_género
A84: Metas | B84: Diseñar e implementar una (1) estrategia distrital de prevención y atención integral de la maternidad y paternidad temprana | C84: Diseñar e implementar la Ruta Integral de Atenciones para niños, niñas y adolescentes | D84: Entregar el 100% de los apoyos alimentarios programados | E84: Garantizar que el 100% de los hogares comunitarios, FAMIS y sustitutos del ICBF, notificados a las empresas prestadoras, reciban las tarifas diferenciales de servicios públicos, contenidas en el artículo 214 de la Ley 1753 de 2015 y el acuerdo 325 de 2008 | F84: 23.685 niños, niñas, adolescentes y jóvenes en situación de vida de y en calle, se vinculan a la oferta del IDIPRON | G84: 376 Instituciones Educativas Distritales con talento humano, Maestros, maestras y directivos docentes apoyando los procesos de mejoramiento de la calidad educativa de la ciudad | H84: 12.000 niños, niñas, adolescentes y adultos desescolarizados que se logran matricular en el sistema educativo, a través de estrategias de búsqueda activa | I84: Promover 35.000 cupos para el acceso a la educación superior | J84: Contar con el diseño, la operación completa y consolidada, el monitoreo y evaluación del nuevo modelo de atención en salud para Bogotá D.C. | K84: Construir 40 Centros de Atención Prioritaria en Salud (CAPS) | L84: Crear centros de perfeccionamiento deportivo que permitan la articulación entre las escuelas de formación deportiva y los programas de alto rendimiento | M84: Una estrategia de promoción de derechos de las mujeres dirigida a niñas, niños y adolescentes, con foco en derechos sexuales y reproductivos, implementada
C85: 76.241 cupos para atender niños y niñas de 0 a 5 años en el marco de la Ruta Integral de Atenciones | D85: Diseñar e implementar 1 estrategia de educación nutricional con enfoque familiar | E85: Incentivar y promover el cumplimiento de la norma de sismo resistencia y el reforzamiento estructural | F85: 900 niños, niñas, adolescentes en riesgo de explotación sexual comercial se vinculan a la oferta del IDIPRON | G85: 11.492 docentes y directivos docentes participando en los diferentes programas de formación desarrollados en el marco de la Red de Innovación del Maestro | H85: 14.449 estudiantes en extra-edad que se atienden en el sistema educativo mediante modelos flexibles y estrategias semiescolarizadas | I85: 1000 estudiantes participantes del piloto de educación virtual y blended learning en el marco del programa acceso con calidad a la educación superior | J85: Garantizar la atención y mejorar el acceso a los servicios a más de 1.500.000 habitantes de Bogotá D.C. con el nuevo modelo de atención integral | K85: Construir 4 centrales de urgencias (CEUS) | L85: Garantizar la asistencia técnica del IDRD a las escuelas de formación deportiva por los Fondos de Desarrollo Local | M85: Una campaña de promoción de cero tolerancia institucional y social a las violencias perpetradas contra niñas, adolescentes y jóvenes
C86: 43.000 niños, niñas y adolescentes de 6 a 17 años y 11 meses en riesgo o situación de trabajo infantil, víctimas y/o afectados por el conflicto armado, o vinculados al Sistema de Responsabilidad Penal Adolescente en medio abierto serán atendidos en el marco de la ruta integral de atenciones en el año 2020 | D86: Diseñar e implementar un instrumento de validación de condiciones para identificar y priorizar personas en inseguridad alimentaria severa y moderada | E86: Formular una política de reasentamiento | F86: Atender el 100% de niñas, niños y adolescentes victimas de explotación sexual y comercial, que reciba el IDIPRON (estimado en 130 NNA) | G86: 3 Centros de Innovación que dinamizan las estrategias y procesos de la Red de Innovación del Maestro | H86: 37 Instituciones Educativas Distritales que se operan mediante administración del servicio educativo | I86: Crear el Subsistema de Educación Superior en la ciudad, con un enfoque de avance en la Innovación, la Ciencia y la Tecnología | J86: Aumentar al 30% la cobertura en detección temprana de alteraciones relacionadas con condiciones crónicas, (Cardiovascular, Diabetes, EPOC, Cáncer) | K86: Construir 2 instalaciones hospitalarias | L86: Realizar torneos interbarriales en 4 deportes | M86: Una campaña de promoción de nuevas identidades de género (masculinidades y feminidades) en ejecución
C87: 83.000 cupos para la atención integral de niños y niñas de 4 y 5 años | D87: Capacitar 35.000 familias en educación nutricional | E87: Atender al 100% de la población afectada por emergencias y desastres con respuesta integral y coordinada del SDGR - CC | F87: 1.440 niños, niñas y adolescentes en riesgo de estar en conflicto con la ley se vinculan a la oferta preventiva del IDIPRON | G87: 270 IED desarrollando procesos de fortalecimiento de competencias básicas, técnicas y tecnológicas de los estudiantes de educación media | H87: 100% de estudiantes de IED beneficiados con alimentación escolar | I87: Diseño y puesta en marcha de un esquema de aseguramiento de las Instituciones de Formación para el Trabajo y el Desarrollo Humano | J87: Aumentar en un 15% las personas que tienen prácticas adecuadas de cuidado y auto cuidado en Salud Oral | K87: Reponer 4 instalaciones hospitalarias incluyendo el Hospital de Usme | L87: Implementar el Sistema Distrital de Formación Artística y Cultural (SIDFAC) | M87: Definir e implementar una estrategia para fortalecer el Consejo Consultivo de Mujeres de Bogotá y los comités operativos locales de mujeres
D88: Identificar 50.000 personas en inseguridad alimentaria severa y moderada mediante el instrumento de validación de condiciones | E88: Construcción de 16 obras de mitigación | F88: Diseñar e implementar una (1) ruta de prevención para jóvenes | G88: Sistema de seguimiento a la política educativa distrital en los contextos escolares ajustado e implementado | H88: 20 localidades acompañadas en la implementación y seguimiento de planes de cobertura educativa (acceso y permanencia escolar) | J88: Diseñar e implementar un programa de detección temprana de la enfermedad de alzhéimer en Adultos Mayores | K88: Crear una plataforma tecnológica virtual | L88: Realizar 634.250 atenciones a niños, niñas y adolescentes en el marco del programa Jornada Única y Tiempo Escolar durante el cuatrenio | M88: Vincular a 3.000 mujeres a la escuela de formación política de mujeres
D89: 60% sectores distritales que incorporan acciones para la ejecución de la PPLGBTI | E89: Reasentar a 4.286 familias localizadas en zonas de riesgo no mitigable (286 a cargo del IDIGER) | F89: Integrar 30 organizaciones públicas y privadas a la Ruta de Oportunidades para Jóvenes (ROJ) | G89: 100% de IED desarrollando el proyecto de uso y apropiación de TIC | H89: 100% de implementación de la Ruta del Acceso y la Permanencia Escolar | J89: Garantizar el 100% de la atención integral de prestación de servicios demandados en salud mental en las cuatros subredes integradas de servicio de salud de acuerdo a la Ley 1616 de 2013, dentro de los servicios demandados | L89: Realizar 81.000 atenciones a niños y niñas en el programa de Atención Integral a la Primera Infancia | M89: Fortalecer 500 mujeres en instancias de participación de nivel distrital y local
D90: Implementar una (1) Campaña de cambio cultural para la trasformación de representaciones sociales discriminatorias hacia las personas de los sectores LGBTI | F90: Formular e implementar la Política Pública de Juventud 2017 - 2027 | G90: 100% IED acompañadas en la implementación del modelo de atención educativa diferencial | H90: 13.000 nuevos adultos atendidos a través de estrategias de alfabetización | J90: Realizar acciones encaminadas a disminuir el porcentaje de abortos ilegales | L90: Atender 4.343 formadores en las áreas de patrimonio, artes, recreación y deporte | M90: 22 Casas de Igualdad de Oportunidades en operación, incluyendo dos especializadas en la garantía de los derechos de las mujeres en ejercicio de prostitución
D91: Atender 13.000 personas de los sectores LGBTI | F91: 306 jóvenes del IDIPRON serán guías de cultura ciudadana durante el cuatrienio | G91: 100% de IED acompañadas en el fortalecimiento de su currículo para transformación de sus prácticas de aula | H91: 30 colegios nuevos correspondientes a: 3 en ejecución, 5 en diseño y 22 en gestión de predios | J91: Realizar estudio de costo efectividad de la vacuna del meningococo para población en riesgo e incorporar al PAI Distrital de manera progresiva en los próximos 4 años de vacuna contra meningococo para población en riesgo | L91: Profesionalización de 45 agentes del sector | M91: Vincular 63.000 mujeres en su diversidad a procesos de promoción, reconocimiento y apropiación de sus derechos a través de las casas de igualdad de oportunidades para las mujeres
D92: Entregar a 90.318 personas mayores en situación de vulnerabilidad socioeconómica apoyos económicos | F92: 9.060 jóvenes con vulneración de derechos aceptan la oferta distrital de competencias laborales | G92: 100% de IED que ejecutan el nuevo Plan de Lectura y Escritura del Distrito | H92: 32 colegios oficiales con restituciones, terminaciones o ampliaciones | J92: Diseñar un plan y poner en marcha las estrategias para lograr en un plazo máximo de 10 años el saneamiento de las deudas y la capitalización de la EPS Capital Salud | L92: Beneficiar anualmente 1.400 deportistas de alto rendimiento | M92: Realizar 30.000 orientaciones psicosociales que contribuyan al mejoramiento de la calidad de vida de las mujeres
D93: Atender integralmente en el servicio centros día a 15.000 personas mayores en fragilidad social en la ciudad de Bogotá | G93: 10% de estudiantes de grado 11 del sector oficial en nivel B1 o superior de inglés como segunda lengua | H93: 376 colegios para el proceso de enseñanza - aprendizaje operando | J93: Contar con el diseño, la operación completa y consolidada, el monitoreo y evaluación del nuevo esquema de aseguramiento automático | L93: Realizar 20 procesos de investigación, sistematización y memoria | M93: Alcanzar 33.475 visitas a la página web del OMEG, durante el cuatrienio 2016 - 2020
D94: Disponer de 1.940 cupos en centros de protección social para atender a las personas mayores con dependencia severa o moderada en vulnerabilidad social | G94: Sistema integral de evaluación y acreditación de la calidad de la educación en Bogotá en operación | H94: 300 sedes de IED con mejoramientos de infraestructura | J94: Garantizar la continuidad de 1.291.158 afiliados al régimen subsidiado de salud y ampliar coberturas hasta alcanzar 1.334.667 | L94: Aumentar en un 25% el número de libro disponibles en la red capital de bibliotecas públicas - Bibliored y otros espacios públicos de lectura | M94: Formular e implementar un plan de igualdad de oportunidades para la equidad de género con un marco de ejecución de mediano plazo (2016-2030)
D95: Disponer 250 cupos en el servicio centro noche para la atención por noche de personas mayores en situación de vulnerabilidad asociada a la falta de lugar estable para dormir | G95: Construir una línea de base del número de estudiantes con trastornos de aprendizaje pertenecientes al Sistema Educativo Oficial en articulación con las estrategias establecidas con el sector salud | J95: Garantizar la atención al 100% de la población pobre no asegurada (vinculados) que demande los servicios de salud y la prestación de los servicios de salud No POS-S | L95: Incrementar en un 15% el número de asistencias a actividades de fomento y formación para la lectura y la escritura | M95: Formular e implementar 13 planes sectoriales de Transversalización de la Igualdad de Género
D96: Disponer 500 cupos para la cualificación de cuidadoras y cuidadores de personas mayores en el Distrito Capital | G96: 30% de matrícula oficial en jornada única | J96: Lograr y mantener coberturas de vacunación iguales o mayores al 95% en todos los biológicos del PAI | L96: Aumentar a 95 los paraderos para Libros para Parques | M96: 5400 personas en ejercicio de la prostitución participan en jornadas de derechos humanos, desarrollo personal y salud
D97: Implementar un (1) sistema de seguimiento y monitoreo de la PPSEV | G97: 35% de matrícula oficial en actividades de uso del tiempo escolar | J97: 800 personas farmacodependientes, beneficiadas anualmente con programas de atención y tratamiento | L97: Aumentar a 12 las biblioestaciones en Transmilenio | M97: Un (1) documento de caracterización cualitativa y cuantitativa de las personas en ejercicio de prostitución, explotación sexual y trata de personas con fines de explotación sexual
D98: Atender 3.289 personas con discapacidad en centros crecer, centros de protección, centro renacer y centros integrarte | J98: Incrementar en un 18,5% la tasa de donación de órganos actual | L98: Poner en funcionamiento 9 puestos de lectura en plazas de mercado | M98: Generar una Política Pública Distrital para la protección integral y la generación de oportunidades para las personas en ejercicio de prostitución y la lucha contra la explotación sexual y la trata de personas con fines de explotación sexual
D99: Vincular a 1500 servidores públicos en procesos de competencias para la atención inclusiva a personas con discapacidad | J99: Incrementar en un 49% la tasa de trasplantes actual | L99: Fortalecer 50 centros de desarrollo infantil ACUNAR y/o hogares comunitarios y/o núcleos de Familias en Acción, con programas de lectura | P99: ,
D100: Construir la línea base de percepción de barreras actitudinales y sistema de seguimiento | J100: Crear 1 Instituto Distrital de Ciencia, Biotecnología e Innovación en Salud | L100: Apoyar 50 bibliotecas comunitarias | P100: ,
D101: Atender 11.897 Ciudadanos Habitantes de Calle por año en calle y en centros de la SDIS | J101: Consolidar 1 Centro Distrital de Educación e Investigación en Salud | L101: Consolidar una biblioteca digital de Bogotá | P101: ,
D102: Diseñar e implementar una (1) estrategia comunicativa masiva de ciudad para la prevención de la violencia intrafamiliar | J102: Propuesta para crear 1 Instituto Distrital para la Gestión de las Urgencias y emergencias y de la Atención Pre-Hospitalaria y domiciliaria en Bogotá | L102: Formular e implementar la política pública de emprendimiento y fomento a las industrias culturales y creativas | P102: ,
D103: Orientar 12.000 personas en procesos de prevención de la violencia intrafamiliar, atendidas por los servicios sociales de la SDIS | J103: Crear 1 Laboratorio Distrital y Regional de Salud Pública | L103: Fortalecer 4 iniciativas de clúster y valor compartido | P103: ,
D104: Capacitar 15.000 funcionarios y funcionarias de las entidades distritales y personas de la Sociedad Civil para la atención integral y la prevención de violencia intrafamiliar y delito sexual | J104: Reducir en 20% el diferencial que ocurre en las localidades dónde se concentra el 70% de la morbilidad por trasmisibles | L104: Crear el capítulo Bogotá en la cuenta satélite de cultura | P104: ,
J105: Desarrollar las cuatro subredes integradas de servicios de salud | L105: Creación de 7 nuevos centros orquestales | P105: ,
L106: Aumentar a 3.143 el número de estímulos entregados a agentes del sector | P106: ,
L107: Aumentar a 400 los proyectos de organizaciones culturales, recreativas y deportivas apoyados | P107: ,
B109: =C55 -> PILAR_2
B110: =C56 -> Democracia Urbana
B111: =C57 -> Infraestructura_para_el_Desarrollo_del_Hábitat | C111: =C58 -> Intervenciones_Integrales_del_Hábitat | D111: =C59 -> Recuperación_incorporación_vida_urbana_y_control_de_la_ilegalidad | E111: =C60 -> Integración_social_para_una_ciudad_de_oportunidades | F111: =C61 -> Espacio_público_derecho_de_todos | G111: =C62 -> Mejor_movilidad_para_todos
A112: Metas | B112: Construir una (1) línea base de separación en la fuente doméstica | C112: Titular 10.000 predios | D112: Monitorear el 100% de polígonos identificados de control y prevención, en áreas susceptibles de ocupación ilegal | E112: Un Centro Crecer (personas con discapacidad menores de 18 años) entre 2016 y 2019 que cumplan con requerimientos de diseño universal | F112: Consolidar 1 (Un) Observatorio de Espacio Público | G112: Señalizar verticalmente el total de malla vial construida y conservada
B113: Construir una (1) línea base para construcción de indicador de aprovechamiento de residuos | C113: Iniciar 150.000 viviendas en Bogotá | E113: Realizar mantenimiento al menos al 60% de las unidades operativas de SDIS | F113: Actualizar el Plan Maestro de Espacio Público | G113: Demarcar el total de malla vial construida y conservada
B114: 26 servicios funerarios integrales prestados en los cementerios de propiedad del Distrito | C114: Formular 10 proyectos de renovación urbana priorizados | E114: 13 jardines infantiles construidos entre 2016 y 2019 que cumplan con los estándares arquitectónicos | F114: Recuperar, revitalizar sostenible - 75 Kms de ejes viales de alto impacto peatonal y vehicular sostenibles | G114: Construir 30 km de nueva malla vial
B115: 4.000 subsidios del servicio funerario entregados a población vulnerable de Bogotá | C115: Gestionar suelo para 8 manzanas para proyectos de renovación urbana | E115: Un Centro día (persona mayor) construido entre 2016 y 2019 que cumpla con requerimientos de diseño universal | F115: Recuperar 134 estaciones de Transmilenio | G115: Conservar 750 km carril de malla vial arterial, troncal e intermedia y local (por donde circulan las rutas de Transmilenio troncal y zonal)
B116: Construir 3 parques lineales para recuperar el sistema hídrico en ríos, quebradas, humedales y/o embalses | C116: Desarrollar el 100% de las intervenciones priorizadas de mejoramiento | E116: 19 Unidades de Protección Integral con adecuación física y de conectividad | F116: Recuperar 20 zonas de acceso | G116: Rehabilitar 20 km carril de malla vial rural
B117: Adecuación del 100% de las redes de acueducto y alcantarillado asociadas a la infraestructura para la construcción del metro | C117: Brindar asistencia técnica a 81 prestadores de los servicios públicos de acueducto identificados | E117: 2 sedes del IDIPRON intervenidas | F117: Recuperar 500 predios de zonas verdes de cesión | G117: Mantener periódicamente de 50 km carril de malla vial rural
B118: Tratar 454 millones de metros cúbicos de agua | C118: Iniciar 60.000 viviendas VIS en Bogotá | F118: Construcción o adecuación de 75 canchas sintéticas | G118: Conservar y rehabilitar 1,083 km carril de la infraestructura vial local (por donde no circulan rutas de Transmilenio zonal)
B119: Avanzar 20% en la gestión del proyecto PTAR Canoas Fase I | C119: Crear un programa de asistencia técnica para mejoramiento de vivienda | F119: Gestionar la construcción de 5 equipamientos culturales, recreativos y deportivos | G119: Diseñar y poner en marcha el 100% de la política de estacionamientos
B120: Avanzar 70% en la construcción de la Estación Elevadora Canoas | C120: Gestionar 10 intervenciones integrales de mejoramiento en los territorios priorizados | F120: Mejorar 132 equipamientos culturales, recreativos y deportivos | G120: Implementar el 100% de la segunda fase - Sistema Inteligente de Transporte
B121: Alcanzar el 100% del sistema de interceptores Río Bogotá | F121: Adquisición de siete predios en el parque zonal Hacienda Los Molinos, localidad Rafael Uribe Uribe | G121: Diseñar e implementar de la segunda fase de semáforos inteligentes
B122: Construir 91.81 km de redes de conducción, matrices y locales de acueducto | F122: Construcción y/o mejoramiento de 64 parques en todas las escalas, en los que se construirán cuatro xtreme parks | G122: Diseñar e implementar el 100% de la primera fase de Detección Electrónica de Infracciones (DEI)
B123: Construir 62,40 km de redes de alcantarillado sanitario | F123: 1.009 Bienes de Interés Cultural (BIC) intervenidos | G123: Diseñar e implementar en un 100% una estrategia integral para fomentar el uso de la bicicleta a nivel local y distrital
B124: Construir y/o renovar 88 km de redes troncales, secundarias y locales de alcantarillado pluvial | F124: Formular el Plan Especial de Manejo y Protección del Centro | G124: Habilitar 3,5 millones de m2 de espacio público
B125: Continuidad del servicio de acueducto mayor o igual a 98% | F125: 250.000 ciudadanos que recorren el sendero panorámico y los cerros orientales | G125: Construir 120 km de ciclorrutas en calzada y/o a nivel de andén
B126: Índice de reclamación operativa de alcantarillado menor igual a 0,30% | F126: Adecuar 15 km del sendero panorámico de los cerros orientales | G126: Conservar 1,2 millones de m2 de espacio público
C127: , | G127: Conservar 100 km de ciclorrutas
C128: , | G128: Implementar 1500 ciclo parqueaderos en la ciudad asociados al Transmilenio | K128: ,
G129: 52 estrategias integrales de seguridad vial que incluyan Cultura Ciudadana implementadas en un punto, tramo o zona | K129: ,
G130: Actualización del Plan Distrital de Seguridad Vial | K130: ,
G131: Implementación del Plan de Seguridad vial para motocicletas que incluya el componente de cultura ciudadana | K131: ,
G132: Diseño e implementación de una (1) estrategia integral de cultura ciudadana para el Sistema de Transporte Masivo de Bogotá | K132: ,
G133: Disminuir a 80% la percepción de inseguridad en el Sistema de Transporte Masivo
G134: Revisión e implementación del 100% de los servicios troncales y rutas zonales
G135: Diseño y puesta en marcha del 100% del Plan Anti evasión en el Sistema de Transporte Público
G136: Aumentar en 5% el número total de viajes en Transporte Público (LB= 43%)
G137: Alcanzar 170 km de troncales (construir 57 km nuevos de troncal)
G138: Avanzar en el 30% de la obra civil del proyecto de la primera línea del metro en su Etapa I
G139: Re configuración de 8 km de troncales (Etapa II, Av. Caracas)
B141: =D55 -> PILAR_3
B142: =D56 -> Construcción de Comunidad y Cultura Ciudadana
B143: =D57 -> Seguridad_y_convivencia_para_todos | C143: =D58 -> Fortalecimiento_del_sistema_de_protección_integral_a_mujeres_víctimas_de_la_violencia_SOFÍA | D143: =D59 -> Justicia_para_todos_consolidación_del_sistema_Distrital_de_Justicia | E143: =D60 -> Bogotá_vive_los_derechos_humanos | F143: =D61 -> Bogotá_mejor_para_las_victimas_la_paz_y_la_reconciliación | G143: =D62 -> Equipo_por_la_educación_para_el_reencuentro_la_reconciliación_y_la_paz | H143: =D63 -> Cambio_cultural_y_construcción_del_tejido_social_para_la_vida
B144: Adelantar el 100% de acciones para la prevención y mitigación del riesgo de incidentes forestales (connatos, quemas e incendios) | C144: Atender a 16.667 mujeres víctimas de violencias a través de la oferta institucional de la SDMujer | D144: 9 entidades de justicia formal, no formal y comunitaria operando en el marco del modelo del Sistema Distrital de Justicia | E144: Implementar un Sistema Distrital de Derechos Humanos | F144: Atender el 100% de personas con ayuda humanitaria inmediata que cumplan con los requisitos de ley | G144: 100% directores locales y rectores formados para fortalecer espacios de participación ciudadana en educación para el reencuentro, la reconciliación y la paz | H144: Emitir 2.500 programas de Educación, Cultura, Recreación y Deporte, con enfoque poblacional y local
B145: Realizar 100 consejos locales de seguridad en UPZ críticas | C145: Diseñar un lineamiento técnico para la formación de los servidores y servidoras de entidades distritales con competencia en prevención, investigación, judicialización, sanción y reparación de todas las formas de violencia contra las mujeres | D145: Aumentar el 20% de ciudadanos orientados en el acceso a la justicia en las Casas de Justicia | E145: Implementar Política Integral de Derechos Humanos del Distrito | F145: Aplicar a 80.000 Personas los Planes Integrales de Atención con seguimiento (PIA) | G145: 100% de implementación del Observatorio de Convivencia Escolar para el reencuentro, la reconciliación y la paz | H145: Implementar la red de cultura ciudadana y democrática
B146: Implementar el 100% de un aplicativo para la denuncia | C146: 5.000 servidores y servidoras públicos profesionales en derecho capacitados en temáticas de mujer y género | D146: Aumentar en 5 Casas de Justicia en funcionamiento | E146: 15,000 personas certificadas en Derechos Humanos que incluyen tanto servidores públicos como ciudadanía en escenarios formales | F146: Diseñar e implementar 3 estrategias para la memoria, la paz y la reconciliación | G146: 100% de IED con el Plan de Convivencia actualizado, ajustado y fortalecido para el reencuentro, la reconciliación y la paz | H146: Formular e implementar una (1) política pública de cultura ciudadana
B147: Diseñar e implementar el 100% del Centro de Comando y Control | C147: Implementar un proceso de fortalecimiento de capacidades de servidores y servidoras con responsabilidades en la garantía del derecho de las mujeres a una vida libre de violencias y lucha contra el machismo | D147: Aumentar en 4 Casas de Justicia móviles en funcionamiento | E147: 30,000 personas certificadas, promocionadas y sensibilizadas en derechos humanos para la paz y la reconciliación | F147: 2 Territorios de la ciudad con laboratorios de paz | G147: 30 IED intervenidas con el programa de mejoramiento de sus entornos escolares que propenda hacia la mejora de las condiciones de seguridad, pandillismo y consumo de sustancias psicoactivas | H147: Orientar la formulación y acompañar la implementación de 16 proyectos de transformación cultural del distrito
B148: Elaborar 20 documentos de política pública que involucren la utilización de métodos cuantitativos, geoestadísticos y cualitativos de investigación para respaldar con evidencia empírica el proceso de toma de decisiones | C148: 50.000 atenciones a mujeres realizadas a través de la Línea Púrpura | D148: Implementar en el 100% de las Unidades Permanentes de Justicia un Modelo de Atención Restaurativo | E148: 15,000 personas certificadas en D.H. que incluyen tanto servidores públicos como ciudadanía en escenarios informales | G148: 30% de IED acompañadas para el fortalecimiento de sus escuelas de padres y familia | H148: Orientar la formulación y acompañar la implementación de 60 protocolos de investigación, sistematización y memorias sociales de los proyectos estratégicos del sector Cultura, Recreación y Deporte
B149: Implementar 100% la dirección de análisis de información para la toma de decisiones | C149: Proteger integralmente a 3200 personas (mujeres víctimas de violencia y personas a cargo) | D149: Diseñar e implementar el 100% de 2 Centros Integrales de Justicia | E149: Implementar en las 20 localidades iniciativas para la protección de Derechos humanos | G149: 100% de IED que implementan la cátedra de la paz con enfoque de cultura ciudadana | H149: Acompañar 10 actuaciones urbanísticas en el territorio, en el marco del programa de mejoramiento integral de barrios
B150: Diseñar e implementar al 100% una estrategia articulada con los organismos de seguridad y justicia contra las bandas criminales vinculadas al micro trafico | C150: Lograr la consolidación del 100% de la información oficial disponible en materia de violencias contra las mujeres, a través de un Sistema Integrado de Medición | D150: Implementar al 100% 2 Centros de Atención Especializada para sanción privativa de la libertad | E150: 100% de la plataforma para la acción social y comunitaria de las comunidades religiosas implementada | H150: Realizar 9 intervenciones de Vivienda de Interés Prioritario (VIP), en el marco del programa nacional Comunidad-es arte biblioteca y cultura
B151: Diseñar e implementar al 100% el Plan Integral de Seguridad, Convivencia y Justicia para Bogotá | C151: Representar jurídicamente 1000 casos de violencias contra las mujeres, desde los enfoques de derechos de las mujeres, de género y diferencial, en el Distrito Capital | D151: 400 jóvenes que resuelven sus conflictos con la ley a través del Programa Distrital de Justicia Juvenil Restaurativa | E151: Crear un área de trabajo en la Secretaria Distrital de Gobierno para asuntos religiosos | H151: Realizar 132.071 actividades culturales, recreativas y deportivas, articuladas con grupos poblacionales y/o territorios
B152: Incrementar en un 10% los Centros de Atención Inmediata (CAI) construidos en Bogotá | C152: Realizar 35000 orientaciones y asesorías jurídicas a mujeres víctimas de violencias a través de Casas de Igualdad de Oportunidades para las Mujeres y otros espacios institucionales | D152: Aumentar en un 15% los jóvenes sancionados con privación de la libertad que son atendidos integralmente | E152: Crear un Comité Distrital de Libertad Religiosa | H152: Alcanzar 1.700.000 asistencias al Museo de Bogotá, a recorridos y rutas patrimoniales y a otras prácticas patrimoniales
B153: Aumentar en 2000 el número de policías en Bogotá | C153: Diseñar e implementar un protocolo de atención a mujeres víctimas de violencias en el transporte público | D153: Implementar al 100% el modelo de atención diferencial para adolescentes y jóvenes que ingresan al SRPA (Sistema de Responsabilidad Penal para Adolescentes) | E153: Formular una Política pública de libertad religiosa, de culto y conciencia
B154: Construir el 100% de la sede de la Policía Metropolitana de Bogotá | C154: Implementar una campaña de prevención de las violencias ejercidas en el espacio público contra las mujeres en su diversidad | D154: Brindar al 100% de la población privada de la libertad en la Cárcel Distrital de Varones y el Anexo de Mujeres atención integral y su adecuada operación | E154: Vincular 80 movimientos o grupos sociales a la Red de Derechos Humanos
B155: Presentar 100% proyecto de Acuerdo para la reforma al Código de Policía de Bogotá | C155: Implementar 20 Planes Locales de Seguridad para las Mujeres | D155: 100% de los protocolos puestos en funcionamiento para la implementación del Código Nacional de Policía | E155: 20 Alcaldías locales que mantienen o incrementan líneas de acción de derechos humanos en el POAL (Plan operativo de acción local) | I155: ,
B156: Crear (1) Escuela de Formación y Capacitación de Bomberos | C156: Sesionar Veinte (20) Consejos Locales de Seguridad para las Mujeres | E156: Implementar y mantener la ruta intersectorial para la prevención, protección y asistencia de trata de personas en el Distrito | I156: ,
B157: Renovar en un 50% la dotación de Equipos de Protección Personal del Cuerpo de Bomberos de Bogotá | E157: Implementar 3 Planes de Acciones afirmativas de grupos étnicos | I157: ,
B158: Construcción y puesta en marcha una (1) Academia bomberil de Bogotá | E158: Crear la Mesa Distrital de Prevención y Protección | I158: ,
B159: Aumentar en 2 las estaciones de bomberos en Bogotá | E159: Adoptar en las 20 localidades el Plan Distrital de Prevención y Protección | I159: ,
B160: Implementar (1) estación satélite forestal de bomberos sujeta al proyecto del sendero ambiental en los cerros orientales | E160: Atender 150 personas de la población LGBTI a través del programa de protección integral en la casa refugio | I160: ,
B161: 80.000 luminarias modernizadas y/o remodeladas | E161: Implementar diez (10) espacios de atención diferenciada para los grupos étnicos del D.C. | I161: ,
B162: Brindar al 100% de la población privada de la libertad en la Cárcel Distrital de Varones y el Anexo de Mujeres atención integral y su adecuada operación | I162: ,
B163: 100% de los protocolos puestos en funcionamiento para la implementación del Código Nacional de Policía
B164: Implementar 5 estrategias que fortalezcan la operación de los organismos de seguridad, convivencia y justicia de la ciudad
B166: =E55 -> EJE_TRANSVERSAL_UNO
B167: =E56 -> Nuevo Ordenamiento Territorial
B168: =E57 -> Información_relevante_e_integral_para_la_planeación_territorial | C168: =E58 -> Proyectos_urbanos_integrales_con_visión_de_ciudad | D168: =E59 -> Suelo_para_reducir_el_déficit_habitacional_de_suelo_urbanizable_vivienda_y_soportes_urbanos | E168: =E60 -> Articulación_regional_y_planeación_integral_del_transporte | F168: =E61 -> Financiación_para_el_Desarrollo_Territorial | G168: =E62 -> Propietarios_de_vivienda_en_bogota_a_traves_del_arriendo
B169: 100% del censo de predios residenciales estratificados | C169: Ejecutar 3 fases de elaboración del POT (Formulación concertación y adopción) | D169: Viabilizar 850 hectáreas netas urbanizables de suelo para espacio público, equipamientos, vias, vivienda y otros usos | E169: Diseñar y poner en marcha el plan de logística urbana y regional | F169: 80 hectáreas útiles para vivienda de interés social gestionadas
B170: Implementar el 100% del sistema de plusvalía | C170: Reglamentar 5.000 hectáreas brutas de suelo mediante condiciones normativas de carácter general | E170: Adopción de la red de transporte masivo regional
B171: Implementar el 100% del Plan Estadístico Distrital | E171: Construir avenidas urbanas regionales (esquema de financiación por APP, supeditado al esquema y cierre financiero de las APP)
B172: Implementar el 100% sistema de consulta y seguimiento a licencias en Bogotá
B173: Actualizar 1 base de datos Sisbén mediante la aplicación de encuestas en las modalidades de barrido y demanda | H173: ,
B175: =F55 -> EJE_TRANSVERSAL_DOS
B176: =F56 -> Desarrollo economico basado en el conocimiento
B177: =F57 -> Fundamentar_el_Desarrollo_Económico_en_la_generación_y_uso_del_conocimiento_para_mejorar_la_competitividad_de_la_Ciudad_Región | C177: =F58 -> Generar_alternativas_de_ingreso_y_empleo_de_mejor_calidad | D177: =F59 -> Elevar_la_eficiencia_de_los_mercados_de_la_ciudad | E177: =F60 -> Mejorar_y_fortalecer_el_recaudo_tributario_de_la_ciudad_e_impulsar_el_uso_de_mecanismos_de_vinculación_de_capital_privado | F177: =F61 -> Bogotá_ciudad_inteligente | G177: =F62 -> Bogotá_una_ciudad_digital | H177: =F63 -> Consolidar_el_turismo_como_factor_de_desarrollo_confianza_y_felicidad_para_Bogotá_Región
B178: Atender 320 emprendimientos de oportunidad | C178: Acompañar 1200 emprendimientos o unidades productivas fortalecidas de vendedores informales | D178: Capacitar 5.000 tenderos y/o actores del sistema de abastecimiento presencial y/o virtualmente | E178: Proveer el 100% de una solución tecnológica orientada al contribuyente que facilite el cumplimiento de obligaciones | F178: Formular y realizar el seguimiento de 1 Operación Estratégica para la innovación | G178: Alcanzar 250 zonas de conectividad pública | H178: Cinco (5) atractivos turísticos intervenidos (entre ellos: centro histórico, Monserrate y cerros orientales)Tres productos turísticos intervenidos
B179: Fortalecer 535 unidades productivas en capacidades empresariales y/o formalizarlas | C179: Brindar 3000 alternativas comerciales transitorias a vendedores informales | D179: Administrar y fortalecer 13 plazas públicas de mercado | E179: Sensibilizar 445.170 contribuyentes para que cumplan oportunamente las obligaciones tributarias | F179: Adecuar y optimizar el uso de espacios físicos en la ciudad como escenarios que promuevan y dinamicen el uso y apropiación del emprendimiento, la ciencia, la tecnología y la innovación | G179: Lograr 5 alianzas público - privadas para atender las problemáticas TIC de la ciudad | H179: Novecientas mil (900.000) personas atendidas a través de la red de información turística
B180: Apoyar 75 empresas en procesos de exportación | C180: Vincular a programas de formación 2150 personas que ejercen actividades de economía informal | E180: Implementar y disponer en un 100% de la Base de Datos Unificada de Contribuyentes (Predial, vehículos, ICA) | G180: Desarrollar 5 laboratorios o fábricas de innovación y desarrollo tecnológico | H180: Fortalecer doscientas (200) empresas, prestadores de servicios turísticos y complementarios
B181: Promover 4 programas que consoliden el posicionamiento internacional de la ciudad | C181: Formar 1000 personas que ejercen actividades de la economía informal a través de alianzas por el empleo | E181: Incrementar a 88% el cumplimiento oportuno de las obligaciones de ICA | G181: Realizar 1 Plan de Conectividad Rural | H181: Quinientas (500) personas vinculadas a procesos de formación
B182: Fortalecer 500 unidades productivas en capacidades de desarrollo tecnológico e innovación productiva | C182: Vincular 4.250 personas laboralmente | E182: Incrementar a 96,48% el cumplimiento oportuno de las obligaciones de Predial | G182: Diseñar e implementar una estrategia para el fomento de la economía digital a través de la potenciación de aplicaciones, contenidos y software | H182: Realizar cuatro (4) investigaciones del sector turismo de Bogotá
B183: Intervenir en 3 aglomeraciones, clúster, o encadenamientos productivos de la ciudad | C183: Formar 8.500 personas en competencias transversales y/o laborales | E183: Incrementar a 89,97% el cumplimiento oportuno de las obligaciones de Vehículos | G183: Diseñar e implementar una estrategia para el fortalecimiento de la apropiación de las TIC | H183: Participar y/o realizar doscientas cincuenta (250) actividades de promoción y posicionamiento turístico
B184: Realizar un evento bandera de alto nivel y visibilidad nacional e internacional orientado a posicionar la ciudad como escenario privilegiado para la innovación y las industrias creativas | C184: Remitir desde la Agencia a empleadores al menos 10,000 personas que cumplan con los perfiles ocupacionales | E184: Aumentar a 35% los tramites electrónicos | J184: ,
B185: Formulación de un plan de innovación e industrias creativas | E185: Desarrollar y mejorar una aplicación para trámites de impuestos de Bogotá a través de medios móviles | J185: ,
B186: Crear un manual de diseño y funcionamiento de la Gerencia de Innovación Industrias Creativas | E186: Desarrollar un programa anual de control a la evasión y anti contrabando | J186: ,
B187: Crear y operar un fondo distrital de innovación y temas afines | E187: Reducir al 8,6% el índice de evasión en predial | J187: ,
B188: Impulsar 4 proyectos estratégicos o retos de ciudad | E188: Reducir al 12% el índice de evasión en vehículos | J188: ,
E189: Reducir a 18,8% el índice de evasión en ICA | J189: ,
E190: Implementar y disponer en un 100% de la Base de Datos Unificada de Contribuyentes por evasión | J190: ,
B192: =G55 -> EJE_TRANSVERSAL_TRES
B193: =G56 -> Sostenibilidad ambiental basada en eficiencia energética
B194: =G57 -> Recuperación_y_manejo_de_la_estructura_ecológica_principal | C194: =G58 -> Ambiente_sano_para_la_equidad_y_disfrute_del_ciudadano | D194: =G59 -> Gestión_de_la_Huella_ambiental_urbana | E194: =G60 -> Desarrollo_rural_sostenible
B195: Realizar quince (15) diagnósticos de los PEDH declarados | C195: Formar a más de 3 mil conductores de todo tipo de vehículos en ecoconducción | D195: Generar acciones de control a los pequeños, medianos y grandes generadores de Residuos Peligrosos - RESPEL | E195: Implementar 4 fases del modelo de desarrollo rural
B196: Realizar en 400 hectáreas de suelos de protección procesos de monitoreo y mantenimiento de los procesos ya iniciados | C196: Consolidar un Instituto de protección y bienestar animal | D196: Priorizar y formular las determinantes ambientales | E196: Realizar un diagnóstico de áreas para restauración, mantenimiento y/o conservación
B197: Elaborar conceptos para la gestión de la declaratoria de 100 nuevas hectáreas de áreas protegidas en ecosistema de páramo y alto andino en el D.C. | C197: Otorgar las concesiones, permisos y autorizaciones (50% sanciones y 50% permisos) solicitados a la autoridad ambiental con fines de regularización ambiental del Distrito | D197: Aprovechar 25.000 toneladas de llantas usadas | E197: Identificar predios para adopción de buenas prácticas productivas
B198: Formular y adoptar planes de manejo para el 100% de las hectáreas de Parques Ecológicos Distritales de Montaña | C198: Realizar el 100% de las actuaciones de inspección, vigilancia, control (IVC), seguimiento y monitoreo | D198: Utilizar gradualmente el 20% de gránulo de caucho reciclado y/o residuos de demolición dentro de la mezcla asfáltica que se utilicen para la construcción y reconstrucción de vías de la ciudad | E198: Aumentar a 200 las hectáreas en proceso de restauración, mantenimiento y/o conservación sobre áreas abastecedoras de acueductos veredales asociadas a ecosistemas de montaña, bosques, humedales, ríos, nacimientos, reservorios y lagos
B199: Restauración de 115 has en suelos de protección en riesgo no mitigable | C199: La cuenca hídrica del Rio Bogotá en proceso de descontaminación a través de acciones de corto y mediano plazo | D199: Formular un plan de acción y control para la gestión de las llantas usadas, orientado al aprovechamiento | E199: Duplicar el número de predios con adopción de buenas prácticas productivas que contribuyan a la adaptación y reducción de la vulnerabilidad frente al cambio climático y la promoción del desarrollo sostenible
B200: Aplicar acciones del protocolo de restauración ecológica (diagnóstico, diseño, implementación y mantenimiento) del Distrito en 200 has | C200: Realizar operativos de control y limpieza de las rutas tradicionalmente cubierta por publicidad exterior visual ilegal | D200: Reducir 800.000 toneladas de las emisiones de CO2eq. | E200: Implementar en 80 unidades agrícolas familiares procesos de reconversión productiva
B201: 2 Proyectos de adaptación al cambio climático formulados | C201: Implementar acciones de control | D201: Diseñar e implementar un plan de acción encaminado a la reducción de GEI
B202: Intervenir el 100% de los humedales declarados en el Distrito | C202: Ejecutar el Plan de Saneamiento y Manejo de Vertimientos - PSMV, entre otros proyectos prioritarios | D202: Generar acciones de control para los residuos hospitalarios y de riesgo biológico
B203: Declarar 100 hectáreas nuevas áreas protegidas de ecosistemas de paramo y alto andino en el Distrito Capital | C203: Identificar áreas (has) / predios con suelo degradado y/o contaminado | D203: Implementar la política de ecourbanismo y construcción sostenible
B204: Manejar integralmente 800 hectáreas de Parque Ecológico Distrital de Montaña y áreas de interés ambiental | C204: Priorizar e implementar 16 proyectos del plan de acción de la Política de Bienestar Animal | D204: Formular un (1) proyecto de sistema urbano de drenaje sostenible para manejo de aguas y escorrentías
B205: Diseñar e implementar 10 modelos de Restauración Ecológica En áreas de la Estructura Ecológica Principal de la ciudad Región | C205: Construir un nuevo Centro Recepción y Rehabilitación de Fauna y Flora Silvestre | D205: Techos verdes y jardines verticales implementados
C206: Construir un Centro de Protección y Bienestar Animal - Casa ecológica de los animales | D206: Lograr en 500 empresas un índice de desempeño ambiental empresarial - IDEA - entre muy bueno y excelente
C207: Formular, adoptar y ejecutar el Plan Distrital de Silvicultura Urbana, Zonas verdes y Jardinería con prospectiva de ejecución a 12 años, definido en el Decreto 531 de 2010 y adelantar su implementación en un 30% | D207: Fortalecer el esquema voluntario de autogestión ambiental, el cual involucra las organizaciones de la ciudad, academia y gremios
C208: Plantar 86.000 los árboles y arbustos en el espacio Público urbano | D208: Controlar 32.000.000 de toneladas de residuos de construcción y demolición
C209: Incrementar las zonas verdes de jardinería en 18.000 metros cuadrados nuevos | D209: Aprovechar el 25% de los residuos de construcción y demolición que controla la SDA | H209: ,
C210: 2.500.000 de ciudadanos participan en los programas de socialización de la política ambiental y de las estrategias de gestión de riesgos y cambio climático de la ciudad | D210: Disponer adecuadamente 15.000 toneladas de residuos peligrosos y especiales (posconsumo, de recolección selectiva, voluntarios, aceites vegetales usados, etc.)
C211: Aumentar la calidad de los 20,12 km de río en el área urbana que cuentan con calidad aceptable o superior (WQI >65) a buena o superior (WQI >80) y adicionar 10 km de ríos en el área urbana del Distrito con calidad de agua aceptable o superior (WQI | D211: Controlar y realizar seguimiento a 32.000 toneladas de residuos peligrosos en establecimientos de salud humana y afines
C212: Intervenir 27 hectáreas de suelo degradado y/o contaminado | D212: Incorporar criterios de sostenibilidad en 800 proyectos en la etapa de diseño u operación
C213: Ejecutar 45.000 actuaciones técnico jurídicas de evaluación, control, seguimiento, prevención e investigación para conservar, proteger y disminuir el tráfico ilegal de la flora y de la fauna silvestre | D213: Desarrollar 1 proyecto de sistema urbano de drenaje sostenible para manejo de aguas y escorrentías
C214: Mantener las concentraciones promedio anuales de PM10 y PM2,5 en todo el territorio distrital por debajo de la norma *50 mg/m3 de PM10 y **25 mg/m3 de PM2,5
C215: Plan de manejo de la franja de adecuación y la Reserva Forestal Protectora de los cerros orientales en proceso de implementación
C216: Plan de manejo de la franja de adecuación y la Reserva Forestal Protectora de los cerros orientales en proceso de implementación
B219: =H55 -> EJE_TRANSVERSAL_CUATRO
B220: =H56 -> Gobierno Legítimo, fortalecimiento local y eficiencia
B221: =H57 -> Transparencia_gestion_publica_y_servicio_al_ciudadano | C221: =H58 -> Modernizacion_institucional | D221: =H59 -> Gobierno_y_ciudadania_digital | E221: =H60 -> 0
B222: Índice de Transparencia del Distrito Capital aumentado | C222: Realizar 2 mediciones del Índice de Desarrollo del Servicio Civil | D222: Implementar en un 100% el BPM (Business Process Management) y gestor documental para aquellos procesos identificados que requieran automatización en la SDH | E222: Realizar 40 Asesorías técnicas especializadas en el manejo de relaciones con los actores políticos, económicos y sociales para la formulación de estrategias de concertación con los tomadores de decisiones
B223: Nivel central de la SED certificado según la norma NTCGP1000 | C223: Implementar el 100% de la política pública de empleo | D223: Implementar en un 100% los módulos del ERP (Enterprise Resource Planning) incorporados dentro del plan de trabajo | E223: Acompañar 20 agendas sobre procesos de concertación con actores políticos, económicos y sociales para análisis y transformación de problemas
... 38 more rows

Sheet BD-resultados (hidden)
A2: DATOS JEFE DE CONTROL INTERNO
A3: SECTOR ADMITIVO | B3: NIVEL | C3: ENTIDAD | D3: NOMBRE | E3: VACANTE | F3: =+'ACTUALIZACION DATOS'!P21 -> En Encargo | G3: CORREO ELECTRONICO | H3: TELEFONO | I3: EXTENSIÓN | J3: CELUALR
A8: CUMPLIMIENTO DE LAS METAS DEL PLAN DE DESARROLLO | R8: RELACIÓN DE CAUSAS | Z8: GESTIÓN TOTAL PROMEDIO
A9: ENTIDAD | B9: =+A3 -> SECTOR ADMITIVO | C9: VIGENCIA | D9: PERIODO EVALUADO | E9: PILAR / EJE | F9: ='F1'!C9 -> PROGRAMA | G9: ='F1'!D9 -> Meta Plan de Desarrollo | H9: ='F1'!E9 -> Meta del proyecto de Inversión (Entidad) | I9: ='F1'!F9 -> Presupuesto meta proyecto de Inversión (Entidad) | J9: GESTIÓN CONTRACTUAL | K9: GESTION PRESUPUESTAL | L9: GESTIÓN FÍSICA | R9: EJE | S9: =+B9 -> SECTOR ADMITIVO | T9: PROGRAMA | U9: META | V9: CAUSA RELACIONADA CON: | W9: CAUSA | X9: AFECTA EN EL CICLO PHVA | AB9: GESTION ESPERADA
A10: =$C$4 -> 0 | B10: =$A$4 -> 0 | C10: ='F1'!$N$3 -> 2017 | D10: =+'F1'!$T$3 -> 30 DE JUNIO | E10: =+'F1'!$C$7 -> PILAR_2 | F10: ='F1'!C11 -> Mejor_movilidad_para_todos | G10: ='F1'!D11 -> Avanzar en el 30% de la obra civil del proyecto de la primera línea del metro en su Etapa I | H10: ='F1'!E11 -> Meta N° 1: Ejecutar 100 Porcentaje De Los Recursos Destinados Anualmente A Las Actividades De Gestión Y Desarrollo De La Primera Línea Del Metro | I10: ='F1'!F11 -> 0 | J10: =+'F1'!J11 ->  | K10: =+'F1'!O11 ->  | L10: =+'F1'!T11 ->  | R10: =+E10 -> PILAR_2 | S10: =$A$4 -> 0 | T10: =+F10 -> Mejor_movilidad_para_todos | U10: =G10 -> Avanzar en el 30% de la obra civil del proyecto de la primera línea del metro en su Etapa I | V10: ='F1'!F76 -> Gestión_Contractual | W10: ='F1'!J76 -> OTRA | X10: ='F1'!T76 -> 0 | Z10: GESTIÓN CONTRACTUAL + PROG / EJEC | AA10: =AVERAGE(J10:J226) -> 0.4745373883 | AB10: 1
A11: 0 | B11: =$A$4 -> 0 | C11: ='F1'!$N$3 -> 2017 | D11: =+'F1'!$T$3 -> 30 DE JUNIO | E11: =+'F1'!$C$7 -> PILAR_2 | F11: ='F1'!C13 -> Mejor_movilidad_para_todos | G11: ='F1'!D13 -> Disminuir a 80% la percepción de inseguridad en el Sistema de Transporte Masivo | H11: ='F1'!E13 -> Meta N° 2: Implementar 1 Plan De Seguridad Que Permita Gestionar Y Realizar Iniciativas Para Reducir Los Eventos De Afectación A La Seguridad En El Sistema | I11: ='F1'!F13 -> 27230 | J11: =+'F1'!J13 -> 0.8571428571 | K11: =+'F1'!O13 -> 0.1510099155 | L11: =+'F1'!T13 -> 0.5 | R11: =+R10 -> PILAR_2 | S11: =$A$4 -> 0 | T11: =+F11 -> Mejor_movilidad_para_todos | U11: =G11 -> Disminuir a 80% la percepción de inseguridad en el Sistema de Transporte Masivo | V11: ='F1'!F82 -> Gestión_Contractual | W11: ='F1'!J82 -> OTRA | X11: ='F1'!T82 -> 0 | Z11: GESTIÓN PRESUPUESTAL | AA11: =AVERAGE(K10:K226) -> 0.2348264769 | AB11: 1
A12: 0 | B12: =$A$4 -> 0 | C12: ='F1'!$N$3 -> 2017 | D12: =+'F1'!$T$3 -> 30 DE JUNIO | E12: =+'F1'!$C$7 -> PILAR_2 | F12: ='F1'!C15 -> Mejor_movilidad_para_todos | G12: ='F1'!D15 -> Disminuir a 80% la percepción de inseguridad en el Sistema de Transporte Masivo | H12: ='F1'!E15 -> Meta N° 3: Disminuir 15 Por Ciento El Número De Víctimas Fatales En El Sistema De Transporte Público Gestionado Por Transmilenio S.A. | I12: ='F1'!F15 -> 3021 | J12: =+'F1'!J15 -> 0.5714285714 | K12: =+'F1'!O15 -> 0.04104601125 | L12: =+'F1'!T15 -> 1 | R12: =+R11 -> PILAR_2 | S12: 0 | T12: Mejor_movilidad_para_todos | U12: Disminuir a 80% la percepción de inseguridad en el Sistema de Transporte Masivo | V12: ='F1'!F88 -> Gestión_Contractual | W12: ='F1'!J88 -> OTRA | X12: ='F1'!T88 -> - | Z12: GESTIÓN FÍSICA | AA12: =AVERAGE(L10:L226) -> 0.4718040195 | AB12: 1
A13: 0 | B13: 0 | C13: ='F1'!$N$3 -> 2017 | D13: =+'F1'!$T$3 -> 30 DE JUNIO | E13: =+'F1'!$C$7 -> PILAR_2 | F13: ='F1'!C17 -> Mejor_movilidad_para_todos | G13: ='F1'!D17 -> Diseño y puesta en marcha del 100% del Plan Anti evasión en el Sistema de Transporte Público | H13: ='F1'!E17 -> Meta N° 4: Diseñar E Implementar 1 Plan Para Reducir La Problemática De La Evasión En El Sistema, Incluyendo Medidas De Corto, Mediano Y Largo Plazo. | I13: ='F1'!F17 -> 16714 | J13: =+'F1'!J17 -> 0.2857142857 | K13: =+'F1'!O17 -> 0.01639344262 | L13: =+'F1'!T17 -> 0.5 | R13: PILAR_2 | S13: 0 | T13: Mejor_movilidad_para_todos | U13: Diseño y puesta en marcha del 100% del Plan Anti evasión en el Sistema de Transporte Público | V13: ='F1'!F94 -> Gestión_Contractual | W13: ='F1'!J94 -> OTRA | X13: ='F1'!T94 -> -
A14: 0 | B14: 0 | C14: ='F1'!$N$3 -> 2017 | D14: =+'F1'!$T$3 -> 30 DE JUNIO | E14: =+'F1'!$C$7 -> PILAR_2 | F14: ='F1'!C19 -> Mejor_movilidad_para_todos | G14: ='F1'!D19 -> Diseño e implementación de una (1) estrategia integral de cultura ciudadana para el Sistema de Transporte Masivo de Bogotá | H14: ='F1'!E19 -> Meta N° 5: Realizar 1 Estudio Anual Que Permita Identificar Grupos Poblacionales Que Impactan La Percepción De La Cultura Ciudadana, Normas Sociales, Actitudes Y Comportamientos De Los Usuarios Del Sistema | I14: ='F1'!F19 -> 150 | J14: =+'F1'!J19 -> 0 | K14: =+'F1'!O19 -> 0 | L14: =+'F1'!T19 -> 1 | R14: PILAR_2 | S14: 0 | T14: Mejor_movilidad_para_todos | U14: Diseño e implementación de una (1) estrategia integral de cultura ciudadana para el Sistema de Transporte Masivo de Bogotá | V14: ='F1'!F100 -> Gestión_Contractual | W14: ='F1'!J100 -> OTRA | X14: ='F1'!T100 -> -
A15: 0 | B15: 0 | C15: ='F1'!$N$3 -> 2017 | D15: =+'F1'!$T$3 -> 30 DE JUNIO | E15: =+'F1'!$C$7 -> PILAR_2 | F15: ='F1'!C21 -> Mejor_movilidad_para_todos | G15: ='F1'!D21 -> Diseño e implementación de una (1) estrategia integral de cultura ciudadana para el Sistema de Transporte Masivo de Bogotá | H15: ='F1'!E21 -> Meta N° 6: Diseñar E Implementar 1 Estrategia De Comunicación Enfocada Al Proyecto Cultura Ciudadana En Transmilenio, Que Incluya Control Y Evaluación A La Estrategia Del Proyecto Cultura Ciudadana En Transmilenio | I15: ='F1'!F21 -> 9661 | J15: =+'F1'!J21 -> 0.6666666667 | K15: =+'F1'!O21 -> 0.0160438878 | L15: =+'F1'!T21 -> 0.4 | R15: PILAR_2 | S15: 0 | T15: Mejor_movilidad_para_todos | U15: Diseño e implementación de una (1) estrategia integral de cultura ciudadana para el Sistema de Transporte Masivo de Bogotá | V15: ='F1'!F106 -> Gestión_Contractual | W15: ='F1'!J106 -> OTRA | X15: ='F1'!T106 -> - | Z15: Cuenta de AFECTA EN EL CICLO PHVA
A16: 0 | B16: 0 | C16: ='F1'!$N$3 -> 2017 | D16: =+'F1'!$T$3 -> 30 DE JUNIO | E16: =+'F1'!$C$7 -> PILAR_2 | F16: ='F1'!C23 -> Mejor_movilidad_para_todos | G16: ='F1'!D23 -> Diseño e implementación de una (1) estrategia integral de cultura ciudadana para el Sistema de Transporte Masivo de Bogotá | H16: ='F1'!E23 -> Meta N° 7: Alcanzar El 60 Por Ciento En El Atributo -Cuidado Del Sistema- De La Encuesta De Satisfacción Al Usuario | I16: ='F1'!F23 -> 4078 | J16: =+'F1'!J23 -> 0.25 | K16: =+'F1'!O23 -> 0.01692005885 | L16: =+'F1'!T23 -> 0 | R16: PILAR_2 | S16: 0 | T16: Mejor_movilidad_para_todos | U16: Diseño e implementación de una (1) estrategia integral de cultura ciudadana para el Sistema de Transporte Masivo de Bogotá | V16: ='F1'!F112 -> Gestión_Presupuestal | W16: ='F1'!J112 -> OTRA | X16: ='F1'!T112 -> - | Z16: AFECTA EN EL CICLO PHVA | AA16: Total
A17: 0 | B17: 0 | C17: ='F1'!$N$3 -> 2017 | D17: =+'F1'!$T$3 -> 30 DE JUNIO | E17: =+'F1'!$C$7 -> PILAR_2 | F17: ='F1'!C25 -> Mejor_movilidad_para_todos | G17: ='F1'!D25 -> Aumentar en 5% el número total de viajes en Transporte Público (LB= 43%) | H17: ='F1'!E25 -> Meta N° 8: Remunerar El 100 Por Ciento De La Prestación Del Servicio De Transporte Y Recaudo Del SITP, Durante Las 52 Semanas Del Año | I17: ='F1'!F25 -> 645227 | J17: =+'F1'!J25 ->  | K17: =+'F1'!O25 -> 0.4567710279 | L17: =+'F1'!T25 -> 0.5 | R17: PILAR_2 | S17: 0 | T17: Mejor_movilidad_para_todos | U17: Aumentar en 5% el número total de viajes en Transporte Público (LB= 43%) | V17: ='F1'!F118 -> Gestión_Presupuestal | W17: ='F1'!J118 -> OTRA | X17: ='F1'!T118 -> - | AA17: 126
A18: 0 | B18: 0 | C18: ='F1'!$N$3 -> 2017 | D18: =+'F1'!$T$3 -> 30 DE JUNIO | E18: =+'F1'!$C$7 -> PILAR_2 | F18: ='F1'!C27 -> Mejor_movilidad_para_todos | G18: ='F1'!D27 -> Aumentar en 5% el número total de viajes en Transporte Público (LB= 43%) | H18: ='F1'!E27 -> Meta N° 9: Aumentar 5 Por Ciento Los Viajes En El Sistema De Transporte Público Gestionado Por Transmilenio S.A. | I18: ='F1'!F27 -> 46567 | J18: =+'F1'!J27 -> 0.52 | K18: =+'F1'!O27 -> 0.2422745721 | L18: =+'F1'!T27 -> 0.6 | R18: PILAR_2 | S18: 0 | T18: Mejor_movilidad_para_todos | U18: Aumentar en 5% el número total de viajes en Transporte Público (LB= 43%) | V18: ='F1'!F124 -> Gestión_Presupuestal | W18: ='F1'!J124 -> OTRA | X18: ='F1'!T124 -> - | Z18: Total general | AA18: 126
A19: 0 | B19: 0 | C19: ='F1'!$N$3 -> 2017 | D19: =+'F1'!$T$3 -> 30 DE JUNIO | E19: =+'F1'!$C$7 -> PILAR_2 | F19: ='F1'!C29 -> Mejor_movilidad_para_todos | G19: ='F1'!D29 -> Revisión e implementación del 100% de los servicios troncales y rutas zonales | H19: ='F1'!E29 -> Meta N° 10: Revisar E Implementar El 100 Por Ciento De Las Rutas Del Sistema | I19: ='F1'!F29 -> 26584 | J19: =+'F1'!J29 -> 0.75 | K19: =+'F1'!O29 -> 0.7080198616 | L19: =+'F1'!T29 -> 0.8 | R19: PILAR_2 | S19: 0 | T19: Mejor_movilidad_para_todos | U19: Revisión e implementación del 100% de los servicios troncales y rutas zonales | V19: ='F1'!F130 -> Gestión_Fisica | W19: ='F1'!J130 -> OTRA | X19: ='F1'!T130 -> -
A20: 0 | B20: 0 | C20: ='F1'!$N$3 -> 2017 | D20: =+'F1'!$T$3 -> 30 DE JUNIO | E20: =+'F1'!$C$7 -> PILAR_2 | F20: ='F1'!C31 -> Mejor_movilidad_para_todos | G20: ='F1'!D31 -> Aumentar en 5% el número total de viajes en Transporte Público (LB= 43%) | H20: ='F1'!E31 -> Meta N° 11: Implementar 9 Soluciones De Software En Una Plataforma Computacional Eficiente Que Automaticen Los Procesos De Recaudo Y Remuneración, El Modelo De Programación Y Regulación De Flota, Y El Subsistema De Inteligencia De Negocios | I20: ='F1'!F31 -> 9527 | J20: =+'F1'!J31 -> 0.2857142857 | K20: =+'F1'!O31 -> 0.3945628215 | L20: =+'F1'!T31 -> 0.14 | R20: PILAR_2 | S20: 0 | T20: Mejor_movilidad_para_todos | U20: Aumentar en 5% el número total de viajes en Transporte Público (LB= 43%) | V20: ='F1'!F136 -> Gestión_Fisica | W20: ='F1'!J136 -> OTRA | X20: ='F1'!T136 -> -
A21: 0 | B21: 0 | C21: ='F1'!$N$3 -> 2017 | D21: =+'F1'!$T$3 -> 30 DE JUNIO | E21: =+'F1'!$C$7 -> PILAR_2 | F21: ='F1'!C33 -> Mejor_movilidad_para_todos | G21: ='F1'!D33 -> Aumentar en 5% el número total de viajes en Transporte Público (LB= 43%) | H21: ='F1'!E33 -> Meta N° 12: Reducir 400.000 Toneladas De Gases De Efecto Invernadero (Co2eq) Por La Operación Del Sistema De Transporte Masivo | I21: ='F1'!F33 -> 70 | J21: =+'F1'!J33 -> 0.3333333333 | K21: =+'F1'!O33 -> 0.7 | L21: =+'F1'!T33 -> 0 | R21: PILAR_2 | S21: 0 | T21: Mejor_movilidad_para_todos | U21: Aumentar en 5% el número total de viajes en Transporte Público (LB= 43%) | V21: ='F1'!F142 -> Gestión_Fisica | W21: ='F1'!J142 -> OTRA | X21: ='F1'!T142 -> -
A22: 0 | B22: 0 | C22: ='F1'!$N$3 -> 2017 | D22: =+'F1'!$T$3 -> 30 DE JUNIO | E22: =+'F1'!$C$7 -> PILAR_2 | F22: ='F1'!C35 -> Mejor_movilidad_para_todos | G22: ='F1'!D35 -> Aumentar en 5% el número total de viajes en Transporte Público (LB= 43%) | H22: ='F1'!E35 -> Meta N° 13: Garantizar El 99 Por Ciento La Operación De La Línea De Cable En Relación A Las Horas De Operación Programadas | I22: ='F1'!F35 -> 255 | J22: =+'F1'!J35 -> 0.5 | K22: =+'F1'!O35 -> 0.7368862745 | L22: =+'F1'!T35 -> 0.05208333333 | R22: PILAR_2 | S22: 0 | T22: Mejor_movilidad_para_todos | U22: Aumentar en 5% el número total de viajes en Transporte Público (LB= 43%) | V22: ='F1'!F148 -> Gestión_Fisica | W22: ='F1'!J148 -> OTRA | X22: ='F1'!T148 -> -
A23: 0 | B23: 0 | C23: ='F1'!$N$3 -> 2017 | D23: =+'F1'!$T$3 -> 30 DE JUNIO | E23: =+'F1'!$C$7 -> PILAR_2 | F23: ='F1'!C37 -> Mejor_movilidad_para_todos | G23: ='F1'!D37 -> Aumentar en 5% el número total de viajes en Transporte Público (LB= 43%) | H23: ='F1'!E37 -> Meta N° 14: Gestionar 100 Por Ciento De Los Servicios Del Componente Brt En Operación, Incluyendo Troncales, Duales Y Alimentadores | I23: ='F1'!F37 -> 18860 | J23: =+'F1'!J37 -> 0.5909090909 | K23: =+'F1'!O37 -> 0.2892895016 | L23: =+'F1'!T37 -> 0.5 | R23: PILAR_2 | S23: 0 | T23: Mejor_movilidad_para_todos | U23: Aumentar en 5% el número total de viajes en Transporte Público (LB= 43%) | V23: ='F1'!F154 -> Gestión_Fisica | W23: ='F1'!J154 -> OTRA | X23: ='F1'!T154 -> -
A24: 0 | B24: 0 | C24: ='F1'!$N$3 -> 2017 | D24: =+'F1'!$T$3 -> 30 DE JUNIO | E24: =+'F1'!$C$7 -> PILAR_2 | F24: ='F1'!C39 -> Mejor_movilidad_para_todos | G24: ='F1'!D39 -> Aumentar en 5% el número total de viajes en Transporte Público (LB= 43%) | H24: ='F1'!E39 -> Meta N° 15: Supervisar 100 Por Ciento De La Operación De Las Rutas Zonales En Servicio | I24: ='F1'!F39 -> 3050 | J24: =+'F1'!J39 -> 0.523255814 | K24: =+'F1'!O39 -> 0.4996721311 | L24: =+'F1'!T39 -> 0.5 | R24: PILAR_2 | S24: 0 | T24: Mejor_movilidad_para_todos | U24: Aumentar en 5% el número total de viajes en Transporte Público (LB= 43%) | V24: ='F1'!F160 -> 0 | W24: ='F1'!J160 -> 0 | X24: ='F1'!T160 -> 
A25: 0 | B25: 0 | C25: ='F1'!$N$3 -> 2017 | D25: =+'F1'!$T$3 -> 30 DE JUNIO | E25: =+'F1'!$C$7 -> PILAR_2 | F25: ='F1'!C41 -> Mejor_movilidad_para_todos | G25: ='F1'!D41 -> Aumentar en 5% el número total de viajes en Transporte Público (LB= 43%) | H25: ='F1'!E41 -> Meta N° 16: Garantizar El 100 Por Ciento De Las Estaciones En Condiciones Óptimas Para El Servicio Incluyendo Aseo, Servicios Públicos Y Equipamiento Adicional | I25: ='F1'!F41 -> 13590 | J25: =+'F1'!J41 -> 0.625 | K25: =+'F1'!O41 -> 0.3235467255 | L25: =+'F1'!T41 -> 1 | R25: PILAR_2 | S25: 0 | T25: Mejor_movilidad_para_todos | U25: Aumentar en 5% el número total de viajes en Transporte Público (LB= 43%) | V25: ='F1'!F166 -> 0 | W25: ='F1'!J166 -> 0 | X25: ='F1'!T166 -> 
A26: 0 | B26: 0 | C26: ='F1'!$N$3 -> 2017 | D26: =+'F1'!$T$3 -> 30 DE JUNIO | E26: =+'F1'!$C$7 -> PILAR_2 | F26: ='F1'!C43 -> Mejor_movilidad_para_todos | G26: ='F1'!D43 -> Aumentar en 5% el número total de viajes en Transporte Público (LB= 43%) | H26: ='F1'!E43 -> Meta N° 17: Planificar Y Gestionar Los Recursos Para 73 Estaciones Para Adelantar Acciones De Intervención Física En Mejoramiento Y Reconfiguración De Infraestructura Troncal En Operación | I26: ='F1'!F43 -> 264709 | J26: =+'F1'!J43 -> 0 | K26: =+'F1'!O43 -> 0 | L26: =+'F1'!T43 -> 0 | R26: PILAR_2 | S26: 0 | T26: Mejor_movilidad_para_todos | U26: Aumentar en 5% el número total de viajes en Transporte Público (LB= 43%) | V26: ='F1'!F172 -> 0 | W26: ='F1'!J172 -> 0 | X26: ='F1'!T172 -> 
A27: 0 | B27: 0 | C27: ='F1'!$N$3 -> 2017 | D27: =+'F1'!$T$3 -> 30 DE JUNIO | E27: =+'F1'!$C$7 -> PILAR_2 | F27: ='F1'!C45 -> Mejor_movilidad_para_todos | G27: ='F1'!D45 -> Alcanzar 170 km de troncales (construir 57 km nuevos de troncal) | H27: ='F1'!E45 -> Meta N° 18: Planificar Y Gestionar Los Recursos Para 57 Kilómetros Nuevos De Troncal Con Actividades Que Incluyen Expansión Y Mejoramiento De La Infraestructura Troncal Necesaria Para La Operación Del Sistema Transmilenio | I27: ='F1'!F45 -> 1468597 | J27: =+'F1'!J45 ->  | K27: =+'F1'!O45 -> 0.0424548055 | L27: =+'F1'!T45 -> 0.254 | R27: =+R26 -> PILAR_2 | S27: 0 | T27: Mejor_movilidad_para_todos | U27: Alcanzar 170 km de troncales (construir 57 km nuevos de troncal) | V27: ='F1'!F178 -> 0 | W27: ='F1'!J178 -> 0 | X27: ='F1'!T178 -> 
A28: 0 | B28: 0 | C28: ='F1'!$N$3 -> 2017 | D28: =+'F1'!$T$3 -> 30 DE JUNIO | E28: =+'F1'!$C$7 -> PILAR_2 | F28: ='F1'!C47 -> Mejor_movilidad_para_todos | G28: ='F1'!D47 -> Aumentar en 5% el número total de viajes en Transporte Público (LB= 43%) | H28: ='F1'!E47 -> Meta N° 19: Planificar Y Gestionar Los Recursos Para 9 Patios Zonales Para La Expansión Y Mejoramiento De La Infraestructura Zonal, Con Inversión Pública O Privada | I28: ='F1'!F47 -> 83179 | J28: =+'F1'!J47 -> 0.5333333333 | K28: =+'F1'!O47 -> 0.01062768247 | L28: =+'F1'!T47 -> 0 | R28: =+E41 -> PILAR_2 | S28: 0 | T28: =F41 -> Transparencia_gestion_publica_y_servicio_al_ciudadano | U28: =G41 -> Mantener 80% de satisfacción en los servicios prestados por las entidades del sector movilidad | V28: ='F1'!F255 -> Gestión_Contractual | W28: ='F1'!J255 -> OTRA | X28: ='F1'!T255 -> -
A29: 0 | B29: 0 | C29: ='F1'!$N$3 -> 2017 | D29: =+'F1'!$T$3 -> 30 DE JUNIO | E29: =+'F1'!$C$7 -> PILAR_2 | F29: ='F1'!C49 -> Mejor_movilidad_para_todos | G29: ='F1'!D49 -> Implementar 1500 ciclo parqueaderos en la ciudad asociados al Transmilenio | H29: ='F1'!E49 -> Meta N° 20: Aumentar 1500 Cupos De Parqueo Para Bicicletas | I29: ='F1'!F49 -> 4506 | J29: =+'F1'!J49 -> 0 | K29: =+'F1'!O49 -> 0 | L29: =+'F1'!T49 -> 1 | R29: =+R28 -> PILAR_2 | S29: 0 | T29: =F42 -> Transparencia_gestion_publica_y_servicio_al_ciudadano | U29: =G42 -> Mantener 80% de satisfacción en los servicios prestados por las entidades del sector movilidad | V29: ='F1'!F261 -> Gestión_Contractual | W29: ='F1'!J261 -> OTRA | X29: ='F1'!T261 -> -
A30: 0 | B30: 0 | C30: ='F1'!$N$3 -> 2017 | D30: =+'F1'!$T$3 -> 30 DE JUNIO | E30: =+'F1'!$C$7 -> PILAR_2 | F30: ='F1'!C51 -> Mejor_movilidad_para_todos | G30: ='F1'!D51 -> Aumentar en 5% el número total de viajes en Transporte Público (LB= 43%) | H30: ='F1'!E51 -> Meta N° 21: Mejorar Y/O Mantener 147 Estaciones Del Sistema Transmilenio Con Acciones De Mantenimiento Preventivo, Correctivo Y De Mejoramiento De Las Condiciones Físicas | I30: ='F1'!F51 -> 19300 | J30: =+'F1'!J51 -> 0.6666666667 | K30: =+'F1'!O51 -> 0.01082901554 | L30: =+'F1'!T51 -> 1 | R30: PILAR_2 | S30: 0 | T30: Transparencia_gestion_publica_y_servicio_al_ciudadano | U30: Mantener 80% de satisfacción en los servicios prestados por las entidades del sector movilidad | V30: ='F1'!F267 -> Gestión_Contractual | W30: ='F1'!J267 -> OTRA | X30: ='F1'!T267 -> -
A31: 0 | B31: 0 | C31: ='F1'!$N$3 -> 2017 | D31: =+'F1'!$T$3 -> 30 DE JUNIO | E31: =+'F1'!$C$7 -> PILAR_2 | F31: ='F1'!C53 -> Mejor_movilidad_para_todos | G31: ='F1'!D53 -> Aumentar en 5% el número total de viajes en Transporte Público (LB= 43%) | H31: ='F1'!E53 -> Meta N° 22: Mejorar Y/O Mantener 7500 Paraderos Del Componente Zonal Con Acciones De Mantenimiento Preventivo, Correctivo Y De Mejoramiento De Las Condiciones Físicas | I31: ='F1'!F53 -> 7000 | J31: =+'F1'!J53 -> 0 | K31: =+'F1'!O53 -> 0 | L31: =+'F1'!T53 -> 0.2205555556 | R31: PILAR_2 | S31: 0 | T31: Transparencia_gestion_publica_y_servicio_al_ciudadano | U31: Mantener 80% de satisfacción en los servicios prestados por las entidades del sector movilidad | V31: ='F1'!F273 -> Gestión_Presupuestal | W31: ='F1'!J273 -> OTRA | X31: ='F1'!T273 -> -
A32: 0 | B32: 0 | C32: ='F1'!$N$3 -> 2017 | D32: =+'F1'!$T$3 -> 30 DE JUNIO | E32: =+'F1'!$C$7 -> PILAR_2 | F32: ='F1'!C55 -> 0 | G32: ='F1'!D55 -> 0 | H32: ='F1'!E55 -> 0 | I32: ='F1'!F55 -> 0 | J32: =+'F1'!J55 ->  | K32: =+'F1'!O55 ->  | L32: =+'F1'!T55 ->  | R32: PILAR_2 | S32: 0 | T32: Modernizacion_institucional | U32: Lograr un índice nivel medio de desarrollo institucional en el sector movilidad | V32: ='F1'!F279 -> Gestión_Presupuestal | W32: ='F1'!J279 -> OTRA | X32: ='F1'!T279 -> -
A33: 0 | B33: 0 | C33: ='F1'!$N$3 -> 2017 | D33: =+'F1'!$T$3 -> 30 DE JUNIO | E33: =+'F1'!$C$7 -> PILAR_2 | F33: ='F1'!C57 -> 0 | G33: ='F1'!D57 -> 0 | H33: ='F1'!E57 -> 0 | I33: ='F1'!F57 -> 0 | J33: =+'F1'!J57 ->  | K33: =+'F1'!O57 ->  | L33: =+'F1'!T57 ->  | R33: PILAR_2 | S33: 0 | T33: Modernizacion_institucional | U33: Lograr un índice nivel medio de desarrollo institucional en el sector movilidad | V33: ='F1'!F285 -> Gestión_Presupuestal | W33: ='F1'!J285 -> OTRA | X33: ='F1'!T285 -> -
A34: 0 | B34: 0 | C34: ='F1'!$N$3 -> 2017 | D34: =+'F1'!$T$3 -> 30 DE JUNIO | E34: =+'F1'!$C$7 -> PILAR_2 | F34: ='F1'!C59 -> 0 | G34: ='F1'!D59 -> 0 | H34: ='F1'!E59 -> 0 | I34: ='F1'!F59 -> 0 | J34: =+'F1'!J59 ->  | K34: =+'F1'!O59 ->  | L34: =+'F1'!T59 ->  | R34: PILAR_2 | S34: 0 | T34: Modernizacion_institucional | U34: Lograr un índice nivel medio de desarrollo institucional en el sector movilidad | V34: ='F1'!F291 -> Gestión_Fisica | W34: ='F1'!J291 -> 0 | X34: ='F1'!T291 -> 
A35: 0 | B35: 0 | C35: ='F1'!$N$3 -> 2017 | D35: =+'F1'!$T$3 -> 30 DE JUNIO | E35: =+'F1'!$C$7 -> PILAR_2 | F35: ='F1'!C61 -> 0 | G35: ='F1'!D61 -> 0 | H35: ='F1'!E61 -> 0 | I35: ='F1'!F61 -> 0 | J35: =+'F1'!J61 ->  | K35: =+'F1'!O61 ->  | L35: =+'F1'!T61 ->  | R35: PILAR_2 | S35: 0 | T35: Modernizacion_institucional | U35: Lograr un índice nivel medio de desarrollo institucional en el sector movilidad | V35: ='F1'!F297 -> Gestión_Fisica | W35: ='F1'!J297 -> 0 | X35: ='F1'!T297 -> 
A36: 0 | B36: 0 | C36: ='F1'!$N$3 -> 2017 | D36: =+'F1'!$T$3 -> 30 DE JUNIO | E36: =+'F1'!$C$7 -> PILAR_2 | F36: ='F1'!C63 -> 0 | G36: ='F1'!D63 -> 0 | H36: ='F1'!E63 -> 0 | I36: ='F1'!F63 -> 0 | J36: =+'F1'!J63 ->  | K36: =+'F1'!O63 ->  | L36: =+'F1'!T63 ->  | R36: PILAR_2 | S36: 0 | T36: Modernizacion_institucional | U36: Lograr un índice nivel medio de desarrollo institucional en el sector movilidad | V36: ='F1'!F303 -> 0 | W36: ='F1'!J303 -> 0 | X36: ='F1'!T303 -> 
A37: 0 | B37: 0 | C37: ='F1'!$N$3 -> 2017 | D37: =+'F1'!$T$3 -> 30 DE JUNIO | E37: =+'F1'!$C$7 -> PILAR_2 | F37: ='F1'!C65 -> 0 | G37: ='F1'!D65 -> 0 | H37: ='F1'!E65 -> 0 | I37: ='F1'!F65 -> 0 | J37: =+'F1'!J65 ->  | K37: =+'F1'!O65 ->  | L37: =+'F1'!T65 ->  | R37: PILAR_2 | S37: 0 | T37: Modernizacion_institucional | U37: Lograr un índice nivel medio de desarrollo institucional en el sector movilidad | V37: ='F1'!F309 -> Gestión_Fisica | W37: ='F1'!J309 -> OTRA | X37: ='F1'!T309 -> -
A38: 0 | B38: 0 | C38: ='F1'!$N$3 -> 2017 | D38: =+'F1'!$T$3 -> 30 DE JUNIO | E38: =+'F1'!$C$7 -> PILAR_2 | F38: ='F1'!C67 -> 0 | G38: ='F1'!D67 -> 0 | H38: ='F1'!E67 -> 0 | I38: ='F1'!F67 -> 0 | J38: =+'F1'!J67 ->  | K38: =+'F1'!O67 ->  | L38: =+'F1'!T67 ->  | R38: PILAR_2 | S38: 0 | T38: 0 | U38: 0 | V38: ='F1'!F315 -> 0 | W38: ='F1'!J315 -> 0 | X38: ='F1'!T315 -> 
A39: 0 | B39: 0 | C39: ='F1'!$N$3 -> 2017 | D39: =+'F1'!$T$3 -> 30 DE JUNIO | E39: =+'F1'!$C$7 -> PILAR_2 | F39: ='F1'!C69 -> 0 | G39: ='F1'!D69 -> 0 | H39: ='F1'!E69 -> 0 | I39: ='F1'!F69 -> 0 | J39: =+'F1'!J69 ->  | K39: =+'F1'!O69 ->  | L39: =+'F1'!T69 ->  | R39: PILAR_2 | S39: 0 | T39: 0 | U39: 0 | V39: ='F1'!F321 -> 0 | W39: ='F1'!J321 -> 0 | X39: ='F1'!T321 -> 
A40: 0 | B40: 0 | C40: ='F1'!$N$3 -> 2017 | D40: =+'F1'!$T$3 -> 30 DE JUNIO | E40: =+'F1'!$C$7 -> PILAR_2 | F40: ='F1'!C71 -> 0 | G40: ='F1'!D71 -> 0 | H40: ='F1'!E71 -> 0 | I40: ='F1'!F71 -> 0 | J40: =+'F1'!J71 ->  | K40: =+'F1'!O71 ->  | L40: =+'F1'!T71 ->  | R40: PILAR_2 | S40: 0 | T40: 0 | U40: 0 | V40: ='F1'!F327 -> 0 | W40: ='F1'!J327 -> 0 | X40: ='F1'!T327 -> 
A41: 0 | B41: 0 | C41: ='F1'!$N$3 -> 2017 | D41: =+'F1'!$T$3 -> 30 DE JUNIO | E41: ='F1'!$C$186 -> PILAR_2 | F41: =+'F1'!C190 -> Transparencia_gestion_publica_y_servicio_al_ciudadano | G41: =+'F1'!D190 -> Mantener 80% de satisfacción en los servicios prestados por las entidades del sector movilidad | H41: =+'F1'!E190 -> Meta N° 1: Diseñar E Implementar El 100 Por Ciento De Un Esquema Operativo De Atención Al Usuario En El Sistema Zonal Y Troncal Que Informe Y Oriente Al Usuario En El Sistema, Haciendo Énfasis En Las Franjas Horarias De Mayor Afluencia | I41: =+'F1'!F190 -> 3281 | J41: =+'F1'!J190 -> 0.875 | K41: =+'F1'!O190 -> 0.3611703749 | L41: =+'F1'!T190 -> 0.625 | R41: PILAR_2 | S41: 0 | T41: 0 | U41: 0 | V41: ='F1'!F333 -> 0 | W41: ='F1'!J333 -> 0 | X41: ='F1'!T333 -> 
A42: 0 | B42: 0 | C42: ='F1'!$N$3 -> 2017 | D42: =+'F1'!$T$3 -> 30 DE JUNIO | E42: ='F1'!$C$186 -> PILAR_2 | F42: =+'F1'!C192 -> Transparencia_gestion_publica_y_servicio_al_ciudadano | G42: =+'F1'!D192 -> Mantener 80% de satisfacción en los servicios prestados por las entidades del sector movilidad | H42: =+'F1'!E192 -> Meta N° 2: Diseñar E Implementar El 100 Por Ciento De Un Esquema Operativo De Atención A Las Comunidades Y Grupos De Interés En Los Componentes Zonal Y Troncal, Que Permita Atender Las Necesidades De Información, Capacitación U Orientación Que Cubra El 100% De Los Espacios Del Servicio Y Zonas De Impacto Operativo | I42: =+'F1'!F192 -> 135 | J42: =+'F1'!J192 -> 0.5 | K42: =+'F1'!O192 -> 0.3185185185 | L42: =+'F1'!T192 -> 0.25 | R42: PILAR_2 | S42: 0 | T42: 0 | U42: 0 | V42: ='F1'!F339 -> 0 | W42: ='F1'!J339 -> 0 | X42: ='F1'!T339 -> 
A43: 0 | B43: 0 | C43: ='F1'!$N$3 -> 2017 | D43: =+'F1'!$T$3 -> 30 DE JUNIO | E43: ='F1'!$C$186 -> PILAR_2 | F43: =+'F1'!C194 -> Transparencia_gestion_publica_y_servicio_al_ciudadano | G43: =+'F1'!D194 -> Mantener 80% de satisfacción en los servicios prestados por las entidades del sector movilidad | H43: =+'F1'!E194 -> Meta N° 3: Aumentar Al 80 Por Ciento El Nivel De Satisfacción Del Usuario, Respecto De La Encuesta De Satisfacción Usuarios Transmilenio - Troncal Y Zonal En Lo Correspondiente A La Medición De Comunicaciones | I43: =+'F1'!F194 -> 8727 | J43: =+'F1'!J194 -> 0.6774193548 | K43: =+'F1'!O194 -> 0.2212673313 | L43: =+'F1'!T194 -> 0 | R43: PILAR_2 | S43: 0 | T43: 0 | U43: 0 | V43: ='F1'!F345 -> 0 | W43: ='F1'!J345 -> 0 | X43: ='F1'!T345 -> 
A44: 0 | B44: 0 | C44: ='F1'!$N$3 -> 2017 | D44: =+'F1'!$T$3 -> 30 DE JUNIO | E44: ='F1'!$C$186 -> PILAR_2 | F44: =+'F1'!C196 -> Transparencia_gestion_publica_y_servicio_al_ciudadano | G44: =+'F1'!D196 -> Mantener 80% de satisfacción en los servicios prestados por las entidades del sector movilidad | H44: =+'F1'!E196 -> Meta N° 4: Reducir 4 Días El Tiempo De Respuesta Promedio A Las Pqrs Presentadas Por Los Usuarios | I44: =+'F1'!F196 -> 386 | J44: =+'F1'!J196 -> 1 | K44: =+'F1'!O196 -> 0.4766839378 | L44: =+'F1'!T196 -> 0.25 | R44: PILAR_2 | S44: 0 | T44: 0 | U44: 0 | V44: ='F1'!F351 -> 0 | W44: ='F1'!J351 -> 0 | X44: ='F1'!T351 -> 
A45: 0 | B45: 0 | C45: ='F1'!$N$3 -> 2017 | D45: =+'F1'!$T$3 -> 30 DE JUNIO | E45: ='F1'!$C$186 -> PILAR_2 | F45: =+'F1'!C198 -> Modernizacion_institucional | G45: =+'F1'!D198 -> Lograr un índice nivel medio de desarrollo institucional en el sector movilidad | H45: =+'F1'!E198 -> Meta N° 5: Adecuar Y Mantener 1 Sede Administrativa En Condiciones Apropiadas De Uso | I45: =+'F1'!F198 -> 214 | J45: =+'F1'!J198 -> 0 | K45: =+'F1'!O198 -> 0 | L45: =+'F1'!T198 -> 1 | R45: =+R44 -> PILAR_2 | S45: 0 | T45: 0 | U45: 0 | V45: ='F1'!F357 -> 0 | W45: ='F1'!J357 -> 0 | X45: ='F1'!T357 -> 
A46: 0 | B46: 0 | C46: ='F1'!$N$3 -> 2017 | D46: =+'F1'!$T$3 -> 30 DE JUNIO | E46: ='F1'!$C$186 -> PILAR_2 | F46: =+'F1'!C200 -> Modernizacion_institucional | G46: =+'F1'!D200 -> Lograr un índice nivel medio de desarrollo institucional en el sector movilidad | H46: =+'F1'!E200 -> Meta N° 6: Capacitar Y Fortalecer Al 100 Por Ciento De Funcionarios En Temáticas Requeridas Para El Desarrollo De Sus Competencias | I46: =+'F1'!F200 -> 150 | J46: =+'F1'!J200 -> 0 | K46: =+'F1'!O200 -> 0 | L46: =+'F1'!T200 -> 0.5 | R46: =+E72 -> PILAR_3 | S46: 0 | T46: =F72 -> 0 | U46: =G72 -> 0 | V46: ='F1'!F435 -> 0 | W46: ='F1'!J435 -> 0 | X46: ='F1'!T435 -> 
A47: 0 | B47: 0 | C47: ='F1'!$N$3 -> 2017 | D47: =+'F1'!$T$3 -> 30 DE JUNIO | E47: ='F1'!$C$186 -> PILAR_2 | F47: =+'F1'!C202 -> Modernizacion_institucional | G47: =+'F1'!D202 -> Lograr un índice nivel medio de desarrollo institucional en el sector movilidad | H47: =+'F1'!E202 -> Meta N° 7: Implementar 1 Modelo De Desarrollo Organizacional Basado En Estudios Técnicos Tendiente Al Cumplimiento De Los Objetivos De La Entidad | I47: =+'F1'!F202 -> 4166 | J47: =+'F1'!J202 -> 0.75 | K47: =+'F1'!O202 -> 0.01680268843 | L47: =+'F1'!T202 -> 0.5142857143 | R47: =+R46 -> PILAR_3 | S47: 0 | T47: =F73 -> 0 | U47: =G73 -> 0 | V47: ='F1'!F441 -> 0 | W47: ='F1'!J441 -> 0 | X47: ='F1'!T441 -> 
A48: 0 | B48: 0 | C48: ='F1'!$N$3 -> 2017 | D48: =+'F1'!$T$3 -> 30 DE JUNIO | E48: ='F1'!$C$186 -> PILAR_2 | F48: =+'F1'!C204 -> Modernizacion_institucional | G48: =+'F1'!D204 -> Lograr un índice nivel medio de desarrollo institucional en el sector movilidad | H48: =+'F1'!E204 -> Meta N° 8: Implantar 6 Soluciones De Software Que Automaticen Los Procesos Administrativos De La Institución Y Migren La Información Existente | I48: =+'F1'!F204 -> 1473 | J48: =+'F1'!J204 -> 0.5 | K48: =+'F1'!O204 -> 0 | L48: =+'F1'!T204 -> 0.29 | R48: PILAR_3 | S48: 0 | T48: 0 | U48: 0 | V48: ='F1'!F447 -> 0 | W48: ='F1'!J447 -> 0 | X48: ='F1'!T447 -> 
A49: 0 | B49: 0 | C49: ='F1'!$N$3 -> 2017 | D49: =+'F1'!$T$3 -> 30 DE JUNIO | E49: ='F1'!$C$186 -> PILAR_2 | F49: =+'F1'!C206 -> Modernizacion_institucional | G49: =+'F1'!D206 -> Lograr un índice nivel medio de desarrollo institucional en el sector movilidad | H49: =+'F1'!E206 -> Meta N° 9: Obtener 3 Certificaciones En Estándares Iso, Para Tres Subsistemas Del Sistema Integrado De Gestión | I49: =+'F1'!F206 -> 1071 | J49: =+'F1'!J206 -> 0.5 | K49: =+'F1'!O206 -> 0.2322315593 | L49: =+'F1'!T206 -> 0.48 | R49: PILAR_3 | S49: 0 | T49: 0 | U49: 0 | V49: ='F1'!F453 -> 0 | W49: ='F1'!J453 -> 0 | X49: ='F1'!T453 -> 
A50: 0 | B50: 0 | C50: ='F1'!$N$3 -> 2017 | D50: =+'F1'!$T$3 -> 30 DE JUNIO | E50: ='F1'!$C$186 -> PILAR_2 | F50: =+'F1'!C208 -> Modernizacion_institucional | G50: =+'F1'!D208 -> Lograr un índice nivel medio de desarrollo institucional en el sector movilidad | H50: =+'F1'!E208 -> Meta N° 10: Diseñar E Implementar El 100 Por Ciento De Los 4 Componentes De La Gestión De La Información Pública Reglamentada Por La Ley 1712 De 2014 (Manual De Gestión Documental, Programa De Gestión Documental, Sistema Integrado De Conservación Y Plan Institucional De Archivo | I50: =+'F1'!F208 -> 294 | J50: =+'F1'!J208 -> 1 | K50: =+'F1'!O208 -> 0.9965986395 | L50: =+'F1'!T208 -> 0.75 | R50: PILAR_3 | S50: 0 | T50: 0 | U50: 0 | V50: ='F1'!F459 -> 0 | W50: ='F1'!J459 -> 0 | X50: ='F1'!T459 -> 
A51: 0 | B51: 0 | C51: ='F1'!$N$3 -> 2017 | D51: =+'F1'!$T$3 -> 30 DE JUNIO | E51: ='F1'!$C$186 -> PILAR_2 | F51: =+'F1'!C210 -> 0 | G51: =+'F1'!D210 -> 0 | H51: =+'F1'!E210 -> 0 | I51: =+'F1'!F210 -> 0 | J51: =+'F1'!J210 ->  | K51: =+'F1'!O210 ->  | L51: =+'F1'!T210 ->  | R51: PILAR_3 | S51: 0 | T51: 0 | U51: 0 | V51: ='F1'!F465 -> 0 | W51: ='F1'!J465 -> 0 | X51: ='F1'!T465 -> 
A52: 0 | B52: 0 | C52: ='F1'!$N$3 -> 2017 | D52: =+'F1'!$T$3 -> 30 DE JUNIO | E52: ='F1'!$C$186 -> PILAR_2 | F52: =+'F1'!C212 -> 0 | G52: =+'F1'!D212 -> 0 | H52: =+'F1'!E212 -> 0 | I52: =+'F1'!F212 -> 0 | J52: =+'F1'!J212 ->  | K52: =+'F1'!O212 ->  | L52: =+'F1'!T212 ->  | R52: PILAR_3 | S52: 0 | T52: 0 | U52: 0 | V52: ='F1'!F471 -> 0 | W52: ='F1'!J471 -> 0 | X52: ='F1'!T471 -> 
A53: 0 | B53: 0 | C53: ='F1'!$N$3 -> 2017 | D53: =+'F1'!$T$3 -> 30 DE JUNIO | E53: ='F1'!$C$186 -> PILAR_2 | F53: =+'F1'!C214 -> 0 | G53: =+'F1'!D214 -> 0 | H53: =+'F1'!E214 -> 0 | I53: =+'F1'!F214 -> 0 | J53: =+'F1'!J214 ->  | K53: =+'F1'!O214 ->  | L53: =+'F1'!T214 ->  | R53: PILAR_3 | S53: 0 | T53: 0 | U53: 0 | V53: ='F1'!F477 -> 0 | W53: ='F1'!J477 -> 0 | X53: ='F1'!T477 -> 
A54: 0 | B54: 0 | C54: ='F1'!$N$3 -> 2017 | D54: =+'F1'!$T$3 -> 30 DE JUNIO | E54: ='F1'!$C$186 -> PILAR_2 | F54: =+'F1'!C216 -> 0 | G54: =+'F1'!D216 -> 0 | H54: =+'F1'!E216 -> 0 | I54: =+'F1'!F216 -> 0 | J54: =+'F1'!J216 ->  | K54: =+'F1'!O216 ->  | L54: =+'F1'!T216 ->  | R54: PILAR_3 | S54: 0 | T54: 0 | U54: 0 | V54: ='F1'!F483 -> 0 | W54: ='F1'!J483 -> 0 | X54: ='F1'!T483 -> 
A55: 0 | B55: 0 | C55: ='F1'!$N$3 -> 2017 | D55: =+'F1'!$T$3 -> 30 DE JUNIO | E55: ='F1'!$C$186 -> PILAR_2 | F55: =+'F1'!C218 -> 0 | G55: =+'F1'!D218 -> 0 | H55: =+'F1'!E218 -> 0 | I55: =+'F1'!F218 -> 0 | J55: =+'F1'!J218 ->  | K55: =+'F1'!O218 ->  | L55: =+'F1'!T218 ->  | R55: PILAR_3 | S55: 0 | T55: 0 | U55: 0 | V55: ='F1'!F489 -> 0 | W55: ='F1'!J489 -> 0 | X55: ='F1'!T489 -> 
A56: 0 | B56: 0 | C56: ='F1'!$N$3 -> 2017 | D56: =+'F1'!$T$3 -> 30 DE JUNIO | E56: ='F1'!$C$186 -> PILAR_2 | F56: =+'F1'!C220 -> 0 | G56: =+'F1'!D220 -> 0 | H56: =+'F1'!E220 -> 0 | I56: =+'F1'!F220 -> 0 | J56: =+'F1'!J220 ->  | K56: =+'F1'!O220 ->  | L56: =+'F1'!T220 ->  | R56: PILAR_3 | S56: 0 | T56: 0 | U56: 0 | V56: ='F1'!F495 -> 0 | W56: ='F1'!J495 -> 0 | X56: ='F1'!T495 -> 
A57: 0 | B57: 0 | C57: ='F1'!$N$3 -> 2017 | D57: =+'F1'!$T$3 -> 30 DE JUNIO | E57: ='F1'!$C$186 -> PILAR_2 | F57: =+'F1'!C222 -> 0 | G57: =+'F1'!D222 -> 0 | H57: =+'F1'!E222 -> 0 | I57: =+'F1'!F222 -> 0 | J57: =+'F1'!J222 ->  | K57: =+'F1'!O222 ->  | L57: =+'F1'!T222 ->  | R57: PILAR_3 | S57: 0 | T57: 0 | U57: 0 | V57: ='F1'!F501 -> 0 | W57: ='F1'!J501 -> 0 | X57: ='F1'!T501 -> 
A58: 0 | B58: 0 | C58: ='F1'!$N$3 -> 2017 | D58: =+'F1'!$T$3 -> 30 DE JUNIO | E58: ='F1'!$C$186 -> PILAR_2 | F58: =+'F1'!C224 -> 0 | G58: =+'F1'!D224 -> 0 | H58: =+'F1'!E224 -> 0 | I58: =+'F1'!F224 -> 0 | J58: =+'F1'!J224 ->  | K58: =+'F1'!O224 ->  | L58: =+'F1'!T224 ->  | R58: PILAR_3 | S58: 0 | T58: 0 | U58: 0 | V58: ='F1'!F507 -> 0 | W58: ='F1'!J507 -> 0 | X58: ='F1'!T507 -> 
A59: 0 | B59: 0 | C59: ='F1'!$N$3 -> 2017 | D59: =+'F1'!$T$3 -> 30 DE JUNIO | E59: ='F1'!$C$186 -> PILAR_2 | F59: =+'F1'!C226 -> 0 | G59: =+'F1'!D226 -> 0 | H59: =+'F1'!E226 -> 0 | I59: =+'F1'!F226 -> 0 | J59: =+'F1'!J226 ->  | K59: =+'F1'!O226 ->  | L59: =+'F1'!T226 ->  | R59: PILAR_3 | S59: 0 | T59: 0 | U59: 0 | V59: ='F1'!F513 -> 0 | W59: ='F1'!J513 -> 0 | X59: ='F1'!T513 -> 
A60: 0 | B60: 0 | C60: ='F1'!$N$3 -> 2017 | D60: =+'F1'!$T$3 -> 30 DE JUNIO | E60: ='F1'!$C$186 -> PILAR_2 | F60: =+'F1'!C228 -> 0 | G60: =+'F1'!D228 -> 0 | H60: =+'F1'!E228 -> 0 | I60: =+'F1'!F228 -> 0 | J60: =+'F1'!J228 ->  | K60: =+'F1'!O228 ->  | L60: =+'F1'!T228 ->  | R60: PILAR_3 | S60: 0 | T60: 0 | U60: 0 | V60: ='F1'!F519 -> 0 | W60: ='F1'!J519 -> 0 | X60: ='F1'!T519 -> 
A61: 0 | B61: 0 | C61: ='F1'!$N$3 -> 2017 | D61: =+'F1'!$T$3 -> 30 DE JUNIO | E61: ='F1'!$C$186 -> PILAR_2 | F61: =+'F1'!C230 -> 0 | G61: =+'F1'!D230 -> 0 | H61: =+'F1'!E230 -> 0 | I61: =+'F1'!F230 -> 0 | J61: =+'F1'!J230 ->  | K61: =+'F1'!O230 ->  | L61: =+'F1'!T230 ->  | R61: PILAR_3 | S61: 0 | T61: 0 | U61: 0 | V61: ='F1'!F525 -> 0 | W61: ='F1'!J525 -> 0 | X61: ='F1'!T525 -> 
A62: 0 | B62: 0 | C62: ='F1'!$N$3 -> 2017 | D62: =+'F1'!$T$3 -> 30 DE JUNIO | E62: ='F1'!$C$186 -> PILAR_2 | F62: =+'F1'!C232 -> 0 | G62: =+'F1'!D232 -> 0 | H62: =+'F1'!E232 -> 0 | I62: =+'F1'!F232 -> 0 | J62: =+'F1'!J232 ->  | K62: =+'F1'!O232 ->  | L62: =+'F1'!T232 ->  | R62: PILAR_3 | S62: 0 | T62: 0 | U62: 0 | V62: ='F1'!F531 -> 0 | W62: ='F1'!J531 -> 0 | X62: ='F1'!T531 -> 
A63: 0 | B63: 0 | C63: ='F1'!$N$3 -> 2017 | D63: =+'F1'!$T$3 -> 30 DE JUNIO | E63: ='F1'!$C$186 -> PILAR_2 | F63: =+'F1'!C234 -> 0 | G63: =+'F1'!D234 -> 0 | H63: =+'F1'!E234 -> 0 | I63: =+'F1'!F234 -> 0 | J63: =+'F1'!J234 ->  | K63: =+'F1'!O234 ->  | L63: =+'F1'!T234 ->  | R63: PILAR_3 | S63: 0 | T63: 0 | U63: 0 | V63: ='F1'!F537 -> 0 | W63: ='F1'!J537 -> 0 | X63: ='F1'!T537 -> 
A64: 0 | B64: 0 | C64: ='F1'!$N$3 -> 2017 | D64: =+'F1'!$T$3 -> 30 DE JUNIO | E64: ='F1'!$C$186 -> PILAR_2 | F64: =+'F1'!C236 -> 0 | G64: =+'F1'!D236 -> 0 | H64: =+'F1'!E236 -> 0 | I64: =+'F1'!F236 -> 0 | J64: =+'F1'!J236 ->  | K64: =+'F1'!O236 ->  | L64: =+'F1'!T236 ->  | R64: =+E103 -> EJE_TRANSVERSAL_UNO | S64: 0 | T64: =F103 -> 0 | U64: =G103 -> 0 | V64: ='F1'!F615 -> 0 | W64: ='F1'!J615 -> 0 | X64: ='F1'!T615 -> 
A65: 0 | B65: 0 | C65: ='F1'!$N$3 -> 2017 | D65: =+'F1'!$T$3 -> 30 DE JUNIO | E65: ='F1'!$C$186 -> PILAR_2 | F65: =+'F1'!C238 -> 0 | G65: =+'F1'!D238 -> 0 | H65: =+'F1'!E238 -> 0 | I65: =+'F1'!F238 -> 0 | J65: =+'F1'!J238 ->  | K65: =+'F1'!O238 ->  | L65: =+'F1'!T238 ->  | R65: =+R64 -> EJE_TRANSVERSAL_UNO | S65: 0 | T65: =F104 -> 0 | U65: =G104 -> 0 | V65: ='F1'!F621 -> 0 | W65: ='F1'!J621 -> 0 | X65: ='F1'!T621 -> 
A66: 0 | B66: 0 | C66: ='F1'!$N$3 -> 2017 | D66: =+'F1'!$T$3 -> 30 DE JUNIO | E66: ='F1'!$C$186 -> PILAR_2 | F66: =+'F1'!C240 -> 0 | G66: =+'F1'!D240 -> 0 | H66: =+'F1'!E240 -> 0 | I66: =+'F1'!F240 -> 0 | J66: =+'F1'!J240 ->  | K66: =+'F1'!O240 ->  | L66: =+'F1'!T240 ->  | R66: EJE_TRANSVERSAL_UNO | S66: 0 | T66: 0 | U66: 0 | V66: ='F1'!F627 -> 0 | W66: ='F1'!J627 -> 0 | X66: ='F1'!T627 -> 
A67: 0 | B67: 0 | C67: ='F1'!$N$3 -> 2017 | D67: =+'F1'!$T$3 -> 30 DE JUNIO | E67: ='F1'!$C$186 -> PILAR_2 | F67: =+'F1'!C242 -> 0 | G67: =+'F1'!D242 -> 0 | H67: =+'F1'!E242 -> 0 | I67: =+'F1'!F242 -> 0 | J67: =+'F1'!J242 ->  | K67: =+'F1'!O242 ->  | L67: =+'F1'!T242 ->  | R67: EJE_TRANSVERSAL_UNO | S67: 0 | T67: 0 | U67: 0 | V67: ='F1'!F633 -> 0 | W67: ='F1'!J633 -> 0 | X67: ='F1'!T633 -> 
A68: 0 | B68: 0 | C68: ='F1'!$N$3 -> 2017 | D68: =+'F1'!$T$3 -> 30 DE JUNIO | E68: ='F1'!$C$186 -> PILAR_2 | F68: =+'F1'!C244 -> 0 | G68: =+'F1'!D244 -> 0 | H68: =+'F1'!E244 -> 0 | I68: =+'F1'!F244 -> 0 | J68: =+'F1'!J244 ->  | K68: =+'F1'!O244 ->  | L68: =+'F1'!T244 ->  | R68: EJE_TRANSVERSAL_UNO | S68: 0 | T68: 0 | U68: 0 | V68: ='F1'!F639 -> 0 | W68: ='F1'!J639 -> 0 | X68: ='F1'!T639 -> 
A69: 0 | B69: 0 | C69: ='F1'!$N$3 -> 2017 | D69: =+'F1'!$T$3 -> 30 DE JUNIO | E69: ='F1'!$C$186 -> PILAR_2 | F69: =+'F1'!C246 -> 0 | G69: =+'F1'!D246 -> 0 | H69: =+'F1'!E246 -> 0 | I69: =+'F1'!F246 -> 0 | J69: =+'F1'!J246 ->  | K69: =+'F1'!O246 ->  | L69: =+'F1'!T246 ->  | R69: EJE_TRANSVERSAL_UNO | S69: 0 | T69: 0 | U69: 0 | V69: ='F1'!F645 -> 0 | W69: ='F1'!J645 -> 0 | X69: ='F1'!T645 -> 
A70: 0 | B70: 0 | C70: ='F1'!$N$3 -> 2017 | D70: =+'F1'!$T$3 -> 30 DE JUNIO | E70: ='F1'!$C$186 -> PILAR_2 | F70: =+'F1'!C248 -> 0 | G70: =+'F1'!D248 -> 0 | H70: =+'F1'!E248 -> 0 | I70: =+'F1'!F248 -> 0 | J70: =+'F1'!J248 ->  | K70: =+'F1'!O248 ->  | L70: =+'F1'!T248 ->  | R70: EJE_TRANSVERSAL_UNO | S70: 0 | T70: 0 | U70: 0 | V70: ='F1'!F651 -> 0 | W70: ='F1'!J651 -> 0 | X70: ='F1'!T651 -> 
A71: 0 | B71: 0 | C71: ='F1'!$N$3 -> 2017 | D71: =+'F1'!$T$3 -> 30 DE JUNIO | E71: ='F1'!$C$186 -> PILAR_2 | F71: =+'F1'!C250 -> 0 | G71: =+'F1'!D250 -> 0 | H71: =+'F1'!E250 -> 0 | I71: =+'F1'!F250 -> 0 | J71: =+'F1'!J250 ->  | K71: =+'F1'!O250 ->  | L71: =+'F1'!T250 ->  | R71: EJE_TRANSVERSAL_UNO | S71: 0 | T71: 0 | U71: 0 | V71: ='F1'!F657 -> 0 | W71: ='F1'!J657 -> 0 | X71: ='F1'!T657 -> 
A72: 0 | B72: 0 | C72: ='F1'!$N$3 -> 2017 | D72: =+'F1'!$T$3 -> 30 DE JUNIO | E72: ='F1'!$C$365 -> PILAR_3 | F72: =+'F1'!C369 -> 0 | G72: =+'F1'!D369 -> 0 | H72: =+'F1'!E369 -> 0 | I72: ='F1'!F369 -> 0 | J72: =+'F1'!J369 ->  | K72: =+'F1'!O369 ->  | L72: =+'F1'!T369 ->  | R72: EJE_TRANSVERSAL_UNO | S72: 0 | T72: 0 | U72: 0 | V72: ='F1'!F663 -> 0 | W72: ='F1'!J663 -> 0 | X72: ='F1'!T663 -> 
A73: =$C$4 -> 0 | B73: 0 | C73: ='F1'!$N$3 -> 2017 | D73: =+'F1'!$T$3 -> 30 DE JUNIO | E73: ='F1'!$C$365 -> PILAR_3 | F73: =+'F1'!C371 -> 0 | G73: =+'F1'!D371 -> 0 | H73: =+'F1'!E371 -> 0 | I73: ='F1'!F371 -> 0 | J73: =+'F1'!J371 ->  | K73: =+'F1'!O371 ->  | L73: =+'F1'!T371 ->  | R73: EJE_TRANSVERSAL_UNO | S73: 0 | T73: 0 | U73: 0 | V73: ='F1'!F669 -> 0 | W73: ='F1'!J669 -> 0 | X73: ='F1'!T669 -> 
A74: 0 | B74: 0 | C74: ='F1'!$N$3 -> 2017 | D74: =+'F1'!$T$3 -> 30 DE JUNIO | E74: ='F1'!$C$365 -> PILAR_3 | F74: =+'F1'!C373 -> 0 | G74: =+'F1'!D373 -> 0 | H74: =+'F1'!E373 -> 0 | I74: ='F1'!F373 -> 0 | J74: =+'F1'!J373 ->  | K74: =+'F1'!O373 ->  | L74: =+'F1'!T373 ->  | R74: EJE_TRANSVERSAL_UNO | S74: 0 | T74: 0 | U74: 0 | V74: ='F1'!F675 -> 0 | W74: ='F1'!J675 -> 0 | X74: ='F1'!T675 -> 
A75: 0 | B75: 0 | C75: ='F1'!$N$3 -> 2017 | D75: =+'F1'!$T$3 -> 30 DE JUNIO | E75: ='F1'!$C$365 -> PILAR_3 | F75: =+'F1'!C375 -> 0 | G75: =+'F1'!D375 -> 0 | H75: =+'F1'!E375 -> 0 | I75: ='F1'!F375 -> 0 | J75: =+'F1'!J375 ->  | K75: =+'F1'!O375 ->  | L75: =+'F1'!T375 ->  | R75: EJE_TRANSVERSAL_UNO | S75: =$A$4 -> 0 | T75: 0 | U75: 0 | V75: ='F1'!F681 -> 0 | W75: ='F1'!J681 -> 0 | X75: ='F1'!T681 -> 
A76: 0 | B76: 0 | C76: ='F1'!$N$3 -> 2017 | D76: =+'F1'!$T$3 -> 30 DE JUNIO | E76: ='F1'!$C$365 -> PILAR_3 | F76: =+'F1'!C377 -> 0 | G76: =+'F1'!D377 -> 0 | H76: =+'F1'!E377 -> 0 | I76: ='F1'!F377 -> 0 | J76: =+'F1'!J377 ->  | K76: =+'F1'!O377 ->  | L76: =+'F1'!T377 ->  | R76: EJE_TRANSVERSAL_UNO | S76: 0 | T76: 0 | U76: 0 | V76: ='F1'!F687 -> 0 | W76: ='F1'!J687 -> 0 | X76: ='F1'!T687 -> 
A77: 0 | B77: 0 | C77: ='F1'!$N$3 -> 2017 | D77: =+'F1'!$T$3 -> 30 DE JUNIO | E77: ='F1'!$C$365 -> PILAR_3 | F77: =+'F1'!C379 -> 0 | G77: =+'F1'!D379 -> 0 | H77: =+'F1'!E379 -> 0 | I77: ='F1'!F379 -> 0 | J77: =+'F1'!J379 ->  | K77: =+'F1'!O379 ->  | L77: =+'F1'!T379 ->  | R77: EJE_TRANSVERSAL_UNO | S77: 0 | T77: 0 | U77: 0 | V77: ='F1'!F693 -> 0 | W77: ='F1'!J693 -> 0 | X77: ='F1'!T693 -> 
A78: 0 | B78: 0 | C78: ='F1'!$N$3 -> 2017 | D78: =+'F1'!$T$3 -> 30 DE JUNIO | E78: ='F1'!$C$365 -> PILAR_3 | F78: =+'F1'!C381 -> 0 | G78: =+'F1'!D381 -> 0 | H78: =+'F1'!E381 -> 0 | I78: ='F1'!F381 -> 0 | J78: =+'F1'!J381 ->  | K78: =+'F1'!O381 ->  | L78: =+'F1'!T381 ->  | R78: EJE_TRANSVERSAL_UNO | S78: 0 | T78: 0 | U78: 0 | V78: ='F1'!F699 -> 0 | W78: ='F1'!J699 -> 0 | X78: ='F1'!T699 -> 
A79: 0 | B79: 0 | C79: ='F1'!$N$3 -> 2017 | D79: =+'F1'!$T$3 -> 30 DE JUNIO | E79: ='F1'!$C$365 -> PILAR_3 | F79: =+'F1'!C383 -> 0 | G79: =+'F1'!D383 -> 0 | H79: =+'F1'!E383 -> 0 | I79: ='F1'!F383 -> 0 | J79: =+'F1'!J383 ->  | K79: =+'F1'!O383 ->  | L79: =+'F1'!T383 ->  | R79: EJE_TRANSVERSAL_UNO | S79: 0 | T79: 0 | U79: 0 | V79: ='F1'!F705 -> 0 | W79: ='F1'!J705 -> 0 | X79: ='F1'!T705 -> 
A80: 0 | B80: 0 | C80: ='F1'!$N$3 -> 2017 | D80: =+'F1'!$T$3 -> 30 DE JUNIO | E80: ='F1'!$C$365 -> PILAR_3 | F80: =+'F1'!C385 -> 0 | G80: =+'F1'!D385 -> 0 | H80: =+'F1'!E385 -> 0 | I80: ='F1'!F385 -> 0 | J80: =+'F1'!J385 ->  | K80: =+'F1'!O385 ->  | L80: =+'F1'!T385 ->  | R80: EJE_TRANSVERSAL_UNO | S80: 0 | T80: 0 | U80: 0 | V80: ='F1'!F711 -> 0 | W80: ='F1'!J711 -> 0 | X80: ='F1'!T711 -> 
A81: 0 | B81: 0 | C81: ='F1'!$N$3 -> 2017 | D81: =+'F1'!$T$3 -> 30 DE JUNIO | E81: ='F1'!$C$365 -> PILAR_3 | F81: =+'F1'!C387 -> 0 | G81: =+'F1'!D387 -> 0 | H81: =+'F1'!E387 -> 0 | I81: ='F1'!F387 -> 0 | J81: =+'F1'!J387 ->  | K81: =+'F1'!O387 ->  | L81: =+'F1'!T387 ->  | R81: EJE_TRANSVERSAL_UNO | S81: 0 | T81: 0 | U81: 0 | V81: ='F1'!F717 -> 0 | W81: ='F1'!J717 -> 0 | X81: ='F1'!T717 -> 
A82: 0 | B82: 0 | C82: ='F1'!$N$3 -> 2017 | D82: =+'F1'!$T$3 -> 30 DE JUNIO | E82: ='F1'!$C$365 -> PILAR_3 | F82: =+'F1'!C389 -> 0 | G82: =+'F1'!D389 -> 0 | H82: =+'F1'!E389 -> 0 | I82: ='F1'!F389 -> 0 | J82: =+'F1'!J389 ->  | K82: =+'F1'!O389 ->  | L82: =+'F1'!T389 ->  | R82: =E134 -> EJE_TRANSVERSAL_DOS | S82: 0 | T82: =F134 -> 0 | U82: =G134 -> 0 | V82: ='F1'!F795 -> 0 | W82: ='F1'!J795 -> 0 | X82: ='F1'!T795 -> 
A83: 0 | B83: 0 | C83: ='F1'!$N$3 -> 2017 | D83: =+'F1'!$T$3 -> 30 DE JUNIO | E83: ='F1'!$C$365 -> PILAR_3 | F83: =+'F1'!C391 -> 0 | G83: =+'F1'!D391 -> 0 | H83: =+'F1'!E391 -> 0 | I83: ='F1'!F391 -> 0 | J83: =+'F1'!J391 ->  | K83: =+'F1'!O391 ->  | L83: =+'F1'!T391 ->  | R83: EJE_TRANSVERSAL_DOS | S83: 0 | T83: =F233 -> 0 | U83: =G135 -> 0 | V83: ='F1'!F801 -> 0 | W83: ='F1'!J801 -> 0 | X83: ='F1'!T801 -> 
A84: 0 | B84: 0 | C84: ='F1'!$N$3 -> 2017 | D84: =+'F1'!$T$3 -> 30 DE JUNIO | E84: ='F1'!$C$365 -> PILAR_3 | F84: =+'F1'!C393 -> 0 | G84: =+'F1'!D393 -> 0 | H84: =+'F1'!E393 -> 0 | I84: ='F1'!F393 -> 0 | J84: =+'F1'!J393 ->  | K84: =+'F1'!O393 ->  | L84: =+'F1'!T393 ->  | R84: EJE_TRANSVERSAL_DOS | S84: 0 | T84: =F234 -> 0 | U84: 0 | V84: ='F1'!F807 -> 0 | W84: ='F1'!J807 -> 0 | X84: ='F1'!T807 -> 
A85: 0 | B85: 0 | C85: ='F1'!$N$3 -> 2017 | D85: =+'F1'!$T$3 -> 30 DE JUNIO | E85: ='F1'!$C$365 -> PILAR_3 | F85: =+'F1'!C395 -> 0 | G85: =+'F1'!D395 -> 0 | H85: =+'F1'!E395 -> 0 | I85: ='F1'!F395 -> 0 | J85: =+'F1'!J395 ->  | K85: =+'F1'!O395 ->  | L85: =+'F1'!T395 ->  | R85: EJE_TRANSVERSAL_DOS | S85: 0 | T85: 0 | U85: 0 | V85: ='F1'!F813 -> 0 | W85: ='F1'!J813 -> 0 | X85: ='F1'!T813 -> 
A86: 0 | B86: 0 | C86: ='F1'!$N$3 -> 2017 | D86: =+'F1'!$T$3 -> 30 DE JUNIO | E86: ='F1'!$C$365 -> PILAR_3 | F86: =+'F1'!C397 -> 0 | G86: =+'F1'!D397 -> 0 | H86: =+'F1'!E397 -> 0 | I86: ='F1'!F397 -> 0 | J86: =+'F1'!J397 ->  | K86: =+'F1'!O397 ->  | L86: =+'F1'!T397 ->  | R86: EJE_TRANSVERSAL_DOS | S86: 0 | T86: 0 | U86: 0 | V86: ='F1'!F819 -> 0 | W86: ='F1'!J819 -> 0 | X86: ='F1'!T819 -> 
A87: 0 | B87: 0 | C87: ='F1'!$N$3 -> 2017 | D87: =+'F1'!$T$3 -> 30 DE JUNIO | E87: ='F1'!$C$365 -> PILAR_3 | F87: =+'F1'!C399 -> 0 | G87: =+'F1'!D399 -> 0 | H87: =+'F1'!E399 ->  | I87: ='F1'!F399 -> 0 | J87: =+'F1'!J399 ->  | K87: =+'F1'!O399 ->  | L87: =+'F1'!T399 ->  | R87: EJE_TRANSVERSAL_DOS | S87: 0 | T87: 0 | U87: 0 | V87: ='F1'!F825 -> 0 | W87: ='F1'!J825 -> 0 | X87: ='F1'!T825 -> 
A88: 0 | B88: 0 | C88: ='F1'!$N$3 -> 2017 | D88: =+'F1'!$T$3 -> 30 DE JUNIO | E88: ='F1'!$C$365 -> PILAR_3 | F88: =+'F1'!C401 -> 0 | G88: =+'F1'!D401 -> 0 | H88: =+'F1'!E401 ->  | I88: ='F1'!F401 -> 0 | J88: =+'F1'!J401 ->  | K88: =+'F1'!O401 ->  | L88: =+'F1'!T401 ->  | R88: EJE_TRANSVERSAL_DOS | S88: 0 | T88: 0 | U88: 0 | V88: ='F1'!F831 -> 0 | W88: ='F1'!J831 -> 0 | X88: ='F1'!T831 -> 
A89: 0 | B89: 0 | C89: ='F1'!$N$3 -> 2017 | D89: =+'F1'!$T$3 -> 30 DE JUNIO | E89: ='F1'!$C$365 -> PILAR_3 | F89: =+'F1'!C403 -> 0 | G89: =+'F1'!D403 -> 0 | H89: =+'F1'!E403 ->  | I89: ='F1'!F403 -> 0 | J89: =+'F1'!J403 ->  | K89: =+'F1'!O403 ->  | L89: =+'F1'!T403 ->  | R89: EJE_TRANSVERSAL_DOS | S89: 0 | T89: 0 | U89: 0 | V89: ='F1'!F837 -> 0 | W89: ='F1'!J837 -> 0 | X89: ='F1'!T837 -> 
A90: 0 | B90: 0 | C90: ='F1'!$N$3 -> 2017 | D90: =+'F1'!$T$3 -> 30 DE JUNIO | E90: ='F1'!$C$365 -> PILAR_3 | F90: =+'F1'!C405 -> 0 | G90: =+'F1'!D405 -> 0 | H90: =+'F1'!E405 ->  | I90: ='F1'!F405 -> 0 | J90: =+'F1'!J405 ->  | K90: =+'F1'!O405 ->  | L90: =+'F1'!T405 ->  | R90: EJE_TRANSVERSAL_DOS | S90: 0 | T90: 0 | U90: 0 | V90: ='F1'!F843 -> 0 | W90: ='F1'!J843 -> 0 | X90: ='F1'!T843 -> 
A91: 0 | B91: 0 | C91: ='F1'!$N$3 -> 2017 | D91: =+'F1'!$T$3 -> 30 DE JUNIO | E91: ='F1'!$C$365 -> PILAR_3 | F91: =+'F1'!C407 -> 0 | G91: =+'F1'!D407 -> 0 | H91: =+'F1'!E407 ->  | I91: ='F1'!F407 -> 0 | J91: =+'F1'!J407 ->  | K91: =+'F1'!O407 ->  | L91: =+'F1'!T407 ->  | R91: EJE_TRANSVERSAL_DOS | S91: 0 | T91: 0 | U91: 0 | V91: ='F1'!F849 -> 0 | W91: ='F1'!J849 -> 0 | X91: ='F1'!T849 -> 
A92: 0 | B92: 0 | C92: ='F1'!$N$3 -> 2017 | D92: =+'F1'!$T$3 -> 30 DE JUNIO | E92: ='F1'!$C$365 -> PILAR_3 | F92: =+'F1'!C409 -> 0 | G92: =+'F1'!D409 -> 0 | H92: =+'F1'!E409 -> 0 | I92: ='F1'!F409 -> 0 | J92: =+'F1'!J409 ->  | K92: =+'F1'!O409 ->  | L92: =+'F1'!T409 ->  | R92: EJE_TRANSVERSAL_DOS | S92: 0 | T92: 0 | U92: 0 | V92: ='F1'!F855 -> 0 | W92: ='F1'!J855 -> 0 | X92: ='F1'!T855 -> 
A93: 0 | B93: 0 | C93: ='F1'!$N$3 -> 2017 | D93: =+'F1'!$T$3 -> 30 DE JUNIO | E93: ='F1'!$C$365 -> PILAR_3 | F93: =+'F1'!C411 -> 0 | G93: =+'F1'!D411 -> 0 | H93: =+'F1'!E411 -> 0 | I93: ='F1'!F411 -> 0 | J93: =+'F1'!J411 ->  | K93: =+'F1'!O411 ->  | L93: =+'F1'!T411 ->  | R93: EJE_TRANSVERSAL_DOS | S93: 0 | T93: 0 | U93: 0 | V93: ='F1'!F861 -> 0 | W93: ='F1'!J861 -> 0 | X93: ='F1'!T861 -> 
A94: 0 | B94: 0 | C94: ='F1'!$N$3 -> 2017 | D94: =+'F1'!$T$3 -> 30 DE JUNIO | E94: ='F1'!$C$365 -> PILAR_3 | F94: =+'F1'!C413 -> 0 | G94: =+'F1'!D413 -> 0 | H94: =+'F1'!E413 ->  | I94: ='F1'!F413 -> 0 | J94: =+'F1'!J413 ->  | K94: =+'F1'!O413 ->  | L94: =+'F1'!T413 ->  | R94: EJE_TRANSVERSAL_DOS | S94: 0 | T94: 0 | U94: 0 | V94: ='F1'!F867 -> 0 | W94: ='F1'!J867 -> 0 | X94: ='F1'!T867 -> 
A95: 0 | B95: 0 | C95: ='F1'!$N$3 -> 2017 | D95: =+'F1'!$T$3 -> 30 DE JUNIO | E95: ='F1'!$C$365 -> PILAR_3 | F95: =+'F1'!C415 -> 0 | G95: =+'F1'!D415 -> 0 | H95: =+'F1'!E415 ->  | I95: ='F1'!F415 -> 0 | J95: =+'F1'!J415 ->  | K95: =+'F1'!O415 ->  | L95: =+'F1'!T415 ->  | R95: EJE_TRANSVERSAL_DOS | S95: 0 | T95: 0 | U95: 0 | V95: ='F1'!F873 -> 0 | W95: ='F1'!J873 -> 0 | X95: ='F1'!T873 -> 
A96: 0 | B96: 0 | C96: ='F1'!$N$3 -> 2017 | D96: =+'F1'!$T$3 -> 30 DE JUNIO | E96: ='F1'!$C$365 -> PILAR_3 | F96: =+'F1'!C417 -> 0 | G96: =+'F1'!D417 -> 0 | H96: =+'F1'!E417 -> 0 | I96: ='F1'!F417 -> 0 | J96: =+'F1'!J417 ->  | K96: =+'F1'!O417 ->  | L96: =+'F1'!T417 ->  | R96: EJE_TRANSVERSAL_DOS | S96: 0 | T96: 0 | U96: 0 | V96: ='F1'!F879 -> 0 | W96: ='F1'!J879 -> 0 | X96: ='F1'!T879 -> 
A97: 0 | B97: 0 | C97: ='F1'!$N$3 -> 2017 | D97: =+'F1'!$T$3 -> 30 DE JUNIO | E97: ='F1'!$C$365 -> PILAR_3 | F97: =+'F1'!C419 -> 0 | G97: =+'F1'!D419 -> 0 | H97: =+'F1'!E419 -> 0 | I97: ='F1'!F419 -> 0 | J97: =+'F1'!J419 ->  | K97: =+'F1'!O419 ->  | L97: =+'F1'!T419 ->  | R97: EJE_TRANSVERSAL_DOS | S97: 0 | T97: 0 | U97: 0 | V97: ='F1'!F885 -> 0 | W97: ='F1'!J885 -> 0 | X97: ='F1'!T885 -> 
A98: 0 | B98: 0 | C98: ='F1'!$N$3 -> 2017 | D98: =+'F1'!$T$3 -> 30 DE JUNIO | E98: ='F1'!$C$365 -> PILAR_3 | F98: =+'F1'!C421 -> 0 | G98: =+'F1'!D421 -> 0 | H98: =+'F1'!E421 ->  | I98: ='F1'!F421 -> 0 | J98: =+'F1'!J421 ->  | K98: =+'F1'!O421 ->  | L98: =+'F1'!T421 ->  | R98: EJE_TRANSVERSAL_DOS | S98: 0 | T98: 0 | U98: 0 | V98: ='F1'!F891 -> 0 | W98: ='F1'!J891 -> 0 | X98: ='F1'!T891 -> 
A99: 0 | B99: 0 | C99: ='F1'!$N$3 -> 2017 | D99: =+'F1'!$T$3 -> 30 DE JUNIO | E99: ='F1'!$C$365 -> PILAR_3 | F99: =+'F1'!C423 -> 0 | G99: =+'F1'!D423 -> 0 | H99: =+'F1'!E423 -> 0 | I99: ='F1'!F423 -> 0 | J99: =+'F1'!J423 ->  | K99: =+'F1'!O423 ->  | L99: =+'F1'!T423 ->  | R99: EJE_TRANSVERSAL_DOS | S99: 0 | T99: 0 | U99: 0 | V99: ='F1'!F897 -> 0 | W99: ='F1'!J897 -> 0 | X99: ='F1'!T897 -> 
A100: 0 | B100: 0 | C100: ='F1'!$N$3 -> 2017 | D100: =+'F1'!$T$3 -> 30 DE JUNIO | E100: ='F1'!$C$365 -> PILAR_3 | F100: =+'F1'!C425 -> 0 | G100: =+'F1'!D425 -> 0 | H100: =+'F1'!E425 ->  | I100: ='F1'!F425 -> 0 | J100: =+'F1'!J425 ->  | K100: =+'F1'!O425 ->  | L100: =+'F1'!T425 ->  | R100: =E165 -> EJE_TRANSVERSAL_TRES | S100: 0 | T100: =F165 -> 0 | U100: =G165 -> 0 | V100: ='F1'!F975 -> 0 | W100: ='F1'!J975 -> 0 | X100: ='F1'!T975 -> 
A101: 0 | B101: 0 | C101: ='F1'!$N$3 -> 2017 | D101: =+'F1'!$T$3 -> 30 DE JUNIO | E101: ='F1'!$C$365 -> PILAR_3 | F101: =+'F1'!C427 -> 0 | G101: =+'F1'!D427 -> 0 | H101: =+'F1'!E427 ->  | I101: ='F1'!F427 -> 0 | J101: =+'F1'!J427 ->  | K101: =+'F1'!O427 ->  | L101: =+'F1'!T427 ->  | R101: EJE_TRANSVERSAL_TRES | S101: 0 | T101: =F166 -> 0 | U101: =G166 -> 0 | V101: ='F1'!F981 -> 0 | W101: ='F1'!J981 -> 0 | X101: ='F1'!T981 -> 
A102: 0 | B102: 0 | C102: ='F1'!$N$3 -> 2017 | D102: =+'F1'!$T$3 -> 30 DE JUNIO | E102: ='F1'!$C$365 -> PILAR_3 | F102: =+'F1'!C429 -> 0 | G102: =+'F1'!D429 -> 0 | H102: =+'F1'!E429 -> 0 | I102: ='F1'!F429 -> 0 | J102: =+'F1'!J429 ->  | K102: =+'F1'!O429 ->  | L102: =+'F1'!T429 ->  | R102: EJE_TRANSVERSAL_TRES | S102: 0 | T102: 0 | U102: 0 | V102: ='F1'!F987 -> 0 | W102: ='F1'!J987 -> 0 | X102: ='F1'!T987 -> 
A103: 0 | B103: 0 | C103: ='F1'!$N$3 -> 2017 | D103: =+'F1'!$T$3 -> 30 DE JUNIO | E103: ='F1'!$C$545 -> EJE_TRANSVERSAL_UNO | F103: ='F1'!C549 -> 0 | G103: ='F1'!D549 -> 0 | H103: ='F1'!E549 -> 0 | I103: ='F1'!F549 -> 0 | J103: ='F1'!J549 ->  | K103: ='F1'!O549 ->  | L103: ='F1'!T549 ->  | N103: ='F1'!T549 ->  | O103: ='F1'!U549 ->  | P103: ='F1'!V549 -> 0 | Q103: ='F1'!W549 -> 0 | R103: EJE_TRANSVERSAL_TRES | S103: 0 | T103: 0 | U103: 0 | V103: ='F1'!F993 -> 0 | W103: ='F1'!J993 -> 0 | X103: ='F1'!T993 -> 
A104: 0 | B104: 0 | C104: ='F1'!$N$3 -> 2017 | D104: =+'F1'!$T$3 -> 30 DE JUNIO | E104: ='F1'!$C$545 -> EJE_TRANSVERSAL_UNO | F104: ='F1'!C551 -> 0 | G104: ='F1'!D551 -> 0 | H104: ='F1'!E551 -> 0 | I104: ='F1'!F551 -> 0 | J104: ='F1'!J551 ->  | K104: ='F1'!O551 ->  | L104: ='F1'!T551 ->  | N104: ='F1'!T551 ->  | O104: ='F1'!U551 ->  | P104: ='F1'!V551 -> 0 | Q104: ='F1'!W551 -> 0 | R104: EJE_TRANSVERSAL_TRES | S104: 0 | T104: 0 | U104: 0 | V104: ='F1'!F999 -> 0 | W104: ='F1'!J999 -> 0 | X104: ='F1'!T999 -> 
A105: 0 | B105: 0 | C105: ='F1'!$N$3 -> 2017 | D105: =+'F1'!$T$3 -> 30 DE JUNIO | E105: ='F1'!$C$545 -> EJE_TRANSVERSAL_UNO | F105: ='F1'!C553 -> 0 | G105: ='F1'!D553 -> 0 | H105: ='F1'!E553 -> 0 | I105: ='F1'!F553 -> 0 | J105: ='F1'!J553 ->  | K105: ='F1'!O553 ->  | L105: ='F1'!T553 ->  | N105: ='F1'!T553 ->  | O105: ='F1'!U553 ->  | P105: ='F1'!V553 -> 0 | Q105: ='F1'!W553 -> 0 | R105: EJE_TRANSVERSAL_TRES | S105: 0 | T105: 0 | U105: 0 | V105: ='F1'!F1005 -> 0 | W105: ='F1'!J1005 -> 0 | X105: ='F1'!T1005 -> 
A106: 0 | B106: 0 | C106: ='F1'!$N$3 -> 2017 | D106: =+'F1'!$T$3 -> 30 DE JUNIO | E106: ='F1'!$C$545 -> EJE_TRANSVERSAL_UNO | F106: ='F1'!C555 -> 0 | G106: ='F1'!D555 -> 0 | H106: ='F1'!E555 -> 0 | I106: ='F1'!F555 -> 0 | J106: ='F1'!J555 ->  | K106: ='F1'!O555 ->  | L106: ='F1'!T555 ->  | N106: ='F1'!T555 ->  | O106: ='F1'!U555 ->  | P106: ='F1'!V555 -> 0 | Q106: ='F1'!W555 -> 0 | R106: EJE_TRANSVERSAL_TRES | S106: 0 | T106: 0 | U106: 0 | V106: ='F1'!F1011 -> 0 | W106: ='F1'!J1011 -> 0 | X106: ='F1'!T1011 -> 
A107: 0 | B107: 0 | C107: ='F1'!$N$3 -> 2017 | D107: =+'F1'!$T$3 -> 30 DE JUNIO | E107: ='F1'!$C$545 -> EJE_TRANSVERSAL_UNO | F107: ='F1'!C557 -> 0 | G107: ='F1'!D557 -> 0 | H107: ='F1'!E557 -> 0 | I107: ='F1'!F557 -> 0 | J107: ='F1'!J557 ->  | K107: ='F1'!O557 ->  | L107: ='F1'!T557 ->  | N107: ='F1'!T557 ->  | O107: ='F1'!U557 ->  | P107: ='F1'!V557 -> 0 | Q107: ='F1'!W557 -> 0 | R107: EJE_TRANSVERSAL_TRES | S107: 0 | T107: 0 | U107: 0 | V107: ='F1'!F1017 -> 0 | W107: ='F1'!J1017 -> 0 | X107: ='F1'!T1017 -> 
A108: 0 | B108: 0 | C108: ='F1'!$N$3 -> 2017 | D108: =+'F1'!$T$3 -> 30 DE JUNIO | E108: ='F1'!$C$545 -> EJE_TRANSVERSAL_UNO | F108: ='F1'!C559 -> 0 | G108: ='F1'!D559 -> 0 | H108: ='F1'!E559 -> 0 | I108: ='F1'!F559 -> 0 | J108: ='F1'!J559 ->  | K108: ='F1'!O559 ->  | L108: ='F1'!T559 ->  | N108: ='F1'!T559 ->  | O108: ='F1'!U559 ->  | P108: ='F1'!V559 -> 0 | Q108: ='F1'!W559 -> 0 | R108: EJE_TRANSVERSAL_TRES | S108: 0 | T108: 0 | U108: 0 | V108: ='F1'!F1023 -> 0 | W108: ='F1'!J1023 -> 0 | X108: ='F1'!T1023 -> 
A109: 0 | B109: 0 | C109: ='F1'!$N$3 -> 2017 | D109: =+'F1'!$T$3 -> 30 DE JUNIO | E109: ='F1'!$C$545 -> EJE_TRANSVERSAL_UNO | F109: ='F1'!C561 -> 0 | G109: ='F1'!D561 -> 0 | H109: ='F1'!E561 -> 0 | I109: ='F1'!F561 -> 0 | J109: ='F1'!J561 ->  | K109: ='F1'!O561 ->  | L109: ='F1'!T561 ->  | N109: ='F1'!T561 ->  | O109: ='F1'!U561 ->  | P109: ='F1'!V561 -> 0 | Q109: ='F1'!W561 -> 0 | R109: EJE_TRANSVERSAL_TRES | S109: 0 | T109: 0 | U109: 0 | V109: ='F1'!F1029 -> 0 | W109: ='F1'!J1029 -> 0 | X109: ='F1'!T1029 -> 
A110: 0 | B110: 0 | C110: ='F1'!$N$3 -> 2017 | D110: =+'F1'!$T$3 -> 30 DE JUNIO | E110: ='F1'!$C$545 -> EJE_TRANSVERSAL_UNO | F110: ='F1'!C563 -> 0 | G110: ='F1'!D563 -> 0 | H110: ='F1'!E563 -> 0 | I110: ='F1'!F563 -> 0 | J110: ='F1'!J563 ->  | K110: ='F1'!O563 ->  | L110: ='F1'!T563 ->  | N110: ='F1'!T563 ->  | O110: ='F1'!U563 ->  | P110: ='F1'!V563 -> 0 | Q110: ='F1'!W563 -> 0 | R110: EJE_TRANSVERSAL_TRES | S110: 0 | T110: 0 | U110: 0 | V110: ='F1'!F1035 -> 0 | W110: ='F1'!J1035 -> 0 | X110: ='F1'!T1035 -> 
A111: 0 | B111: 0 | C111: ='F1'!$N$3 -> 2017 | D111: =+'F1'!$T$3 -> 30 DE JUNIO | E111: ='F1'!$C$545 -> EJE_TRANSVERSAL_UNO | F111: ='F1'!C565 -> 0 | G111: ='F1'!D565 -> 0 | H111: ='F1'!E565 -> 0 | I111: ='F1'!F565 -> 0 | J111: ='F1'!J565 ->  | K111: ='F1'!O565 ->  | L111: ='F1'!T565 ->  | N111: ='F1'!T565 ->  | O111: ='F1'!U565 ->  | P111: ='F1'!V565 -> 0 | Q111: ='F1'!W565 -> 0 | R111: =+R110 -> EJE_TRANSVERSAL_TRES | S111: 0 | T111: 0 | U111: 0 | V111: ='F1'!F1041 -> 0 | W111: ='F1'!J1041 -> 0 | X111: ='F1'!T1041 -> 
A112: 0 | B112: 0 | C112: ='F1'!$N$3 -> 2017 | D112: =+'F1'!$T$3 -> 30 DE JUNIO | E112: ='F1'!$C$545 -> EJE_TRANSVERSAL_UNO | F112: ='F1'!C567 -> 0 | G112: ='F1'!D567 -> 0 | H112: ='F1'!E567 -> 0 | I112: ='F1'!F567 -> 0 | J112: ='F1'!J567 ->  | K112: ='F1'!O567 ->  | L112: ='F1'!T567 ->  | N112: ='F1'!T567 ->  | O112: ='F1'!U567 ->  | P112: ='F1'!V567 -> 0 | Q112: ='F1'!W567 -> 0 | R112: EJE_TRANSVERSAL_TRES | S112: 0 | T112: 0 | U112: 0 | V112: ='F1'!F1047 -> 0 | W112: ='F1'!J1047 -> 0 | X112: ='F1'!T1047 -> 
A113: 0 | B113: 0 | C113: ='F1'!$N$3 -> 2017 | D113: =+'F1'!$T$3 -> 30 DE JUNIO | E113: ='F1'!$C$545 -> EJE_TRANSVERSAL_UNO | F113: ='F1'!C569 -> 0 | G113: ='F1'!D569 -> 0 | H113: ='F1'!E569 -> 0 | I113: ='F1'!F569 -> 0 | J113: ='F1'!J569 ->  | K113: ='F1'!O569 ->  | L113: ='F1'!T569 ->  | N113: ='F1'!T569 ->  | O113: ='F1'!U569 ->  | P113: ='F1'!V569 -> 0 | Q113: ='F1'!W569 -> 0 | R113: EJE_TRANSVERSAL_TRES | S113: 0 | T113: 0 | U113: 0 | V113: ='F1'!F1053 -> 0 | W113: ='F1'!J1053 -> 0 | X113: ='F1'!T1053 -> 
A114: 0 | B114: 0 | C114: ='F1'!$N$3 -> 2017 | D114: =+'F1'!$T$3 -> 30 DE JUNIO | E114: ='F1'!$C$545 -> EJE_TRANSVERSAL_UNO | F114: ='F1'!C571 -> 0 | G114: ='F1'!D571 -> 0 | H114: ='F1'!E571 -> 0 | I114: ='F1'!F571 -> 0 | J114: ='F1'!J571 ->  | K114: ='F1'!O571 ->  | L114: ='F1'!T571 ->  | N114: ='F1'!T571 ->  | O114: ='F1'!U571 ->  | P114: ='F1'!V571 -> 0 | Q114: ='F1'!W571 -> 0 | R114: EJE_TRANSVERSAL_TRES | S114: 0 | T114: 0 | U114: 0 | V114: ='F1'!F1059 -> 0 | W114: ='F1'!J1059 -> 0 | X114: ='F1'!T1059 -> 
A115: 0 | B115: 0 | C115: ='F1'!$N$3 -> 2017 | D115: =+'F1'!$T$3 -> 30 DE JUNIO | E115: ='F1'!$C$545 -> EJE_TRANSVERSAL_UNO | F115: ='F1'!C573 -> 0 | G115: ='F1'!D573 -> 0 | H115: ='F1'!E573 -> 0 | I115: ='F1'!F573 -> 0 | J115: ='F1'!J573 ->  | K115: ='F1'!O573 ->  | L115: ='F1'!T573 ->  | N115: ='F1'!T573 ->  | O115: ='F1'!U573 ->  | P115: ='F1'!V573 -> 0 | Q115: ='F1'!W573 -> 0 | R115: EJE_TRANSVERSAL_TRES | S115: 0 | T115: 0 | U115: 0 | V115: ='F1'!F1065 -> 0 | W115: ='F1'!J1065 -> 0 | X115: ='F1'!T1065 -> 
A116: 0 | B116: 0 | C116: ='F1'!$N$3 -> 2017 | D116: =+'F1'!$T$3 -> 30 DE JUNIO | E116: ='F1'!$C$545 -> EJE_TRANSVERSAL_UNO | F116: ='F1'!C575 -> 0 | G116: ='F1'!D575 -> 0 | H116: ='F1'!E575 -> 0 | I116: ='F1'!F575 -> 0 | J116: ='F1'!J575 ->  | K116: ='F1'!O575 ->  | L116: ='F1'!T575 ->  | N116: ='F1'!T575 ->  | O116: ='F1'!U575 ->  | P116: ='F1'!V575 -> 0 | Q116: ='F1'!W575 -> 0 | R116: EJE_TRANSVERSAL_TRES | S116: 0 | T116: 0 | U116: 0 | V116: ='F1'!F1071 -> 0 | W116: ='F1'!J1071 -> 0 | X116: ='F1'!T1071 -> 
A117: 0 | B117: 0 | C117: ='F1'!$N$3 -> 2017 | D117: =+'F1'!$T$3 -> 30 DE JUNIO | E117: ='F1'!$C$545 -> EJE_TRANSVERSAL_UNO | F117: ='F1'!C577 -> 0 | G117: ='F1'!D577 -> 0 | H117: ='F1'!E577 ->  | I117: ='F1'!F577 -> 0 | J117: ='F1'!J577 ->  | K117: ='F1'!O577 ->  | L117: ='F1'!T577 ->  | N117: ='F1'!T577 ->  | O117: ='F1'!U577 ->  | P117: ='F1'!V577 -> 0 | Q117: ='F1'!W577 -> 0 | R117: EJE_TRANSVERSAL_TRES | S117: 0 | T117: 0 | U117: 0 | V117: ='F1'!F1077 -> 0 | W117: ='F1'!J1077 -> 0 | X117: ='F1'!T1077 -> 
A118: 0 | B118: 0 | C118: ='F1'!$N$3 -> 2017 | D118: =+'F1'!$T$3 -> 30 DE JUNIO | E118: ='F1'!$C$545 -> EJE_TRANSVERSAL_UNO | F118: ='F1'!C579 -> 0 | G118: ='F1'!D579 -> 0 | H118: ='F1'!E579 ->  | I118: ='F1'!F579 -> 0 | J118: ='F1'!J579 ->  | K118: ='F1'!O579 ->  | L118: ='F1'!T579 ->  | N118: ='F1'!T579 ->  | O118: ='F1'!U579 ->  | P118: ='F1'!V579 -> 0 | Q118: ='F1'!W579 -> 0 | R118: =E196 -> EJE_TRANSVERSAL_CUATRO | S118: 0 | T118: =F196 -> 0 | U118: =G196 -> 0 | V118: ='F1'!F1153 -> 0 | W118: ='F1'!J1153 -> 0 | X118: ='F1'!T1153 -> 
A119: 0 | B119: 0 | C119: ='F1'!$N$3 -> 2017 | D119: =+'F1'!$T$3 -> 30 DE JUNIO | E119: ='F1'!$C$545 -> EJE_TRANSVERSAL_UNO | F119: ='F1'!C581 -> 0 | G119: ='F1'!D581 -> 0 | H119: ='F1'!E581 ->  | I119: ='F1'!F581 -> 0 | J119: ='F1'!J581 ->  | K119: ='F1'!O581 ->  | L119: ='F1'!T581 ->  | N119: ='F1'!T581 ->  | O119: ='F1'!U581 ->  | P119: ='F1'!V581 -> 0 | Q119: ='F1'!W581 -> 0 | R119: =+R118 -> EJE_TRANSVERSAL_CUATRO | S119: 0 | T119: =F197 -> 0 | U119: =G197 -> 0 | V119: ='F1'!F1159 -> 0 | W119: ='F1'!J1159 -> 0 | X119: ='F1'!T1159 -> 
A120: 0 | B120: 0 | C120: ='F1'!$N$3 -> 2017 | D120: =+'F1'!$T$3 -> 30 DE JUNIO | E120: ='F1'!$C$545 -> EJE_TRANSVERSAL_UNO | F120: ='F1'!C583 -> 0 | G120: ='F1'!D583 -> 0 | H120: ='F1'!E583 ->  | I120: ='F1'!F583 -> 0 | J120: ='F1'!J583 ->  | K120: ='F1'!O583 ->  | L120: ='F1'!T583 ->  | N120: ='F1'!T583 ->  | O120: ='F1'!U583 ->  | P120: ='F1'!V583 -> 0 | Q120: ='F1'!W583 -> 0 | R120: EJE_TRANSVERSAL_CUATRO | S120: 0 | T120: 0 | U120: 0 | V120: ='F1'!F1165 -> 0 | W120: ='F1'!J1165 -> 0 | X120: ='F1'!T1165 -> 
A121: 0 | B121: 0 | C121: ='F1'!$N$3 -> 2017 | D121: =+'F1'!$T$3 -> 30 DE JUNIO | E121: ='F1'!$C$545 -> EJE_TRANSVERSAL_UNO | F121: ='F1'!C585 -> 0 | G121: ='F1'!D585 -> 0 | H121: ='F1'!E585 ->  | I121: ='F1'!F585 -> 0 | J121: ='F1'!J585 ->  | K121: ='F1'!O585 ->  | L121: ='F1'!T585 ->  | N121: ='F1'!T585 ->  | O121: ='F1'!U585 ->  | P121: ='F1'!V585 -> 0 | Q121: ='F1'!W585 -> 0 | R121: EJE_TRANSVERSAL_CUATRO | S121: 0 | T121: 0 | U121: 0 | V121: ='F1'!F1171 -> 0 | W121: ='F1'!J1171 -> 0 | X121: ='F1'!T1171 -> 
A122: 0 | B122: 0 | C122: ='F1'!$N$3 -> 2017 | D122: =+'F1'!$T$3 -> 30 DE JUNIO | E122: ='F1'!$C$545 -> EJE_TRANSVERSAL_UNO | F122: ='F1'!C587 -> 0 | G122: ='F1'!D587 -> 0 | H122: ='F1'!E587 ->  | I122: ='F1'!F587 -> 0 | J122: ='F1'!J587 ->  | K122: ='F1'!O587 ->  | L122: ='F1'!T587 ->  | N122: ='F1'!T587 ->  | O122: ='F1'!U587 ->  | P122: ='F1'!V587 -> 0 | Q122: ='F1'!W587 -> 0 | R122: EJE_TRANSVERSAL_CUATRO | S122: 0 | T122: 0 | U122: 0 | V122: ='F1'!F1177 -> 0 | W122: ='F1'!J1177 -> 0 | X122: ='F1'!T1177 -> 
A123: 0 | B123: 0 | C123: ='F1'!$N$3 -> 2017 | D123: =+'F1'!$T$3 -> 30 DE JUNIO | E123: ='F1'!$C$545 -> EJE_TRANSVERSAL_UNO | F123: ='F1'!C589 -> 0 | G123: ='F1'!D589 -> 0 | H123: ='F1'!E589 -> 0 | I123: ='F1'!F589 -> 0 | J123: ='F1'!J589 ->  | K123: ='F1'!O589 ->  | L123: ='F1'!T589 ->  | N123: ='F1'!T589 ->  | O123: ='F1'!U589 ->  | P123: ='F1'!V589 -> 0 | Q123: ='F1'!W589 -> 0 | R123: EJE_TRANSVERSAL_CUATRO | S123: 0 | T123: 0 | U123: 0 | V123: ='F1'!F1183 -> 0 | W123: ='F1'!J1183 -> 0 | X123: ='F1'!T1183 -> 
A124: 0 | B124: 0 | C124: ='F1'!$N$3 -> 2017 | D124: =+'F1'!$T$3 -> 30 DE JUNIO | E124: ='F1'!$C$545 -> EJE_TRANSVERSAL_UNO | F124: ='F1'!C591 -> 0 | G124: ='F1'!D591 -> 0 | H124: ='F1'!E591 -> 0 | I124: ='F1'!F591 -> 0 | J124: ='F1'!J591 ->  | K124: ='F1'!O591 ->  | L124: ='F1'!T591 ->  | N124: ='F1'!T591 ->  | O124: ='F1'!U591 ->  | P124: ='F1'!V591 -> 0 | Q124: ='F1'!W591 -> 0 | R124: EJE_TRANSVERSAL_CUATRO | S124: 0 | T124: 0 | U124: 0 | V124: ='F1'!F1189 -> 0 | W124: ='F1'!J1189 -> 0 | X124: ='F1'!T1189 -> 
A125: 0 | B125: 0 | C125: ='F1'!$N$3 -> 2017 | D125: =+'F1'!$T$3 -> 30 DE JUNIO | E125: ='F1'!$C$545 -> EJE_TRANSVERSAL_UNO | F125: ='F1'!C593 -> 0 | G125: ='F1'!D593 -> 0 | H125: ='F1'!E593 ->  | I125: ='F1'!F593 -> 0 | J125: ='F1'!J593 ->  | K125: ='F1'!O593 ->  | L125: ='F1'!T593 ->  | N125: ='F1'!T593 ->  | O125: ='F1'!U593 ->  | P125: ='F1'!V593 -> 0 | Q125: ='F1'!W593 -> 0 | R125: EJE_TRANSVERSAL_CUATRO | S125: 0 | T125: 0 | U125: 0 | V125: ='F1'!F1195 -> 0 | W125: ='F1'!J1195 -> 0 | X125: ='F1'!T1195 -> 
A126: 0 | B126: 0 | C126: ='F1'!$N$3 -> 2017 | D126: =+'F1'!$T$3 -> 30 DE JUNIO | E126: ='F1'!$C$545 -> EJE_TRANSVERSAL_UNO | F126: ='F1'!C595 -> 0 | G126: ='F1'!D595 -> 0 | H126: ='F1'!E595 ->  | I126: ='F1'!F595 -> 0 | J126: ='F1'!J595 ->  | K126: ='F1'!O595 ->  | L126: ='F1'!T595 ->  | N126: ='F1'!T595 ->  | O126: ='F1'!U595 ->  | P126: ='F1'!V595 -> 0 | Q126: ='F1'!W595 -> 0 | R126: EJE_TRANSVERSAL_CUATRO | S126: 0 | T126: 0 | U126: 0 | V126: ='F1'!F1201 -> 0 | W126: ='F1'!J1201 -> 0 | X126: ='F1'!T1201 -> 
A127: 0 | B127: 0 | C127: ='F1'!$N$3 -> 2017 | D127: =+'F1'!$T$3 -> 30 DE JUNIO | E127: ='F1'!$C$545 -> EJE_TRANSVERSAL_UNO | F127: ='F1'!C597 -> 0 | G127: ='F1'!D597 -> 0 | H127: ='F1'!E597 -> 0 | I127: ='F1'!F597 -> 0 | J127: ='F1'!J597 ->  | K127: ='F1'!O597 ->  | L127: ='F1'!T597 ->  | N127: ='F1'!T597 ->  | O127: ='F1'!U597 ->  | P127: ='F1'!V597 -> 0 | Q127: ='F1'!W597 -> 0 | R127: EJE_TRANSVERSAL_CUATRO | S127: 0 | T127: 0 | U127: 0 | V127: ='F1'!F1207 -> 0 | W127: ='F1'!J1207 -> 0 | X127: ='F1'!T1207 -> 
A128: 0 | B128: 0 | C128: ='F1'!$N$3 -> 2017 | D128: =+'F1'!$T$3 -> 30 DE JUNIO | E128: ='F1'!$C$545 -> EJE_TRANSVERSAL_UNO | F128: ='F1'!C599 -> 0 | G128: ='F1'!D599 -> 0 | H128: ='F1'!E599 -> 0 | I128: ='F1'!F599 -> 0 | J128: ='F1'!J599 ->  | K128: ='F1'!O599 ->  | L128: ='F1'!T599 ->  | N128: ='F1'!T599 ->  | O128: ='F1'!U599 ->  | P128: ='F1'!V599 -> 0 | Q128: ='F1'!W599 -> 0 | R128: EJE_TRANSVERSAL_CUATRO | S128: 0 | T128: 0 | U128: 0 | V128: ='F1'!F1213 -> 0 | W128: ='F1'!J1213 -> 0 | X128: ='F1'!T1213 -> 
A129: 0 | B129: 0 | C129: ='F1'!$N$3 -> 2017 | D129: =+'F1'!$T$3 -> 30 DE JUNIO | E129: ='F1'!$C$545 -> EJE_TRANSVERSAL_UNO | F129: ='F1'!C601 -> 0 | G129: ='F1'!D601 -> 0 | H129: ='F1'!E601 ->  | I129: ='F1'!F601 -> 0 | J129: ='F1'!J601 ->  | K129: ='F1'!O601 ->  | L129: ='F1'!T601 ->  | N129: ='F1'!T601 ->  | O129: ='F1'!U601 ->  | P129: ='F1'!V601 -> 0 | Q129: ='F1'!W601 -> 0 | R129: EJE_TRANSVERSAL_CUATRO | S129: 0 | T129: 0 | U129: 0 | V129: ='F1'!F1219 -> 0 | W129: ='F1'!J1219 -> 0 | X129: ='F1'!T1219 -> 
A130: 0 | B130: 0 | C130: ='F1'!$N$3 -> 2017 | D130: =+'F1'!$T$3 -> 30 DE JUNIO | E130: ='F1'!$C$545 -> EJE_TRANSVERSAL_UNO | F130: ='F1'!C603 -> 0 | G130: ='F1'!D603 -> 0 | H130: ='F1'!E603 -> 0 | I130: ='F1'!F603 -> 0 | J130: ='F1'!J603 ->  | K130: ='F1'!O603 ->  | L130: ='F1'!T603 ->  | N130: ='F1'!T603 ->  | O130: ='F1'!U603 ->  | P130: ='F1'!V603 -> 0 | Q130: ='F1'!W603 -> 0 | R130: EJE_TRANSVERSAL_CUATRO | S130: 0 | T130: 0 | U130: 0 | V130: ='F1'!F1225 -> 0 | W130: ='F1'!J1225 -> 0 | X130: ='F1'!T1225 -> 
A131: 0 | B131: 0 | C131: ='F1'!$N$3 -> 2017 | D131: =+'F1'!$T$3 -> 30 DE JUNIO | E131: ='F1'!$C$545 -> EJE_TRANSVERSAL_UNO | F131: ='F1'!C605 -> 0 | G131: ='F1'!D605 -> 0 | H131: ='F1'!E605 ->  | I131: ='F1'!F605 -> 0 | J131: ='F1'!J605 ->  | K131: ='F1'!O605 ->  | L131: ='F1'!T605 ->  | N131: ='F1'!T605 ->  | O131: ='F1'!U605 ->  | P131: ='F1'!V605 -> 0 | Q131: ='F1'!W605 -> 0 | R131: EJE_TRANSVERSAL_CUATRO | S131: 0 | T131: 0 | U131: 0 | V131: ='F1'!F1231 -> 0 | W131: ='F1'!J1231 -> 0 | X131: ='F1'!T1231 -> 
A132: 0 | B132: 0 | C132: ='F1'!$N$3 -> 2017 | D132: =+'F1'!$T$3 -> 30 DE JUNIO | E132: ='F1'!$C$545 -> EJE_TRANSVERSAL_UNO | F132: ='F1'!C607 -> 0 | G132: ='F1'!D607 -> 0 | H132: ='F1'!E607 ->  | I132: ='F1'!F607 -> 0 | J132: ='F1'!J607 ->  | K132: ='F1'!O607 ->  | L132: ='F1'!T607 ->  | N132: ='F1'!T607 ->  | O132: ='F1'!U607 ->  | P132: ='F1'!V607 -> 0 | Q132: ='F1'!W607 -> 0 | R132: EJE_TRANSVERSAL_CUATRO | S132: 0 | T132: 0 | U132: 0 | V132: ='F1'!F1237 -> 0 | W132: ='F1'!J1237 -> 0 | X132: ='F1'!T1237 -> 
A133: 0 | B133: 0 | C133: ='F1'!$N$3 -> 2017 | D133: =+'F1'!$T$3 -> 30 DE JUNIO | E133: ='F1'!$C$545 -> EJE_TRANSVERSAL_UNO | F133: ='F1'!C609 -> 0 | G133: ='F1'!D609 -> 0 | H133: ='F1'!E609 -> 0 | I133: ='F1'!F609 -> 0 | J133: ='F1'!J609 ->  | K133: ='F1'!O609 ->  | L133: ='F1'!T609 ->  | N133: ='F1'!T609 ->  | O133: ='F1'!U609 ->  | P133: ='F1'!V609 -> 0 | Q133: ='F1'!W609 -> 0 | R133: EJE_TRANSVERSAL_CUATRO | S133: 0 | T133: 0 | U133: 0 | V133: ='F1'!F1243 -> 0 | W133: ='F1'!J1243 -> 0 | X133: ='F1'!T1243 -> 
A134: 0 | B134: 0 | C134: ='F1'!$N$3 -> 2017 | D134: =+'F1'!$T$3 -> 30 DE JUNIO | E134: ='F1'!$C$725 -> EJE_TRANSVERSAL_DOS | F134: ='F1'!C729 -> 0 | G134: ='F1'!D729 -> 0 | H134: ='F1'!E729 -> 0 | I134: ='F1'!F729 -> 0 | J134: ='F1'!J729 ->  | K134: ='F1'!O729 ->  | L134: ='F1'!T729 ->  | R134: EJE_TRANSVERSAL_CUATRO | S134: 0 | T134: 0 | U134: 0 | V134: ='F1'!F1249 -> 0 | W134: ='F1'!J1249 -> 0 | X134: ='F1'!T1249 -> 
A135: 0 | B135: 0 | C135: ='F1'!$N$3 -> 2017 | D135: =+'F1'!$T$3 -> 30 DE JUNIO | E135: ='F1'!$C$725 -> EJE_TRANSVERSAL_DOS | F135: ='F1'!C731 -> 0 | G135: ='F1'!D731 -> 0 | H135: ='F1'!E731 -> 0 | I135: ='F1'!F731 -> 0 | J135: ='F1'!J731 ->  | K135: ='F1'!O731 ->  | L135: ='F1'!T731 ->  | R135: EJE_TRANSVERSAL_CUATRO | S135: 0 | T135: 0 | U135: 0 | V135: =+'F1'!F1255 -> 0 | W135: =+'F1'!J1255 -> 0 | X135: =+'F1'!T1255 -> 
A136: 0 | B136: 0 | C136: ='F1'!$N$3 -> 2017 | D136: =+'F1'!$T$3 -> 30 DE JUNIO | E136: ='F1'!$C$725 -> EJE_TRANSVERSAL_DOS | F136: ='F1'!C733 -> 0 | G136: ='F1'!D733 -> 0 | H136: ='F1'!E733 -> 0 | I136: ='F1'!F733 -> 0 | J136: ='F1'!J733 ->  | K136: ='F1'!O733 ->  | L136: ='F1'!T733 -> 
A137: 0 | B137: 0 | C137: ='F1'!$N$3 -> 2017 | D137: =+'F1'!$T$3 -> 30 DE JUNIO | E137: ='F1'!$C$725 -> EJE_TRANSVERSAL_DOS | F137: ='F1'!C735 -> 0 | G137: ='F1'!D735 -> 0 | H137: ='F1'!E735 -> 0 | I137: ='F1'!F735 -> 0 | J137: ='F1'!J735 ->  | K137: ='F1'!O735 ->  | L137: ='F1'!T735 -> 
A138: 0 | B138: 0 | C138: ='F1'!$N$3 -> 2017 | D138: =+'F1'!$T$3 -> 30 DE JUNIO | E138: ='F1'!$C$725 -> EJE_TRANSVERSAL_DOS | F138: ='F1'!C737 -> 0 | G138: ='F1'!D737 -> 0 | H138: ='F1'!E737 -> 0 | I138: ='F1'!F737 -> 0 | J138: ='F1'!J737 ->  | K138: ='F1'!O737 ->  | L138: ='F1'!T737 -> 
A139: 0 | B139: 0 | C139: ='F1'!$N$3 -> 2017 | D139: =+'F1'!$T$3 -> 30 DE JUNIO | E139: ='F1'!$C$725 -> EJE_TRANSVERSAL_DOS | F139: ='F1'!C739 -> 0 | G139: ='F1'!D739 -> 0 | H139: ='F1'!E739 -> 0 | I139: ='F1'!F739 -> 0 | J139: ='F1'!J739 ->  | K139: ='F1'!O739 ->  | L139: ='F1'!T739 -> 
A140: 0 | B140: 0 | C140: ='F1'!$N$3 -> 2017 | D140: =+'F1'!$T$3 -> 30 DE JUNIO | E140: ='F1'!$C$725 -> EJE_TRANSVERSAL_DOS | F140: ='F1'!C741 -> 0 | G140: ='F1'!D741 -> 0 | H140: ='F1'!E741 -> 0 | I140: ='F1'!F741 -> 0 | J140: ='F1'!J741 ->  | K140: ='F1'!O741 ->  | L140: ='F1'!T741 -> 
A141: 0 | B141: 0 | C141: ='F1'!$N$3 -> 2017 | D141: =+'F1'!$T$3 -> 30 DE JUNIO | E141: ='F1'!$C$725 -> EJE_TRANSVERSAL_DOS | F141: ='F1'!C743 -> 0 | G141: ='F1'!D743 -> 0 | H141: ='F1'!E743 -> 0 | I141: ='F1'!F743 -> 0 | J141: ='F1'!J743 ->  | K141: ='F1'!O743 ->  | L141: ='F1'!T743 -> 
A142: 0 | B142: 0 | C142: ='F1'!$N$3 -> 2017 | D142: =+'F1'!$T$3 -> 30 DE JUNIO | E142: ='F1'!$C$725 -> EJE_TRANSVERSAL_DOS | F142: ='F1'!C745 -> 0 | G142: ='F1'!D745 -> 0 | H142: ='F1'!E745 -> 0 | I142: ='F1'!F745 -> 0 | J142: ='F1'!J745 ->  | K142: ='F1'!O745 ->  | L142: ='F1'!T745 -> 
A143: 0 | B143: 0 | C143: ='F1'!$N$3 -> 2017 | D143: =+'F1'!$T$3 -> 30 DE JUNIO | E143: ='F1'!$C$725 -> EJE_TRANSVERSAL_DOS | F143: ='F1'!C747 -> 0 | G143: ='F1'!D747 -> 0 | H143: ='F1'!E747 -> 0 | I143: ='F1'!F747 -> 0 | J143: ='F1'!J747 ->  | K143: ='F1'!O747 ->  | L143: ='F1'!T747 -> 
A144: 0 | B144: 0 | C144: ='F1'!$N$3 -> 2017 | D144: =+'F1'!$T$3 -> 30 DE JUNIO | E144: ='F1'!$C$725 -> EJE_TRANSVERSAL_DOS | F144: ='F1'!C749 -> 0 | G144: ='F1'!D749 -> 0 | H144: ='F1'!E749 -> 0 | I144: ='F1'!F749 -> 0 | J144: ='F1'!J749 ->  | K144: ='F1'!O749 ->  | L144: ='F1'!T749 -> 
A145: 0 | B145: 0 | C145: ='F1'!$N$3 -> 2017 | D145: =+'F1'!$T$3 -> 30 DE JUNIO | E145: ='F1'!$C$725 -> EJE_TRANSVERSAL_DOS | F145: ='F1'!C751 -> 0 | G145: ='F1'!D751 -> 0 | H145: ='F1'!E751 -> 0 | I145: ='F1'!F751 -> 0 | J145: ='F1'!J751 ->  | K145: ='F1'!O751 ->  | L145: ='F1'!T751 -> 
A146: 0 | B146: 0 | C146: ='F1'!$N$3 -> 2017 | D146: =+'F1'!$T$3 -> 30 DE JUNIO | E146: ='F1'!$C$725 -> EJE_TRANSVERSAL_DOS | F146: ='F1'!C753 -> 0 | G146: ='F1'!D753 -> 0 | H146: ='F1'!E753 -> 0 | I146: ='F1'!F753 -> 0 | J146: ='F1'!J753 ->  | K146: ='F1'!O753 ->  | L146: ='F1'!T753 -> 
A147: 0 | B147: 0 | C147: ='F1'!$N$3 -> 2017 | D147: =+'F1'!$T$3 -> 30 DE JUNIO | E147: ='F1'!$C$725 -> EJE_TRANSVERSAL_DOS | F147: ='F1'!C755 -> 0 | G147: ='F1'!D755 -> 0 | H147: ='F1'!E755 -> 0 | I147: ='F1'!F755 -> 0 | J147: ='F1'!J755 ->  | K147: ='F1'!O755 ->  | L147: ='F1'!T755 -> 
A148: 0 | B148: 0 | C148: ='F1'!$N$3 -> 2017 | D148: =+'F1'!$T$3 -> 30 DE JUNIO | E148: ='F1'!$C$725 -> EJE_TRANSVERSAL_DOS | F148: ='F1'!C757 -> 0 | G148: ='F1'!D757 -> 0 | H148: ='F1'!E757 ->  | I148: ='F1'!F757 -> 0 | J148: ='F1'!J757 ->  | K148: ='F1'!O757 ->  | L148: ='F1'!T757 -> 
A149: 0 | B149: 0 | C149: ='F1'!$N$3 -> 2017 | D149: =+'F1'!$T$3 -> 30 DE JUNIO | E149: ='F1'!$C$725 -> EJE_TRANSVERSAL_DOS | F149: ='F1'!C759 -> 0 | G149: ='F1'!D759 -> 0 | H149: ='F1'!E759 ->  | I149: ='F1'!F759 -> 0 | J149: ='F1'!J759 ->  | K149: ='F1'!O759 ->  | L149: ='F1'!T759 -> 
A150: 0 | B150: 0 | C150: ='F1'!$N$3 -> 2017 | D150: =+'F1'!$T$3 -> 30 DE JUNIO | E150: ='F1'!$C$725 -> EJE_TRANSVERSAL_DOS | F150: ='F1'!C761 -> 0 | G150: ='F1'!D761 -> 0 | H150: ='F1'!E761 ->  | I150: ='F1'!F761 -> 0 | J150: ='F1'!J761 ->  | K150: ='F1'!O761 ->  | L150: ='F1'!T761 -> 
A151: 0 | B151: 0 | C151: ='F1'!$N$3 -> 2017 | D151: =+'F1'!$T$3 -> 30 DE JUNIO | E151: ='F1'!$C$725 -> EJE_TRANSVERSAL_DOS | F151: ='F1'!C763 -> 0 | G151: ='F1'!D763 -> 0 | H151: ='F1'!E763 ->  | I151: ='F1'!F763 -> 0 | J151: ='F1'!J763 ->  | K151: ='F1'!O763 ->  | L151: ='F1'!T763 -> 
A152: 0 | B152: 0 | C152: ='F1'!$N$3 -> 2017 | D152: =+'F1'!$T$3 -> 30 DE JUNIO | E152: ='F1'!$C$725 -> EJE_TRANSVERSAL_DOS | F152: ='F1'!C765 -> 0 | G152: ='F1'!D765 -> 0 | H152: ='F1'!E765 ->  | I152: ='F1'!F765 -> 0 | J152: ='F1'!J765 ->  | K152: ='F1'!O765 ->  | L152: ='F1'!T765 -> 
A153: 0 | B153: 0 | C153: ='F1'!$N$3 -> 2017 | D153: =+'F1'!$T$3 -> 30 DE JUNIO | E153: ='F1'!$C$725 -> EJE_TRANSVERSAL_DOS | F153: ='F1'!C767 -> 0 | G153: ='F1'!D767 -> 0 | H153: ='F1'!E767 ->  | I153: ='F1'!F767 -> 0 | J153: ='F1'!J767 ->  | K153: ='F1'!O767 ->  | L153: ='F1'!T767 -> 
A154: 0 | B154: 0 | C154: ='F1'!$N$3 -> 2017 | D154: =+'F1'!$T$3 -> 30 DE JUNIO | E154: ='F1'!$C$725 -> EJE_TRANSVERSAL_DOS | F154: ='F1'!C769 -> 0 | G154: ='F1'!D769 -> 0 | H154: ='F1'!E769 -> 0 | I154: ='F1'!F769 -> 0 | J154: ='F1'!J769 ->  | K154: ='F1'!O769 ->  | L154: ='F1'!T769 -> 
A155: 0 | B155: 0 | C155: ='F1'!$N$3 -> 2017 | D155: =+'F1'!$T$3 -> 30 DE JUNIO | E155: ='F1'!$C$725 -> EJE_TRANSVERSAL_DOS | F155: ='F1'!C771 -> 0 | G155: ='F1'!D771 -> 0 | H155: ='F1'!E771 -> 0 | I155: ='F1'!F771 -> 0 | J155: ='F1'!J771 ->  | K155: ='F1'!O771 ->  | L155: ='F1'!T771 -> 
A156: 0 | B156: 0 | C156: ='F1'!$N$3 -> 2017 | D156: =+'F1'!$T$3 -> 30 DE JUNIO | E156: ='F1'!$C$725 -> EJE_TRANSVERSAL_DOS | F156: ='F1'!C773 -> 0 | G156: ='F1'!D773 -> 0 | H156: ='F1'!E773 ->  | I156: ='F1'!F773 -> 0 | J156: ='F1'!J773 ->  | K156: ='F1'!O773 ->  | L156: ='F1'!T773 -> 
A157: 0 | B157: 0 | C157: ='F1'!$N$3 -> 2017 | D157: =+'F1'!$T$3 -> 30 DE JUNIO | E157: ='F1'!$C$725 -> EJE_TRANSVERSAL_DOS | F157: ='F1'!C775 -> 0 | G157: ='F1'!D775 -> 0 | H157: ='F1'!E775 ->  | I157: ='F1'!F775 -> 0 | J157: ='F1'!J775 ->  | K157: ='F1'!O775 ->  | L157: ='F1'!T775 -> 
A158: 0 | B158: 0 | C158: ='F1'!$N$3 -> 2017 | D158: =+'F1'!$T$3 -> 30 DE JUNIO | E158: ='F1'!$C$725 -> EJE_TRANSVERSAL_DOS | F158: ='F1'!C777 -> 0 | G158: ='F1'!D777 -> 0 | H158: ='F1'!E777 -> 0 | I158: ='F1'!F777 -> 0 | J158: ='F1'!J777 ->  | K158: ='F1'!O777 ->  | L158: ='F1'!T777 -> 
A159: 0 | B159: 0 | C159: ='F1'!$N$3 -> 2017 | D159: =+'F1'!$T$3 -> 30 DE JUNIO | E159: ='F1'!$C$725 -> EJE_TRANSVERSAL_DOS | F159: ='F1'!C779 -> 0 | G159: ='F1'!D779 -> 0 | H159: ='F1'!E779 -> 0 | I159: ='F1'!F779 -> 0 | J159: ='F1'!J779 ->  | K159: ='F1'!O779 ->  | L159: ='F1'!T779 -> 
A160: 0 | B160: 0 | C160: ='F1'!$N$3 -> 2017 | D160: =+'F1'!$T$3 -> 30 DE JUNIO | E160: ='F1'!$C$725 -> EJE_TRANSVERSAL_DOS | F160: ='F1'!C781 -> 0 | G160: ='F1'!D781 -> 0 | H160: ='F1'!E781 ->  | I160: ='F1'!F781 -> 0 | J160: ='F1'!J781 ->  | K160: ='F1'!O781 ->  | L160: ='F1'!T781 -> 
A161: 0 | B161: 0 | C161: ='F1'!$N$3 -> 2017 | D161: =+'F1'!$T$3 -> 30 DE JUNIO | E161: ='F1'!$C$725 -> EJE_TRANSVERSAL_DOS | F161: ='F1'!C783 -> 0 | G161: ='F1'!D783 -> 0 | H161: ='F1'!E783 -> 0 | I161: ='F1'!F783 -> 0 | J161: ='F1'!J783 ->  | K161: ='F1'!O783 ->  | L161: ='F1'!T783 -> 
A162: 0 | B162: 0 | C162: ='F1'!$N$3 -> 2017 | D162: =+'F1'!$T$3 -> 30 DE JUNIO | E162: ='F1'!$C$725 -> EJE_TRANSVERSAL_DOS | F162: ='F1'!C785 -> 0 | G162: ='F1'!D785 -> 0 | H162: ='F1'!E785 ->  | I162: ='F1'!F785 -> 0 | J162: ='F1'!J785 ->  | K162: ='F1'!O785 ->  | L162: ='F1'!T785 -> 
A163: 0 | B163: 0 | C163: ='F1'!$N$3 -> 2017 | D163: =+'F1'!$T$3 -> 30 DE JUNIO | E163: ='F1'!$C$725 -> EJE_TRANSVERSAL_DOS | F163: ='F1'!C787 -> 0 | G163: ='F1'!D787 -> 0 | H163: ='F1'!E787 ->  | I163: ='F1'!F787 -> 0 | J163: ='F1'!J787 ->  | K163: ='F1'!O787 ->  | L163: ='F1'!T787 -> 
A164: 0 | B164: 0 | C164: ='F1'!$N$3 -> 2017 | D164: =+'F1'!$T$3 -> 30 DE JUNIO | E164: ='F1'!$C$725 -> EJE_TRANSVERSAL_DOS | F164: ='F1'!C789 -> 0 | G164: ='F1'!D789 -> 0 | H164: ='F1'!E789 -> 0 | I164: ='F1'!F789 -> 0 | J164: ='F1'!J789 ->  | K164: ='F1'!O789 ->  | L164: ='F1'!T789 -> 
A165: 0 | B165: 0 | C165: ='F1'!$N$3 -> 2017 | D165: =+'F1'!$T$3 -> 30 DE JUNIO | E165: ='F1'!$C$905 -> EJE_TRANSVERSAL_TRES | F165: ='F1'!C909 -> 0 | G165: ='F1'!D909 -> 0 | H165: ='F1'!E909 -> 0 | I165: ='F1'!F909 -> 0 | J165: ='F1'!J909 ->  | K165: ='F1'!O909 ->  | L165: ='F1'!T909 -> 
A166: 0 | B166: 0 | C166: ='F1'!$N$3 -> 2017 | D166: =+'F1'!$T$3 -> 30 DE JUNIO | E166: ='F1'!$C$905 -> EJE_TRANSVERSAL_TRES | F166: ='F1'!C911 -> 0 | G166: ='F1'!D911 -> 0 | H166: ='F1'!E911 -> 0 | I166: ='F1'!F911 -> 0 | J166: ='F1'!J911 ->  | K166: ='F1'!O911 ->  | L166: ='F1'!T911 -> 
A167: 0 | B167: 0 | C167: ='F1'!$N$3 -> 2017 | D167: =+'F1'!$T$3 -> 30 DE JUNIO | E167: ='F1'!$C$905 -> EJE_TRANSVERSAL_TRES | F167: ='F1'!C913 -> 0 | G167: ='F1'!D913 -> 0 | H167: ='F1'!E913 -> 0 | I167: ='F1'!F913 -> 0 | J167: ='F1'!J913 ->  | K167: ='F1'!O913 ->  | L167: ='F1'!T913 -> 
A168: 0 | B168: 0 | C168: ='F1'!$N$3 -> 2017 | D168: =+'F1'!$T$3 -> 30 DE JUNIO | E168: ='F1'!$C$905 -> EJE_TRANSVERSAL_TRES | F168: ='F1'!C915 -> 0 | G168: ='F1'!D915 -> 0 | H168: ='F1'!E915 -> 0 | I168: ='F1'!F915 -> 0 | J168: ='F1'!J915 ->  | K168: ='F1'!O915 ->  | L168: ='F1'!T915 -> 
A169: 0 | B169: 0 | C169: ='F1'!$N$3 -> 2017 | D169: =+'F1'!$T$3 -> 30 DE JUNIO | E169: ='F1'!$C$905 -> EJE_TRANSVERSAL_TRES | F169: ='F1'!C917 -> 0 | G169: ='F1'!D917 -> 0 | H169: ='F1'!E917 -> 0 | I169: ='F1'!F917 -> 0 | J169: ='F1'!J917 ->  | K169: ='F1'!O917 ->  | L169: ='F1'!T917 -> 
A170: 0 | B170: 0 | C170: ='F1'!$N$3 -> 2017 | D170: =+'F1'!$T$3 -> 30 DE JUNIO | E170: ='F1'!$C$905 -> EJE_TRANSVERSAL_TRES | F170: ='F1'!C919 -> 0 | G170: ='F1'!D919 -> 0 | H170: ='F1'!E919 -> 0 | I170: ='F1'!F919 -> 0 | J170: ='F1'!J919 ->  | K170: ='F1'!O919 ->  | L170: ='F1'!T919 -> 
A171: 0 | B171: 0 | C171: ='F1'!$N$3 -> 2017 | D171: =+'F1'!$T$3 -> 30 DE JUNIO | E171: ='F1'!$C$905 -> EJE_TRANSVERSAL_TRES | F171: ='F1'!C921 -> 0 | G171: ='F1'!D921 -> 0 | H171: ='F1'!E921 -> 0 | I171: ='F1'!F921 -> 0 | J171: ='F1'!J921 ->  | K171: ='F1'!O921 ->  | L171: ='F1'!T921 -> 
A172: 0 | B172: 0 | C172: ='F1'!$N$3 -> 2017 | D172: =+'F1'!$T$3 -> 30 DE JUNIO | E172: ='F1'!$C$905 -> EJE_TRANSVERSAL_TRES | F172: ='F1'!C923 -> 0 | G172: ='F1'!D923 -> 0 | H172: ='F1'!E923 -> 0 | I172: ='F1'!F923 -> 0 | J172: ='F1'!J923 ->  | K172: ='F1'!O923 ->  | L172: ='F1'!T923 -> 
A173: 0 | B173: 0 | C173: ='F1'!$N$3 -> 2017 | D173: =+'F1'!$T$3 -> 30 DE JUNIO | E173: ='F1'!$C$905 -> EJE_TRANSVERSAL_TRES | F173: ='F1'!C925 -> 0 | G173: ='F1'!D925 -> 0 | H173: ='F1'!E925 -> 0 | I173: ='F1'!F925 -> 0 | J173: ='F1'!J925 ->  | K173: ='F1'!O925 ->  | L173: ='F1'!T925 -> 
A174: 0 | B174: 0 | C174: ='F1'!$N$3 -> 2017 | D174: =+'F1'!$T$3 -> 30 DE JUNIO | E174: ='F1'!$C$905 -> EJE_TRANSVERSAL_TRES | F174: ='F1'!C927 -> 0 | G174: ='F1'!D927 -> 0 | H174: ='F1'!E927 -> 0 | I174: ='F1'!F927 -> 0 | J174: ='F1'!J927 ->  | K174: ='F1'!O927 ->  | L174: ='F1'!T927 -> 
A175: 0 | B175: 0 | C175: ='F1'!$N$3 -> 2017 | D175: =+'F1'!$T$3 -> 30 DE JUNIO | E175: ='F1'!$C$905 -> EJE_TRANSVERSAL_TRES | F175: ='F1'!C929 -> 0 | G175: ='F1'!D929 -> 0 | H175: ='F1'!E929 -> 0 | I175: ='F1'!F929 -> 0 | J175: ='F1'!J929 ->  | K175: ='F1'!O929 ->  | L175: ='F1'!T929 -> 
A176: 0 | B176: 0 | C176: ='F1'!$N$3 -> 2017 | D176: =+'F1'!$T$3 -> 30 DE JUNIO | E176: ='F1'!$C$905 -> EJE_TRANSVERSAL_TRES | F176: ='F1'!C931 -> 0 | G176: ='F1'!D931 -> 0 | H176: ='F1'!E931 -> 0 | I176: ='F1'!F931 -> 0 | J176: ='F1'!J931 ->  | K176: ='F1'!O931 ->  | L176: ='F1'!T931 -> 
A177: 0 | B177: 0 | C177: ='F1'!$N$3 -> 2017 | D177: =+'F1'!$T$3 -> 30 DE JUNIO | E177: ='F1'!$C$905 -> EJE_TRANSVERSAL_TRES | F177: ='F1'!C933 -> 0 | G177: ='F1'!D933 -> 0 | H177: ='F1'!E933 -> 0 | I177: ='F1'!F933 -> 0 | J177: ='F1'!J933 ->  | K177: ='F1'!O933 ->  | L177: ='F1'!T933 -> 
A178: 0 | B178: 0 | C178: ='F1'!$N$3 -> 2017 | D178: =+'F1'!$T$3 -> 30 DE JUNIO | E178: ='F1'!$C$905 -> EJE_TRANSVERSAL_TRES | F178: ='F1'!C935 -> 0 | G178: ='F1'!D935 -> 0 | H178: ='F1'!E935 -> 0 | I178: ='F1'!F935 -> 0 | J178: ='F1'!J935 ->  | K178: ='F1'!O935 ->  | L178: ='F1'!T935 -> 
A179: 0 | B179: 0 | C179: ='F1'!$N$3 -> 2017 | D179: =+'F1'!$T$3 -> 30 DE JUNIO | E179: ='F1'!$C$905 -> EJE_TRANSVERSAL_TRES | F179: ='F1'!C937 -> 0 | G179: ='F1'!D937 -> 0 | H179: ='F1'!E937 ->  | I179: ='F1'!F937 -> 0 | J179: ='F1'!J937 ->  | K179: ='F1'!O937 ->  | L179: ='F1'!T937 -> 
A180: 0 | B180: 0 | C180: ='F1'!$N$3 -> 2017 | D180: =+'F1'!$T$3 -> 30 DE JUNIO | E180: ='F1'!$C$905 -> EJE_TRANSVERSAL_TRES | F180: ='F1'!C939 -> 0 | G180: ='F1'!D939 -> 0 | H180: ='F1'!E939 ->  | I180: ='F1'!F939 -> 0 | J180: ='F1'!J939 ->  | K180: ='F1'!O939 ->  | L180: ='F1'!T939 -> 
A181: 0 | B181: 0 | C181: ='F1'!$N$3 -> 2017 | D181: =+'F1'!$T$3 -> 30 DE JUNIO | E181: ='F1'!$C$905 -> EJE_TRANSVERSAL_TRES | F181: ='F1'!C941 -> 0 | G181: ='F1'!D941 -> 0 | H181: ='F1'!E941 ->  | I181: ='F1'!F941 -> 0 | J181: ='F1'!J941 ->  | K181: ='F1'!O941 ->  | L181: ='F1'!T941 -> 
A182: 0 | B182: 0 | C182: ='F1'!$N$3 -> 2017 | D182: =+'F1'!$T$3 -> 30 DE JUNIO | E182: ='F1'!$C$905 -> EJE_TRANSVERSAL_TRES | F182: ='F1'!C943 -> 0 | G182: ='F1'!D943 -> 0 | H182: ='F1'!E943 ->  | I182: ='F1'!F943 -> 0 | J182: ='F1'!J943 ->  | K182: ='F1'!O943 ->  | L182: ='F1'!T943 -> 
A183: 0 | B183: 0 | C183: ='F1'!$N$3 -> 2017 | D183: =+'F1'!$T$3 -> 30 DE JUNIO | E183: ='F1'!$C$905 -> EJE_TRANSVERSAL_TRES | F183: ='F1'!C945 -> 0 | G183: ='F1'!D945 -> 0 | H183: ='F1'!E945 ->  | I183: ='F1'!F945 -> 0 | J183: ='F1'!J945 ->  | K183: ='F1'!O945 ->  | L183: ='F1'!T945 -> 
A184: 0 | B184: 0 | C184: ='F1'!$N$3 -> 2017 | D184: =+'F1'!$T$3 -> 30 DE JUNIO | E184: ='F1'!$C$905 -> EJE_TRANSVERSAL_TRES | F184: ='F1'!C947 -> 0 | G184: ='F1'!D947 -> 0 | H184: ='F1'!E947 ->  | I184: ='F1'!F947 -> 0 | J184: ='F1'!J947 ->  | K184: ='F1'!O947 ->  | L184: ='F1'!T947 -> 
A185: 0 | B185: 0 | C185: ='F1'!$N$3 -> 2017 | D185: =+'F1'!$T$3 -> 30 DE JUNIO | E185: ='F1'!$C$905 -> EJE_TRANSVERSAL_TRES | F185: ='F1'!C949 -> 0 | G185: ='F1'!D949 -> 0 | H185: ='F1'!E949 -> 0 | I185: ='F1'!F949 -> 0 | J185: ='F1'!J949 ->  | K185: ='F1'!O949 ->  | L185: ='F1'!T949 -> 
A186: 0 | B186: 0 | C186: ='F1'!$N$3 -> 2017 | D186: =+'F1'!$T$3 -> 30 DE JUNIO | E186: ='F1'!$C$905 -> EJE_TRANSVERSAL_TRES | F186: ='F1'!C951 -> 0 | G186: ='F1'!D951 -> 0 | H186: ='F1'!E951 -> 0 | I186: ='F1'!F951 -> 0 | J186: ='F1'!J951 ->  | K186: ='F1'!O951 ->  | L186: ='F1'!T951 -> 
A187: 0 | B187: 0 | C187: ='F1'!$N$3 -> 2017 | D187: =+'F1'!$T$3 -> 30 DE JUNIO | E187: ='F1'!$C$905 -> EJE_TRANSVERSAL_TRES | F187: ='F1'!C953 -> 0 | G187: ='F1'!D953 -> 0 | H187: ='F1'!E953 ->  | I187: ='F1'!F953 -> 0 | J187: ='F1'!J953 ->  | K187: ='F1'!O953 ->  | L187: ='F1'!T953 -> 
A188: 0 | B188: 0 | C188: ='F1'!$N$3 -> 2017 | D188: =+'F1'!$T$3 -> 30 DE JUNIO | E188: ='F1'!$C$905 -> EJE_TRANSVERSAL_TRES | F188: ='F1'!C955 -> 0 | G188: ='F1'!D955 -> 0 | H188: ='F1'!E955 ->  | I188: ='F1'!F955 -> 0 | J188: ='F1'!J955 ->  | K188: ='F1'!O955 ->  | L188: ='F1'!T955 -> 
A189: 0 | B189: 0 | C189: ='F1'!$N$3 -> 2017 | D189: =+'F1'!$T$3 -> 30 DE JUNIO | E189: ='F1'!$C$905 -> EJE_TRANSVERSAL_TRES | F189: ='F1'!C957 -> 0 | G189: ='F1'!D957 -> 0 | H189: ='F1'!E957 -> 0 | I189: ='F1'!F957 -> 0 | J189: ='F1'!J957 ->  | K189: ='F1'!O957 ->  | L189: ='F1'!T957 -> 
A190: 0 | B190: 0 | C190: ='F1'!$N$3 -> 2017 | D190: =+'F1'!$T$3 -> 30 DE JUNIO | E190: ='F1'!$C$905 -> EJE_TRANSVERSAL_TRES | F190: ='F1'!C959 -> 0 | G190: ='F1'!D959 -> 0 | H190: ='F1'!E959 -> 0 | I190: ='F1'!F959 -> 0 | J190: ='F1'!J959 ->  | K190: ='F1'!O959 ->  | L190: ='F1'!T959 -> 
A191: 0 | B191: 0 | C191: ='F1'!$N$3 -> 2017 | D191: =+'F1'!$T$3 -> 30 DE JUNIO | E191: ='F1'!$C$905 -> EJE_TRANSVERSAL_TRES | F191: ='F1'!C961 -> 0 | G191: ='F1'!D961 -> 0 | H191: ='F1'!E961 ->  | I191: ='F1'!F961 -> 0 | J191: ='F1'!J961 ->  | K191: ='F1'!O961 ->  | L191: ='F1'!T961 -> 
A192: 0 | B192: 0 | C192: ='F1'!$N$3 -> 2017 | D192: =+'F1'!$T$3 -> 30 DE JUNIO | E192: ='F1'!$C$905 -> EJE_TRANSVERSAL_TRES | F192: ='F1'!C963 -> 0 | G192: ='F1'!D963 -> 0 | H192: ='F1'!E963 -> 0 | I192: ='F1'!F963 -> 0 | J192: ='F1'!J963 ->  | K192: ='F1'!O963 ->  | L192: ='F1'!T963 -> 
A193: 0 | B193: 0 | C193: ='F1'!$N$3 -> 2017 | D193: =+'F1'!$T$3 -> 30 DE JUNIO | E193: ='F1'!$C$905 -> EJE_TRANSVERSAL_TRES | F193: ='F1'!C965 -> 0 | G193: ='F1'!D965 -> 0 | H193: ='F1'!E965 ->  | I193: ='F1'!F965 -> 0 | J193: ='F1'!J965 ->  | K193: ='F1'!O965 ->  | L193: ='F1'!T965 -> 
A194: 0 | B194: 0 | C194: ='F1'!$N$3 -> 2017 | D194: =+'F1'!$T$3 -> 30 DE JUNIO | E194: ='F1'!$C$905 -> EJE_TRANSVERSAL_TRES | F194: ='F1'!C967 -> 0 | G194: ='F1'!D967 -> 0 | H194: ='F1'!E967 ->  | I194: ='F1'!F967 -> 0 | J194: ='F1'!J967 ->  | K194: ='F1'!O967 ->  | L194: ='F1'!T967 -> 
A195: 0 | B195: 0 | C195: ='F1'!$N$3 -> 2017 | D195: =+'F1'!$T$3 -> 30 DE JUNIO | E195: ='F1'!$C$905 -> EJE_TRANSVERSAL_TRES | F195: ='F1'!C969 -> 0 | G195: ='F1'!D969 -> 0 | H195: ='F1'!E969 -> 0 | I195: ='F1'!F969 -> 0 | J195: ='F1'!J969 ->  | K195: ='F1'!O969 ->  | L195: ='F1'!T969 -> 
A196: 0 | B196: 0 | C196: ='F1'!$N$3 -> 2017 | D196: =+'F1'!$T$3 -> 30 DE JUNIO | E196: =+'F1'!$C$1085 -> EJE_TRANSVERSAL_CUATRO | F196: =+'F1'!C1089 -> 0 | G196: =+'F1'!D1089 -> 0 | H196: =+'F1'!E1089 -> 0 | I196: =+'F1'!F1089 -> 0 | J196: =+'F1'!J1089 ->  | K196: =+'F1'!O1089 ->  | L196: =+'F1'!T1089 -> 
A197: 0 | B197: 0 | C197: ='F1'!$N$3 -> 2017 | D197: =+'F1'!$T$3 -> 30 DE JUNIO | E197: =+'F1'!$C$1085 -> EJE_TRANSVERSAL_CUATRO | F197: =+'F1'!C1091 -> 0 | G197: =+'F1'!D1091 -> 0 | H197: =+'F1'!E1091 -> 0 | I197: =+'F1'!F1091 -> 0 | J197: =+'F1'!J1091 ->  | K197: =+'F1'!O1091 ->  | L197: =+'F1'!T1091 -> 
A198: =$C$4 -> 0 | B198: 0 | C198: ='F1'!$N$3 -> 2017 | D198: =+'F1'!$T$3 -> 30 DE JUNIO | E198: =+'F1'!$C$1085 -> EJE_TRANSVERSAL_CUATRO | F198: =+'F1'!C1093 -> 0 | G198: =+'F1'!D1093 -> 0 | H198: =+'F1'!E1093 -> 0 | I198: =+'F1'!F1093 -> 0 | J198: =+'F1'!J1093 ->  | K198: =+'F1'!O1093 ->  | L198: =+'F1'!T1093 -> 
A199: 0 | B199: 0 | C199: ='F1'!$N$3 -> 2017 | D199: =+'F1'!$T$3 -> 30 DE JUNIO | E199: =+'F1'!$C$1085 -> EJE_TRANSVERSAL_CUATRO | F199: =+'F1'!C1095 -> 0 | G199: =+'F1'!D1095 -> 0 | H199: =+'F1'!E1095 -> 0 | I199: =+'F1'!F1095 -> 0 | J199: =+'F1'!J1095 ->  | K199: =+'F1'!O1095 ->  | L199: =+'F1'!T1095 -> 
A200: 0 | B200: =$A$4 -> 0 | C200: ='F1'!$N$3 -> 2017 | D200: =+'F1'!$T$3 -> 30 DE JUNIO | E200: =+'F1'!$C$1085 -> EJE_TRANSVERSAL_CUATRO | F200: =+'F1'!C1097 -> 0 | G200: =+'F1'!D1097 -> 0 | H200: =+'F1'!E1097 -> 0 | I200: =+'F1'!F1097 -> 0 | J200: =+'F1'!J1097 ->  | K200: =+'F1'!O1097 ->  | L200: =+'F1'!T1097 -> 
A201: 0 | B201: 0 | C201: ='F1'!$N$3 -> 2017 | D201: =+'F1'!$T$3 -> 30 DE JUNIO | E201: =+'F1'!$C$1085 -> EJE_TRANSVERSAL_CUATRO | F201: =+'F1'!C1099 -> 0 | G201: =+'F1'!D1099 -> 0 | H201: =+'F1'!E1099 -> 0 | I201: =+'F1'!F1099 -> 0 | J201: =+'F1'!J1099 ->  | K201: =+'F1'!O1099 ->  | L201: =+'F1'!T1099 -> 
A202: 0 | B202: 0 | C202: ='F1'!$N$3 -> 2017 | D202: =+'F1'!$T$3 -> 30 DE JUNIO | E202: =+'F1'!$C$1085 -> EJE_TRANSVERSAL_CUATRO | F202: =+'F1'!C1101 -> 0 | G202: =+'F1'!D1101 -> 0 | H202: =+'F1'!E1101 -> 0 | I202: =+'F1'!F1101 -> 0 | J202: =+'F1'!J1101 ->  | K202: =+'F1'!O1101 ->  | L202: =+'F1'!T1101 -> 
A203: 0 | B203: 0 | C203: ='F1'!$N$3 -> 2017 | D203: =+'F1'!$T$3 -> 30 DE JUNIO | E203: =+'F1'!$C$1085 -> EJE_TRANSVERSAL_CUATRO | F203: =+'F1'!C1103 -> 0 | G203: =+'F1'!D1103 -> 0 | H203: =+'F1'!E1103 -> 0 | I203: =+'F1'!F1103 -> 0 | J203: =+'F1'!J1103 ->  | K203: =+'F1'!O1103 ->  | L203: =+'F1'!T1103 -> 
A204: 0 | B204: 0 | C204: ='F1'!$N$3 -> 2017 | D204: =+'F1'!$T$3 -> 30 DE JUNIO | E204: =+'F1'!$C$1085 -> EJE_TRANSVERSAL_CUATRO | F204: =+'F1'!C1105 -> 0 | G204: =+'F1'!D1105 -> 0 | H204: =+'F1'!E1105 -> 0 | I204: =+'F1'!F1105 -> 0 | J204: =+'F1'!J1105 ->  | K204: =+'F1'!O1105 ->  | L204: =+'F1'!T1105 -> 
A205: 0 | B205: 0 | C205: ='F1'!$N$3 -> 2017 | D205: =+'F1'!$T$3 -> 30 DE JUNIO | E205: =+'F1'!$C$1085 -> EJE_TRANSVERSAL_CUATRO | F205: =+'F1'!C1107 -> 0 | G205: =+'F1'!D1107 -> 0 | H205: =+'F1'!E1107 -> 0 | I205: =+'F1'!F1107 -> 0 | J205: =+'F1'!J1107 ->  | K205: =+'F1'!O1107 ->  | L205: =+'F1'!T1107 -> 
... 185 more rows

Sheet Hoja2 (hidden)
E2: PLAN DE DESARROLLO BOGOTA MEJOR PARA TODOS
D6: PILAR 1 | H6: PILAR 2 | L6: PILAR 3
C7: Programas | D7: 3.1.1 | E7: 0.8 | H7: 3.2.1 | I7: 0.8 | L7: 3.3.1 | M7: 0.8
D8: 3.1.2 | E8: 0.6 | H8: 3.2.2 | I8: 0.6 | L8: 3.3.2. | M8: 0.6
D9: 3.1.3 | E9: 0.1 | H9: 3.2.3 | I9: 0.1 | L9: 3.3.3. | M9: 0.1
D10: 3.1.4 | E10: 0.15 | H10: 3.2.4 | I10: 0.15 | L10: 3.3.4. | M10: 0.15
D11: 3.1.5 | E11: 0.12 | H11: 3.2.5 | I11: 0.12 | L11: 3.3.5. | M11: 0.12
D12: 3.1.6 | E12: 0.85 | H12: 3.2.6 | I12: 0.85 | L12: 3.3.6. | M12: 0.85
D13: 3.1.7 | E13: 0.65 | H13: 3.2.7 | I13: 0.65 | L13: 3.3.7. | M13: 0.65
D14: 3.1.8 | E14: 0.23 | H14: 3.2.8 | I14: 0.23
D15: 3.1.9 | E15: 0.45 | H15: 3.2.9 | I15: 0.45
D16: 3.1.10 | E16: 0.65
B19: Eje Transversal 1 | F19: Eje Transversal 2 | J19: Eje Transversal 3 | N19: Eje Transversal 4
B20: 3.4.1. | C20: 0.8 | F20: 3.5.1. | G20: 0.8 | J20: 3.6.1. | K20: 0.8 | N20: 3.7.1. | O20: 0.8
B21: 3.4.2. | C21: 0.6 | F21: 3.5.2 | G21: 0.6 | J21: 3.6.2. | K21: 0.6 | N21: 3.7.2. | O21: 0.6
B22: 3.4.3. | C22: 0.1 | F22: 3.5.3. | G22: 0.1 | J22: 3.6.3. | K22: 0.1 | N22: 3.7.3. | O22: 0.1
B23: 3.4.4. | C23: 0.15 | F23: 3.5.4. | G23: 0.15 | J23: 3.6.4. | K23: 0.15
B24: 3.4.5. | C24: 0.12 | F24: 3.5.5. | G24: 0.12 | J24: 3.6.5. | K24: 0.12
B25: 3.4.6. | C25: 0.85 | F25: 3.5.6. | G25: 0.85 | J25: 3.6.6. | K25: 0.85
F26: 3.5.7. | G26: 0.65
F27: 3.5.8. | G27: 0.23
